Workbook

Sheet Softwarová aplikácia
B2: Aplikácia na sledovanie ukazovateľov
C6: Vitajte! Stlačením zeleného tlačidla v dolnom pravom rohu spustíte aplikáciu na sledovanie ukazovateľov.
C7: V prípade nejasného postupu v aplikácií si môžete vždy zobraziť dokumentáciu programu, ktorá je dostupná po spustení programu kliknutím na symbol i v pravom hornom rohu aplikačného okna. Všetky grafy zostrojené z ukazovateľov sa nachádzajú v jednotlivých hárkoch Excelu.

Sheet Trend
B2: Rok | C2: Finančná páka | D2: Obdobie | H2: Odhad | I2: e | J2: e2 | M2: 1 | N2: 1 | O2: 1 | P2: 1 | Q2: 1 | R2: 1 | S2: 1 | T2: 1 | U2: 1 | V2: 1 | W2: 1 | X2: 1 | Y2: 1
B3: 2017/4 | C3: -10.88333333 | D3: 1 | E3: 0 | F3: 0 | G3: 0 | H3: 27.14530303 | I3: -38.02863636 | J3: 1446.177184 | L3: F | M3: 1 | N3: 2 | O3: 3 | P3: 4 | Q3: 5 | R3: 6 | S3: 7 | T3: 8 | U3: 9 | V3: 10 | W3: 11 | X3: 12 | Y3: 13
B4: 2018/1 | C4: 6.35 | D4: 2 | E4: 1 | F4: 0 | G4: 0 | H4: 1.892979798 | I4: 4.457020202 | J4: 19.86502908 | M4: 0 | N4: 1 | O4: 0 | P4: 0 | Q4: 0 | R4: 1 | S4: 0 | T4: 0 | U4: 0 | V4: 1 | W4: 0 | X4: 0 | Y4: 0
B5: 2018/2 | C5: 86.29333333 | D5: 3 | E5: 0 | F5: 1 | G5: 0 | H5: 49.45075758 | I5: 36.84257576 | J5: 1357.375388 | M5: 0 | N5: 0 | O5: 1 | P5: 0 | Q5: 0 | R5: 0 | S5: 1 | T5: 0 | U5: 0 | V5: 0 | W5: 1 | X5: 0 | Y5: 0
B6: 2018/3 | C6: 141.9033333 | D6: 4 | E6: 0 | F6: 0 | G6: 1 | H6: 64.51409091 | I6: 77.38924242 | J6: 5989.094843 | M6: 0 | N6: 0 | O6: 0 | P6: 1 | Q6: 0 | R6: 0 | S6: 0 | T6: 1 | U6: 0 | V6: 0 | W6: 0 | X6: 1 | Y6: 0
B7: 2018/4 | C7: 0.02 | D7: 5 | E7: 0 | F7: 0 | G7: 0 | H7: 11.21454545 | I7: -11.19454545 | J7: 125.3178479
B8: 2019/1 | C8: -37.24666667 | D8: 6 | E8: 1 | F8: 0 | G8: 0 | H8: -14.03777778 | I8: -23.20888889 | J8: 538.6525235 | M8: 1 | N8: 1 | O8: 0 | P8: 0 | Q8: 0
B9: 2019/2 | C9: -5.236666667 | D9: 7 | E9: 0 | F9: 1 | G9: 0 | H9: 33.52 | I9: -38.75666667 | J9: 1502.079211 | L9: FT | M9: 1 | N9: 2 | O9: 1 | P9: 0 | Q9: 0
B10: 2019/3 | C10: -3.743333333 | D10: 8 | E10: 0 | F10: 0 | G10: 1 | H10: 48.58333333 | I10: -52.32666667 | J10: 2738.080044 | M10: 1 | N10: 3 | O10: 0 | P10: 1 | Q10: 0
B11: 2019/4 | C11: 8.673333333 | D11: 9 | E11: 0 | F11: 0 | G11: 0 | H11: -4.716212121 | I11: 13.38954545 | J11: 179.2799275 | M11: 1 | N11: 4 | O11: 0 | P11: 0 | Q11: 1
B12: 2020/1 | C12: -11.21666667 | D12: 10 | E12: 1 | F12: 0 | G12: 0 | H12: -29.96853535 | I12: 18.75186869 | J12: 351.6325792 | M12: 1 | N12: 5 | O12: 0 | P12: 0 | Q12: 0
B13: 2020/2 | C13: 19.50333333 | D13: 11 | E13: 0 | F13: 1 | G13: 0 | H13: 17.58924242 | I13: 1.914090909 | J13: 3.663744008 | M13: 1 | N13: 6 | O13: 1 | P13: 0 | Q13: 0
B14: 2020/3 | C14: 7.59 | D14: 12 | E14: 0 | F14: 0 | G14: 1 | H14: 32.65257576 | I14: -25.06257576 | J14: 628.1327036 | M14: 1 | N14: 7 | O14: 0 | P14: 1 | Q14: 0
B15: 2020/4 | C15: 15.18666667 | D15: 13 | E15: 0 | F15: 0 | G15: 0 | H15: -20.6469697 | I15: 35.83363636 | J15: 1284.049495 | M15: 1 | N15: 8 | O15: 0 | P15: 0 | Q15: 1
B16: SUM | M16: 1 | N16: 9 | O16: 0 | P16: 0 | Q16: 0
M17: 1 | N17: 10 | O17: 1 | P17: 0 | Q17: 0
M18: 1 | N18: 11 | O18: 0 | P18: 1 | Q18: 0
M19: 1 | N19: 12 | O19: 0 | P19: 0 | Q19: 1
B20: Výsledok | E20: Odhad rozptylov odhadov hodnôt - 95% interval | M20: 1 | N20: 13 | O20: 0 | P20: 0 | Q20: 0
B21: Rok | C21: Obdobie | D21: Hodnota | E21: výsledok odhadu | F21: dolná hranica | G21: horná hranica
B22: 2021/1 | C22: 14 | D22: -45.9 | E22: 1408.175045 | F22: -132.43 | G22: 40.63 | L22: H (F*FT) | M22: 13 | N22: 91 | O22: 3 | P22: 3 | Q22: 3
B23: 2021/2 | C23: 15 | D23: 1.66 | E23: 1408.175045 | F23: -84.87 | G23: 88.19 | M23: 91 | N23: 819 | O23: 18 | P23: 21 | Q23: 24
B24: 2021/3 | C24: 16 | D24: 16.72 | E24: 1408.175045 | F24: -69.81 | G24: 103.25 | M24: 3 | N24: 18 | O24: 3 | P24: 0 | Q24: 0
B25: 2021/4 | C25: 17 | D25: -36.58000183 | E25: 1653.075053 | F25: -130.34 | G25: 57.18 | M25: 3 | N25: 21 | O25: 0 | P25: 3 | Q25: 0
M26: 3 | N26: 24 | O26: 0 | P26: 0 | Q26: 3
L28: H1 (H na -1) | M28: 0.5284090909 | N28: -0.03977272727 | O28: -0.2897727273 | P28: -0.25 | Q28: -0.2102272727
M29: -0.03977272727 | N29: 0.005681818182 | O29: 0.005681818182 | P29: 5.337610695e-18 | Q29: -0.005681818182
M30: -0.2897727273 | N30: 0.005681818182 | O30: 0.5890151515 | P30: 0.25 | Q30: 0.2443181818
M31: -0.25 | N31: -8.27851691e-19 | O31: 0.25 | P31: 0.5833333333 | Q31: 0.25
M32: -0.2102272727 | N32: -0.005681818182 | O32: 0.2443181818 | P32: 0.25 | Q32: 0.5890151515
L34: Fy | M34: 217.1933333
M35: 1007.263333
M36: -42.11333333
M37: 100.56
M38: 145.75
L40: b | M40: 31.12799242
M41: -3.982689394
M42: -21.26963384
M43: 30.27083333
M44: 49.31685606
L49: fT (xi) | M49: 1 | N49: 14 | O49: 1 | P49: 0 | Q49: 0
L50: i-tý stlpec matice F transponovanej | M50: 1 | N50: 15 | O50: 0 | P50: 1 | Q50: 0
M51: 1 | N51: 16 | O51: 0 | P51: 0 | Q51: 1
M52: 1 | N52: 17 | O52: 0 | P52: 0 | Q52: 0
L54: G (fT(xi)*H1) | M54: -0.1477272727 | N54: 0.05681818182 | O54: -0.1931818182 | P54: -0.25 | Q54: -0.3068181818
L56: J (f(xi)) | M56: 1 | N56: 1 | O56: 1 | P56: 1
L57: i-tý stlpec matice F | M57: 14 | N57: 15 | O57: 16 | P57: 17
M58: 1 | N58: 0 | O58: 0 | P58: 0
M59: 0 | N59: 1 | O59: 0 | P59: 0
M60: 0 | N60: 0 | O60: 1 | P60: 0
N62: výsledok
L63: K | M63: 14 | N63: 0.696969697
M64: 15 | N64: 0.696969697
M65: 16 | N65: 0.696969697
M66: 17 | N66: 0.8181818182

Sheet Zlaté bilančné pravidlo
B2: Rok | C2: Mesiac | D2: Zlaté bilančné pravidlo | E2: Neobežný majetok | F2: Vlastné imanie a dlhodobé záväzky
B3: 2017 | C3: 10 | D3: Prekapitalizovaný podnik | E3: 0 | F3: 2331.04
B4: 2017 | C4: 11 | D4: Prekapitalizovaný podnik | E4: 0 | F4: 8340.35
B5: 2017 | C5: 12 | D5: Podkapitalizovaný podnik | E5: 0 | F5: -784.01
B6: 2018 | C6: 1 | D6: Podkapitalizovaný podnik | E6: 49500 | F6: 26899.3
B7: 2018 | C7: 2 | D7: Podkapitalizovaný podnik | E7: 48675 | F7: 20328.76
B8: 2018 | C8: 3 | D8: Podkapitalizovaný podnik | E8: 62974.65 | F8: 15074.57
B9: 2018 | C9: 4 | D9: Podkapitalizovaný podnik | E9: 61884.3 | F9: 11739.1
B10: 2018 | C10: 5 | D10: Podkapitalizovaný podnik | E10: 60793.95 | F10: 8007.39
B11: 2018 | C11: 6 | D11: Podkapitalizovaný podnik | E11: 59703.6 | F11: 623.76
B12: 2018 | C12: 7 | D12: Podkapitalizovaný podnik | E12: 72292.4 | F12: -4312.47
B13: 2018 | C13: 8 | D13: Podkapitalizovaný podnik | E13: 70970.2 | F13: 570.8
B14: 2018 | C14: 9 | D14: Podkapitalizovaný podnik | E14: 69648 | F14: 2655.99
B15: 2018 | C15: 10 | D15: Podkapitalizovaný podnik | E15: 68325.8 | F15: -5209.6
B16: 2018 | C16: 11 | D16: Podkapitalizovaný podnik | E16: 95374.6 | F16: 13586.73
B17: 2018 | C17: 12 | D17: Podkapitalizovaný podnik | E17: 93536.9 | F17: 29345.9
B18: 2019 | C18: 1 | D18: Podkapitalizovaný podnik | E18: 91619.88 | F18: 19252.27
B19: 2019 | C19: 2 | D19: Podkapitalizovaný podnik | E19: 89703 | F19: 20513
B20: 2019 | C20: 3 | D20: Podkapitalizovaný podnik | E20: 87786 | F20: 5296
B21: 2019 | C21: 4 | D21: Podkapitalizovaný podnik | E21: 85869 | F21: -772.17
B22: 2019 | C22: 5 | D22: Podkapitalizovaný podnik | E22: 83952 | F22: -4563.53
B23: 2019 | C23: 6 | D23: Podkapitalizovaný podnik | E23: 82035 | F23: -7911.89
B24: 2019 | C24: 7 | D24: Podkapitalizovaný podnik | E24: 80118 | F24: -14578
B25: 2019 | C25: 8 | D25: Podkapitalizovaný podnik | E25: 78201 | F25: -17810
B26: 2019 | C26: 9 | D26: Podkapitalizovaný podnik | E26: 76284 | F26: -11714
B27: 2019 | C27: 10 | D27: Podkapitalizovaný podnik | E27: 78971 | F27: -15376
B28: 2019 | C28: 11 | D28: Podkapitalizovaný podnik | E28: 76977 | F28: -24406
B29: 2019 | C29: 12 | D29: Podkapitalizovaný podnik | E29: 74982 | F29: 13688
B30: 2020 | C30: 1 | D30: Podkapitalizovaný podnik | E30: 72986 | F30: 3034
B31: 2020 | C31: 2 | D31: Podkapitalizovaný podnik | E31: 70991 | F31: 3349
B32: 2020 | C32: 3 | D32: Podkapitalizovaný podnik | E32: 68996 | F32: 14775
B33: 2020 | C33: 4 | D33: Podkapitalizovaný podnik | E33: 67001 | F33: 17107
B34: 2020 | C34: 5 | D34: Podkapitalizovaný podnik | E34: 65006 | F34: 19100
B35: 2020 | C35: 6 | D35: Podkapitalizovaný podnik | E35: 63011 | F35: 22677
B36: 2020 | C36: 7 | D36: Podkapitalizovaný podnik | E36: 61016 | F36: 31070
B37: 2020 | C37: 8 | D37: Podkapitalizovaný podnik | E37: 59021 | F37: 45690
B38: 2020 | C38: 9 | D38: Podkapitalizovaný podnik | E38: 57026 | F38: 50962
B39: 2020 | C39: 10 | D39: Podkapitalizovaný podnik | E39: 55031 | F39: 36412
B40: 2020 | C40: 11 | D40: Podkapitalizovaný podnik | E40: 53036 | F40: 24485
B41: 2020 | C41: 12 | D41: Podkapitalizovaný podnik | E41: 51041 | F41: 10094

Sheet Rozdielové ukazovatele
B2: Rok | C2: Mesiac | D2: Čistý pracovný kapitál | E2: Čistý peňažný majetok | F2: Čisté pohotové prostriedky
B3: 2017 | C3: 10 | D3: 2331.04 | E3: 2331.040039 | F3: 6210.569824
B4: 2017 | C4: 11 | D4: 8340.349609 | E4: 8340.349609 | F4: 13655.94043
B5: 2017 | C5: 12 | D5: 1326.709961 | E5: 1326.709961 | F5: 6011.339844
B6: 2018 | C6: 1 | D6: -21089.98047 | E6: -21089.98 | F6: 5138.86
B7: 2018 | C7: 2 | D7: -26835.51953 | E7: -26835.52 | F7: 30852.23
B8: 2018 | C8: 3 | D8: -46789.36 | E8: -46789.36 | F8: 16600.03
B9: 2018 | C9: 4 | D9: -49034.48 | E9: -49034.48 | F9: 4234.67
B10: 2018 | C10: 5 | D10: -51675.84 | E10: -51675.84 | F10: 8090.91
B11: 2018 | C11: 6 | D11: -57969.12 | E11: -57969.12 | F11: 5963.03
B12: 2018 | C12: 7 | D12: -75494.15 | E12: -75494.15 | F12: 8333.19
B13: 2018 | C13: 8 | D13: -69288.68 | E13: -69288.68 | F13: 9716.73
B14: 2018 | C14: 9 | D14: -65881.29 | E14: -65881.29 | F14: 5656.22
B15: 2018 | C15: 10 | D15: -72424.68 | E15: -72424.68 | F15: 10756.84
B16: 2018 | C16: 11 | D16: -80677.15 | E16: -80677.15 | F16: 9129.93
B17: 2018 | C17: 12 | D17: -61431.31 | E17: -61431.31 | F17: 7642.9
B18: 2019 | C18: 1 | D18: -71867.61 | E18: -71867.61 | F18: 4558.48
B19: 2019 | C19: 2 | D19: -68690 | E19: -68690 | F19: 4963
B20: 2019 | C20: 3 | D20: -82490 | E20: -82490 | F20: 4337
B21: 2019 | C21: 4 | D21: -86641.17 | E21: -86641.17 | F21: 4558.83
B22: 2019 | C22: 5 | D22: -88515.53 | E22: -88515.53 | F22: 3924
B23: 2019 | C23: 6 | D23: -89946.89 | E23: -89946.89 | F23: 5013.11
B24: 2019 | C24: 7 | D24: -94696 | E24: -94696 | F24: 2843
B25: 2019 | C25: 8 | D25: -96011 | E25: -96011 | F25: 1015
B26: 2019 | C26: 9 | D26: -87998 | E26: -87998 | F26: 3513
B27: 2019 | C27: 10 | D27: -94347 | E27: -94347 | F27: 6188
B28: 2019 | C28: 11 | D28: -101383 | E28: -101383 | F28: 2025
B29: 2019 | C29: 12 | D29: -60583 | E29: -60583 | F29: 1810
B30: 2020 | C30: 1 | D30: -69952 | E30: -69952 | F30: 7132
B31: 2020 | C31: 2 | D31: -67642 | E31: -67642 | F31: 3435
B32: 2020 | C32: 3 | D32: -54221 | E32: -54221 | F32: 9903
B33: 2020 | C33: 4 | D33: -49894 | E33: -49894 | F33: 16293
B34: 2020 | C34: 5 | D34: -45906 | E34: -45906 | F34: 25231
B35: 2020 | C35: 6 | D35: -40334 | E35: -40334 | F35: 19612
B36: 2020 | C36: 7 | D36: -29946 | E36: -29946 | F36: 2156
B37: 2020 | C37: 8 | D37: -13331 | E37: -13331 | F37: 13740
B38: 2020 | C38: 9 | D38: -6064 | E38: -6064 | F38: 13079
B39: 2020 | C39: 10 | D39: -18619 | E39: -18619 | F39: 9712
B40: 2020 | C40: 11 | D40: -28551 | E40: -28551 | F40: 57228
B41: 2020 | C41: 12 | D41: -37517 | E41: -37517 | F41: 18330

Sheet Likvidita
B2: Rok | C2: Mesiac | D2: Bežná likvidita | E2: Pohotová likvidita | F2: Okamžitá likvidita
B3: 2017 | C3: 10 | D3: 1.07 | E3: 1.07 | F3: 0.19
B4: 2017 | C4: 11 | D4: 1.23 | E4: 1.23 | F4: 0.38
B5: 2017 | C5: 12 | D5: 1.03 | E5: 1.03 | F5: 0.13
B6: 2018 | C6: 1 | D6: 0.81 | E6: 0.81 | F6: 0.05
B7: 2018 | C7: 2 | D7: 0.75 | E7: 0.75 | F7: 0.29
B8: 2018 | C8: 3 | D8: 0.51 | E8: 0.51 | F8: 0.17
B9: 2018 | C9: 4 | D9: 0.5 | E9: 0.5 | F9: 0.04
B10: 2018 | C10: 5 | D10: 0.38 | E10: 0.38 | F10: 0.1
B11: 2018 | C11: 6 | D11: 0.37 | E11: 0.37 | F11: 0.06
B12: 2018 | C12: 7 | D12: 0.31 | E12: 0.31 | F12: 0.08
B13: 2018 | C13: 8 | D13: 0.4 | E13: 0.4 | F13: 0.08
B14: 2018 | C14: 9 | D14: 0.44 | E14: 0.44 | F14: 0.05
B15: 2018 | C15: 10 | D15: 0.32 | E15: 0.32 | F15: 0.1
B16: 2018 | C16: 11 | D16: 0.32 | E16: 0.32 | F16: 0.08
B17: 2018 | C17: 12 | D17: 0.52 | E17: 0.52 | F17: 0.06
B18: 2019 | C18: 1 | D18: 0.46 | E18: 0.46 | F18: 0.03
B19: 2019 | C19: 2 | D19: 0.48 | E19: 0.48 | F19: 0.04
B20: 2019 | C20: 3 | D20: 0.38 | E20: 0.38 | F20: 0.03
B21: 2019 | C21: 4 | D21: 0.37 | E21: 0.37 | F21: 0.03
B22: 2019 | C22: 5 | D22: 0.35 | E22: 0.35 | F22: 0.03
B23: 2019 | C23: 6 | D23: 0.32 | E23: 0.32 | F23: 0.04
B24: 2019 | C24: 7 | D24: 0.33 | E24: 0.33 | F24: 0.02
B25: 2019 | C25: 8 | D25: 0.32 | E25: 0.32 | F25: 0.01
B26: 2019 | C26: 9 | D26: 0.36 | E26: 0.36 | F26: 0.03
B27: 2019 | C27: 10 | D27: 0.37 | E27: 0.37 | F27: 0.04
B28: 2019 | C28: 11 | D28: 0.26 | E28: 0.26 | F28: 0.01
B29: 2019 | C29: 12 | D29: 0.61 | E29: 0.61 | F29: 0.01
B30: 2020 | C30: 1 | D30: 0.56 | E30: 0.56 | F30: 0.04
B31: 2020 | C31: 2 | D31: 0.59 | E31: 0.59 | F31: 0.02
B32: 2020 | C32: 3 | D32: 0.66 | E32: 0.66 | F32: 0.06
B33: 2020 | C33: 4 | D33: 0.71 | E33: 0.71 | F33: 0.09
B34: 2020 | C34: 5 | D34: 0.75 | E34: 0.75 | F34: 0.14
B35: 2020 | C35: 6 | D35: 0.81 | E35: 0.81 | F35: 0.09
B36: 2020 | C36: 7 | D36: 0.86 | E36: 0.86 | F36: 0.01
B37: 2020 | C37: 8 | D37: 0.93 | E37: 0.93 | F37: 0.07
B38: 2020 | C38: 9 | D38: 0.97 | E38: 0.97 | F38: 0.07
B39: 2020 | C39: 10 | D39: 0.9 | E39: 0.9 | F39: 0.05
B40: 2020 | C40: 11 | D40: 0.86 | E40: 0.86 | F40: 0.28
B41: 2020 | C41: 12 | D41: 0.81 | E41: 0.81 | F41: 0.09

Sheet Rentabilita a zisk
B2: Rok | C2: Mesiac | D2: EBIT | E2: EBT | F2: EAT | G2: ROI | H2: ROA | I2: ROCE | J2: ROE | K2: ROS | L2: ROC
B3: 2017 | C3: 10 | D3: -11465 | E3: -11465 | F3: -11465 | G3: -32.77 | H3: -32.77 | I3: -491.84 | J3: -513.05 | K3: nulové tržby | L3: nulové tržby
B4: 2017 | C4: 11 | D4: 5987 | E4: 5987 | F4: 5987 | G4: 13.61 | H4: 13.61 | I4: 71.78 | J4: 72.82 | K4: 34.97 | L4: 65.03
B5: 2017 | C5: 12 | D5: -3729 | E5: -3729 | F5: -9142.7 | G5: -7.56 | H5: -18.53 | I5: 475.63 | J5: 994.17 | K5: -26.84 | L5: 126.84
B6: 2018 | C6: 1 | D6: 27670.54 | E6: 27670.54 | F6: 27670.54 | G6: 20.05 | H6: 20.05 | I6: 102.87 | J6: 103.44 | K6: 71.56 | L6: 28.44
B7: 2018 | C7: 2 | D7: -6584.58 | E7: -6584.58 | F7: -6584.58 | G7: -5.1 | H7: -5.1 | I7: -32.39 | J7: -32.65 | K7: -97.69 | L7: 197.69
B8: 2018 | C8: 3 | D8: -5269.49 | E8: -5269.49 | F8: -5269.49 | G8: -4.73 | H8: -4.73 | I8: -34.96 | J8: -35.37 | K8: -55.78 | L8: 155.78
B9: 2018 | C9: 4 | D9: -3350.51 | E9: -3350.51 | F9: -3350.51 | G9: -3.01 | H9: -3.01 | I9: -28.54 | J9: -29.02 | K9: -38.84 | L9: 138.84
B10: 2018 | C10: 5 | D10: -3748.26 | E10: -3748.26 | F10: -3748.26 | G10: -4.04 | H10: -4.04 | I10: -46.81 | J10: -48.07 | K10: -44.46 | L10: 144.46
B11: 2018 | C11: 6 | D11: -7404.22 | E11: -7404.22 | F11: -7404.22 | G11: -7.92 | H11: -7.92 | I11: -1187.03 | J11: -1879.96 | K11: -67.25 | L11: 167.25
B12: 2018 | C12: 7 | D12: -4959.62 | E12: -4959.62 | F12: -4959.62 | G12: -4.65 | H12: -4.65 | I12: 115.01 | J12: 108.63 | K12: -43.63 | L12: 143.63
B13: 2018 | C13: 8 | D13: 4860.44 | E13: 4860.44 | F13: 4860.44 | G13: 4.14 | H13: 4.14 | I13: 851.51 | J13: 1649.45 | K13: 24.74 | L13: 75.26
B14: 2018 | C14: 9 | D14: 2062.42 | E14: 2062.42 | F14: 2062.42 | G14: 1.71 | H14: 1.71 | I14: 77.65 | J14: 87.5 | K14: 12.16 | L14: 87.84
B15: 2018 | C15: 10 | D15: -7889.86 | E15: -7889.86 | F15: -7889.86 | G15: -7.74 | H15: -7.74 | I15: 151.45 | J15: 142.6 | K15: -83.91 | L15: 183.91
B16: 2018 | C16: 11 | D16: -5565.31 | E16: -5565.31 | F16: -5565.31 | G16: -4.17 | H16: -4.17 | I16: -40.96 | J16: 50.15 | K16: -49.54 | L16: 149.54
B17: 2018 | C17: 12 | D17: 18695.75 | E17: 18614.63 | F17: 16381.07 | G17: 11.6 | H17: 10.17 | I17: 63.71 | J17: 310.07 | K17: 34.78 | L17: 65.22
B18: 2019 | C18: 1 | D18: -9391 | E18: -9470 | F18: -9470 | G18: -6.12 | H18: -6.17 | I18: -48.78 | J18: 226.19 | K18: -149.42 | L18: 249.42
B19: 2019 | C19: 2 | D19: 1961 | E19: 1884 | F19: 1884 | G19: 1.27 | H19: 1.22 | I19: 9.56 | J19: -81.81 | K19: 11.08 | L19: 88.92
B20: 2019 | C20: 3 | D20: -14518 | E20: -14593 | F20: -14593 | G20: -10.57 | H20: -10.62 | I20: -274.13 | J20: 86.37 | K20: -1113.12 | L20: 1213.12
B21: 2019 | C21: 4 | D21: -5370 | E21: -5442 | F21: -5442 | G21: -3.91 | H21: -3.96 | I21: 695.44 | J21: 24.36 | K21: -36.34 | L21: 136.34
B22: 2019 | C22: 5 | D22: -3090 | E22: -3161 | F22: -3161 | G22: -2.37 | H22: -2.42 | I22: 67.71 | J22: 12.4 | K22: -27.42 | L22: 127.42
B23: 2019 | C23: 6 | D23: -2651 | E23: -2719 | F23: -2719 | G23: -2.12 | H23: -2.17 | I23: 33.51 | J23: 9.64 | K23: -23.47 | L23: 123.47
B24: 2019 | C24: 7 | D24: -5966 | E24: -6032 | F24: -6032 | G24: -4.67 | H24: -4.72 | I24: 40.92 | J24: 17.61 | K24: -29.4 | L24: 129.4
B25: 2019 | C25: 8 | D25: -2538 | E25: -2602 | F25: -2602 | G25: -2.07 | H25: -2.12 | I25: 14.25 | J25: 7.06 | K25: -19.01 | L25: 119.01
B26: 2019 | C26: 9 | D26: 6788 | E26: 6726 | F26: 6726 | G26: 5.4 | H26: 5.35 | I26: -57.95 | J26: -22.33 | K26: 29.01 | L26: 70.99
B27: 2019 | C27: 10 | D27: -2969 | E27: -3028 | F27: -3028 | G27: -2.22 | H27: -2.26 | I27: 19.31 | J27: 9.13 | K27: -12.7 | L27: 112.7
B28: 2019 | C28: 11 | D28: -8336 | E28: -8394 | F28: -8394 | G28: -7.35 | H28: -7.4 | I28: 34.16 | J28: 20.2 | K28: -65.95 | L28: 165.95
B29: 2019 | C29: 12 | D29: 47125 | E29: 47070 | F29: 46735.11 | G29: 27.71 | H29: 27.48 | I29: 344.28 | J29: 901 | K29: 64.44 | L29: 35.56
B30: 2020 | C30: 1 | D30: -10622 | E30: -10675 | F30: -10675 | G30: -6.55 | H30: -6.58 | I30: -350.1 | J30: 194.52 | K30: -78.93 | L30: 178.93
B31: 2020 | C31: 2 | D31: 337 | E31: 286 | F31: 286 | G31: 0.2 | H31: 0.17 | I31: 10.06 | J31: -5.5 | K31: 1.65 | L31: 98.35
B32: 2020 | C32: 3 | D32: 11448 | E32: 11398 | F32: 11398 | G32: 6.58 | H32: 6.55 | I32: 77.48 | J32: 183.96 | K32: 43.6 | L32: 56.4
B33: 2020 | C33: 4 | D33: 2348 | E33: 2302 | F33: 2302 | G33: 1.24 | H33: 1.21 | I33: 13.73 | J33: 27.09 | K33: 6.56 | L33: 93.44
B34: 2020 | C34: 5 | D34: 2007 | E34: 1963 | F34: 1963 | G34: 0.98 | H34: 0.96 | I34: 10.51 | J34: 18.76 | K34: 4.96 | L34: 95.04
B35: 2020 | C35: 6 | D35: 3589 | E35: 3547 | F35: 3547 | G35: 1.55 | H35: 1.53 | I35: 15.83 | J35: 25.32 | K35: 6.4 | L35: 93.6
B36: 2020 | C36: 7 | D36: 8395 | E36: 8356 | F36: 8356 | G36: 3.45 | H36: 3.43 | I36: 27.02 | J36: 37.36 | K36: 14.95 | L36: 85.05
B37: 2020 | C37: 8 | D37: 14627 | E37: 14590 | F37: 14590 | G37: 6.06 | H37: 6.04 | I37: 32.01 | J37: 39.48 | K37: 24.03 | L37: 75.97
B38: 2020 | C38: 9 | D38: 5283 | E38: 5248 | F38: 5248 | G38: 2.34 | H38: 2.32 | I38: 10.37 | J38: 12.44 | K38: 10.66 | L38: 89.34
B39: 2020 | C39: 10 | D39: -14545 | E39: -14578 | F39: -14578 | G39: -6.7 | H39: -6.72 | I39: -39.95 | J39: -52.77 | K39: -31.19 | L39: 131.19
B40: 2020 | C40: 11 | D40: -12001 | E40: -12032 | F40: -12032 | G40: -5.23 | H40: -5.24 | I40: -49.17 | J40: -77.17 | K40: -30.82 | L40: 130.82
B41: 2020 | C41: 12 | D41: -6424 | E41: -6452 | F41: -6452 | G41: -3.05 | H41: -3.06 | I41: -63.64 | J41: -70.59 | K41: -18.09 | L41: 118.09
C44: Rok | D44: EBIT | E44: EBT | F44: EAT | P44: Rok | Q44: ROI | R44: ROA | S44: ROCE | T44: ROE
C45: 2018 | D45: =SUM(D6:D17) -> 8517.3 | E45: =SUM(E6:E17) -> 8436.18 | F45: =SUM(F6:F17) -> 6202.62 | P45: 2018 | Q45: =AVERAGE(G6:G17) -> -0.3216666667 | R45: =AVERAGE(H6:H17) -> -0.4408333333 | S45: =AVERAGE(I6:I17) -> -0.7075 | T45: =AVERAGE(J6:J17) -> 35.56416667
C46: 2019 | D46: =SUM(D18:D29) -> 1045 | E46: =SUM(E18:E29) -> 239 | F46: =SUM(F18:F29) -> -95.89 | P46: 2019 | Q46: =AVERAGE(G18:G29) -> -0.585 | R46: =AVERAGE(H18:H29) -> -0.6491666667 | S46: =AVERAGE(I18:I29) -> 73.19 | T46: =AVERAGE(J18:J29) -> 100.8183333
C47: 2020 | D47: =SUM(D30:D41) -> 4442 | E47: =SUM(E30:E41) -> 3953 | F47: =SUM(F30:F41) -> 3953 | P47: 2020 | Q47: =AVERAGE(G30:G41) -> 0.0725 | R47: =AVERAGE(H30:H41) -> 0.05083333333 | S47: =AVERAGE(I30:I41) -> -25.4875 | T47: =AVERAGE(J30:J41) -> 27.74166667

Sheet Zadlženosť
B2: Rok | C2: Mesiac | D2: Celková zadlženosť | E2: Koeficient samofinancovania | F2: Finančná páka | G2: Miera zadlženosti | H2: Úrokové krytie
B3: 2017 | C3: 10 | D3: 0.94 | E3: 0.06 | F3: 15.66 | G3: 14.66 | H3: žiadne nákladové úroky
B4: 2017 | C4: 11 | D4: 0.81 | E4: 0.19 | F4: 5.35 | G4: 4.35 | H4: žiadne nákladové úroky
B5: 2017 | C5: 12 | D5: 1.02 | E5: -0.02 | F5: -53.66 | G5: záporné vlastné imanie | H5: žiadne nákladové úroky
B6: 2018 | C6: 1 | D6: 0.81 | E6: 0.19 | F6: 5.16 | G6: 4.16 | H6: žiadne nákladové úroky
B7: 2018 | C7: 2 | D7: 0.84 | E7: 0.16 | F7: 6.4 | G7: 5.4 | H7: žiadne nákladové úroky
B8: 2018 | C8: 3 | D8: 0.87 | E8: 0.13 | F8: 7.49 | G8: 6.49 | H8: žiadne nákladové úroky
B9: 2018 | C9: 4 | D9: 0.9 | E9: 0.1 | F9: 9.62 | G9: 8.62 | H9: žiadne nákladové úroky
B10: 2018 | C10: 5 | D10: 0.92 | E10: 0.08 | F10: 11.9 | G10: 10.9 | H10: žiadne nákladové úroky
B11: 2018 | C11: 6 | D11: 1 | E11: 0 | F11: 237.36 | G11: 236.36 | H11: žiadne nákladové úroky
B12: 2018 | C12: 7 | D12: 1.04 | E12: -0.04 | F12: -23.35 | G12: záporné vlastné imanie | H12: žiadne nákladové úroky
B13: 2018 | C13: 8 | D13: 1 | E13: 0 | F13: 397.97 | G13: 396.97 | H13: žiadne nákladové úroky
B14: 2018 | C14: 9 | D14: 0.98 | E14: 0.02 | F14: 51.09 | G14: 50.09 | H14: žiadne nákladové úroky
B15: 2018 | C15: 10 | D15: 1.05 | E15: -0.05 | F15: -18.41 | G15: záporné vlastné imanie | H15: žiadne nákladové úroky
B16: 2018 | C16: 11 | D16: 1.08 | E16: -0.08 | F16: -12.03 | G16: záporné vlastné imanie | H16: žiadne nákladové úroky
B17: 2018 | C17: 12 | D17: 0.97 | E17: 0.03 | F17: 30.5 | G17: 29.5 | H17: 230.47
B18: 2019 | C18: 1 | D18: 1.03 | E18: -0.03 | F18: -36.63 | G18: záporné vlastné imanie | H18: záporný zisk
B19: 2019 | C19: 2 | D19: 1.01 | E19: -0.01 | F19: -66.98 | G19: záporné vlastné imanie | H19: 25.47
B20: 2019 | C20: 3 | D20: 1.12 | E20: -0.12 | F20: -8.13 | G20: záporné vlastné imanie | H20: záporný zisk
B21: 2019 | C21: 4 | D21: 1.16 | E21: -0.16 | F21: -6.15 | G21: záporné vlastné imanie | H21: záporný zisk
B22: 2019 | C22: 5 | D22: 1.2 | E22: -0.2 | F22: -5.12 | G22: záporné vlastné imanie | H22: záporný zisk
B23: 2019 | C23: 6 | D23: 1.23 | E23: -0.23 | F23: -4.44 | G23: záporné vlastné imanie | H23: záporný zisk
B24: 2019 | C24: 7 | D24: 1.27 | E24: -0.27 | F24: -3.73 | G24: záporné vlastné imanie | H24: záporný zisk
B25: 2019 | C25: 8 | D25: 1.3 | E25: -0.3 | F25: -3.33 | G25: záporné vlastné imanie | H25: záporný zisk
B26: 2019 | C26: 9 | D26: 1.24 | E26: -0.24 | F26: -4.17 | G26: záporné vlastné imanie | H26: 109.48
B27: 2019 | C27: 10 | D27: 1.25 | E27: -0.25 | F27: -4.04 | G27: záporné vlastné imanie | H27: záporný zisk
B28: 2019 | C28: 11 | D28: 1.37 | E28: -0.37 | F28: -2.73 | G28: záporné vlastné imanie | H28: záporný zisk
B29: 2019 | C29: 12 | D29: 0.97 | E29: 0.03 | F29: 32.79 | G29: 31.79 | H29: 856.82
B30: 2020 | C30: 1 | D30: 1.03 | E30: -0.03 | F30: -29.55 | G30: záporné vlastné imanie | H30: záporný zisk
B31: 2020 | C31: 2 | D31: 1.03 | E31: -0.03 | F31: -32.19 | G31: záporné vlastné imanie | H31: 6.61
B32: 2020 | C32: 3 | D32: 0.96 | E32: 0.04 | F32: 28.09 | G32: 27.09 | H32: 228.96
B33: 2020 | C33: 4 | D33: 0.96 | E33: 0.04 | F33: 22.35 | G33: 21.35 | H33: 51.04
B34: 2020 | C34: 5 | D34: 0.95 | E34: 0.05 | F34: 19.59 | G34: 18.59 | H34: 45.61
B35: 2020 | C35: 6 | D35: 0.94 | E35: 0.06 | F35: 16.57 | G35: 15.57 | H35: 85.45
B36: 2020 | C36: 7 | D36: 0.91 | E36: 0.09 | F36: 10.88 | G36: 9.88 | H36: 215.26
B37: 2020 | C37: 8 | D37: 0.85 | E37: 0.15 | F37: 6.53 | G37: 5.53 | H37: 395.32
B38: 2020 | C38: 9 | D38: 0.81 | E38: 0.19 | F38: 5.36 | G38: 4.36 | H38: 150.94
B39: 2020 | C39: 10 | D39: 0.87 | E39: 0.13 | F39: 7.86 | G39: 6.86 | H39: záporný zisk
B40: 2020 | C40: 11 | D40: 0.93 | E40: 0.07 | F40: 14.64 | G40: 13.64 | H40: záporný zisk
B41: 2020 | C41: 12 | D41: 0.96 | E41: 0.04 | F41: 23.06 | G41: 22.06 | H41: záporný zisk

Sheet Aktivita
B2: Rok | C2: Mesiac | D2: Viazanosť celkových aktív | E2: Obrat celkových aktív | F2: Doba obratu celkových aktív | G2: Obrat neobežného majetku | H2: Doba obratu neobežného majetku | I2: Obrat obežného majetku | J2: Doba obratu obežného majetku | K2: Doba obratu záväzkov | L2: Doba obratu pohľadávok
B3: 2017 | C3: 10 | D3: 0.33 | E3: 3.01 | F3: 119.59 | G3: žiaden neobežný majetok | H3: 0 | I3: 3.01 | J3: 119.59 | K3: 111.62 | L3: 98.36
B4: 2017 | C4: 11 | D4: 0.42 | E4: 2.4 | F4: 150.3 | G4: žiaden neobežný majetok | H4: 0 | I4: 2.4 | J4: 150.3 | K4: 121.8 | L4: 103.63
B5: 2017 | C5: 12 | D5: 0.47 | E5: 2.13 | F5: 168.64 | G5: žiaden neobežný majetok | H5: 0 | I5: 2.13 | J5: 168.64 | K5: 164.11 | L5: 148.1
B6: 2018 | C6: 1 | D6: 0.69 | E6: 1.44 | F6: 250.12 | G6: 4.01 | H6: 89.71 | I6: 2.24 | J6: 160.41 | K6: 198.63 | L6: 151.1
B7: 2018 | C7: 2 | D7: 0.65 | E7: 1.54 | F7: 233.92 | G7: 4.08 | H7: 88.22 | I7: 2.47 | J7: 145.7 | K7: 194.34 | L7: 89.79
B8: 2018 | C8: 3 | D8: 0.56 | E8: 1.78 | F8: 202.12 | G8: 3.15 | H8: 114.13 | I8: 4.09 | J8: 87.98 | K8: 172.78 | L8: 57.9
B9: 2018 | C9: 4 | D9: 0.56 | E9: 1.79 | F9: 201.41 | G9: 3.21 | H9: 112.16 | I9: 4.03 | J9: 89.25 | K9: 178.12 | L9: 81.58
B10: 2018 | C10: 5 | D10: 0.47 | E10: 2.14 | F10: 168.13 | G10: 3.27 | H10: 110.18 | I10: 6.21 | J10: 57.95 | K10: 151.61 | L10: 43.29
B11: 2018 | C11: 6 | D11: 0.47 | E11: 2.12 | F11: 169.43 | G11: 3.33 | H11: 108.21 | I11: 5.88 | J11: 61.22 | K11: 166.28 | L11: 50.41
B12: 2018 | C12: 7 | D12: 0.54 | E12: 1.86 | F12: 193.19 | G12: 2.75 | H12: 131.02 | I12: 5.79 | J12: 62.17 | K12: 199 | L12: 47.07
B13: 2018 | C13: 8 | D13: 0.59 | E13: 1.69 | F13: 212.54 | G13: 2.8 | H13: 128.62 | I13: 4.29 | J13: 83.91 | K13: 209.49 | L13: 66.3
B14: 2018 | C14: 9 | D14: 0.61 | E14: 1.65 | F14: 218.25 | G14: 2.85 | H14: 126.23 | I14: 3.91 | J14: 92.02 | K14: 211.42 | L14: 81.77
B15: 2018 | C15: 10 | D15: 0.51 | E15: 1.95 | F15: 184.64 | G15: 2.91 | H15: 123.83 | I15: 5.92 | J15: 60.81 | K15: 192.07 | L15: 41.31
B16: 2018 | C16: 11 | D16: 0.67 | E16: 1.49 | F16: 241.91 | G16: 2.08 | H16: 172.85 | I16: 5.21 | J16: 69.06 | K16: 215.27 | L16: 52.51
B17: 2018 | C17: 12 | D17: 0.81 | E17: 1.23 | F17: 292 | G17: 2.12 | H17: 169.52 | I17: 2.94 | J17: 122.48 | K17: 233.81 | L17: 108.62
B18: 2019 | C18: 1 | D18: 0.67 | E18: 1.49 | F18: 240.88 | G18: 2.5 | H18: 143.89 | I18: 3.71 | J18: 96.99 | K18: 209.86 | L18: 89.83
B19: 2019 | C19: 2 | D19: 0.67 | E19: 1.49 | F19: 242.26 | G19: 2.56 | H19: 140.88 | I19: 3.55 | J19: 101.38 | K19: 209.26 | L19: 93.58
B20: 2019 | C20: 3 | D20: 0.6 | E20: 1.67 | F20: 215.72 | G20: 2.61 | H20: 137.87 | I20: 4.62 | J20: 77.85 | K20: 207.4 | L20: 71.04
B21: 2019 | C21: 4 | D21: 0.6 | E21: 1.67 | F21: 215.89 | G21: 2.67 | H21: 134.86 | I21: 4.44 | J21: 81.03 | K21: 217.1 | L21: 73.87
B22: 2019 | C22: 5 | D22: 0.57 | E22: 1.75 | F22: 205.15 | G22: 2.73 | H22: 131.85 | I22: 4.91 | J22: 73.3 | K22: 212.32 | L22: 67.14
B23: 2019 | C23: 6 | D23: 0.55 | E23: 1.83 | F23: 196.68 | G23: 2.79 | H23: 128.84 | I23: 5.31 | J23: 67.85 | K23: 209.11 | L23: 59.97
B24: 2019 | C24: 7 | D24: 0.56 | E24: 1.79 | F24: 200.57 | G24: 2.86 | H24: 125.83 | I24: 4.82 | J24: 74.74 | K24: 223.46 | L24: 70.28
B25: 2019 | C25: 8 | D25: 0.54 | E25: 1.87 | F25: 192.82 | G25: 2.93 | H25: 122.82 | I25: 5.14 | J25: 70 | K25: 220.79 | L25: 68.4
B26: 2019 | C26: 9 | D26: 0.55 | E26: 1.82 | F26: 197.29 | G26: 3 | H26: 119.81 | I26: 4.65 | J26: 77.49 | K26: 215.69 | L26: 71.97
B27: 2019 | C27: 10 | D27: 0.58 | E27: 1.71 | F27: 210.17 | G27: 2.9 | H27: 124.03 | I27: 4.18 | J27: 86.14 | K27: 234.32 | L27: 76.43
B28: 2019 | C28: 11 | D28: 0.49 | E28: 2.02 | F28: 178.08 | G28: 2.98 | H28: 120.9 | I28: 6.3 | J28: 57.19 | K28: 216.41 | L28: 54.01
B29: 2019 | C29: 12 | D29: 0.74 | E29: 1.35 | F29: 267.08 | G29: 3.06 | H29: 117.76 | I29: 2.41 | J29: 149.32 | K29: 244.47 | L29: 146.47
B30: 2020 | C30: 1 | D30: 0.34 | E30: 2.93 | F30: 123.04 | G30: 6.5 | H30: 55.38 | I30: 5.32 | J30: 67.67 | K30: 120.74 | L30: 62.26
B31: 2020 | C31: 2 | D31: 0.35 | E31: 2.83 | F31: 127.06 | G31: 6.68 | H31: 53.86 | I31: 4.92 | J31: 73.2 | K31: 124.52 | L31: 70.59
B32: 2020 | C32: 3 | D32: 0.37 | E32: 2.73 | F32: 132.03 | G32: 6.88 | H32: 52.35 | I32: 4.52 | J32: 79.68 | K32: 120.82 | L32: 72.17
B33: 2020 | C33: 4 | D33: 0.4 | E33: 2.5 | F33: 144.1 | G33: 7.08 | H33: 50.84 | I33: 3.86 | J33: 93.26 | K33: 131.12 | L33: 80.9
B34: 2020 | C34: 5 | D34: 0.43 | E34: 2.31 | F34: 155.52 | G34: 7.3 | H34: 49.32 | I34: 3.39 | J34: 106.19 | K34: 141.02 | L34: 87.05
B35: 2020 | C35: 6 | D35: 0.49 | E35: 2.04 | F35: 176.13 | G35: 7.53 | H35: 47.81 | I35: 2.81 | J35: 128.33 | K35: 158.93 | L35: 113.45
B36: 2020 | C36: 7 | D36: 0.51 | E36: 1.95 | F36: 184.58 | G36: 7.78 | H36: 46.29 | I36: 2.6 | J36: 138.29 | K36: 161.01 | L36: 136.65
B37: 2020 | C37: 8 | D37: 0.51 | E37: 1.97 | F37: 183.21 | G37: 8.04 | H37: 44.78 | I37: 2.6 | J37: 138.42 | K37: 148.54 | L37: 128
B38: 2020 | C38: 9 | D38: 0.48 | E38: 2.1 | F38: 171.65 | G38: 8.32 | H38: 43.27 | I38: 2.8 | J38: 128.38 | K38: 132.98 | L38: 118.46
B39: 2020 | C39: 10 | D39: 0.46 | E39: 2.19 | F39: 164.63 | G39: 8.62 | H39: 41.75 | I39: 2.93 | J39: 122.88 | K39: 137.01 | L39: 115.51
B40: 2020 | C40: 11 | D40: 0.48 | E40: 2.07 | F40: 174.05 | G40: 8.95 | H40: 40.24 | I40: 2.69 | J40: 133.81 | K40: 155.54 | L40: 90.39
B41: 2020 | C41: 12 | D41: 0.44 | E41: 2.25 | F41: 159.92 | G41: 9.3 | H41: 38.73 | I41: 2.97 | J41: 121.2 | K41: 149.66 | L41: 107.29

Sheet Produktivita práce
B2: Rok | C2: Mesiac | D2: Mzdová produktivita | E2: Produktivita práce z tržieb | F2: Priemerná mesačná mzda
B3: 2017 | C3: 10 | D3: 0 | E3: 0 | F3: 461.97
B4: 2017 | C4: 11 | D4: 4.56 | E4: 2445.43 | F4: 461.97
B5: 2017 | C5: 12 | D5: 7.91 | E5: 4865.71 | F5: 461.97
B6: 2018 | C6: 1 | D6: 14.43 | E6: 7733.53 | F6: 681.95
B7: 2018 | C7: 2 | D7: 2.69 | E7: 1348.08 | F7: 681.95
B8: 2018 | C8: 3 | D8: 3.7 | E8: 1889.54 | F8: 681.95
B9: 2018 | C9: 4 | D9: 3.38 | E9: 1725.41 | F9: 681.95
B10: 2018 | C10: 5 | D10: 2.73 | E10: 1686.03 | F10: 681.95
B11: 2018 | C11: 6 | D11: 3.13 | E11: 2202.04 | F11: 681.95
B12: 2018 | C12: 7 | D12: 2.88 | E12: 2273.28 | F12: 681.95
B13: 2018 | C13: 8 | D13: 4.96 | E13: 3929.31 | F13: 681.95
B14: 2018 | C14: 9 | D14: 4.31 | E14: 3392.55 | F14: 681.95
B15: 2018 | C15: 10 | D15: 2.18 | E15: 1880.64 | F15: 681.95
B16: 2018 | C16: 11 | D16: 2.71 | E16: 2246.82 | F16: 681.95
B17: 2018 | C17: 12 | D17: 12.66 | E17: 9419.54 | F17: 681.95
B18: 2019 | C18: 1 | D18: 3.33 | E18: 1056.33 | F18: 663.38
B19: 2019 | C19: 2 | D19: 5.24 | E19: 2833.33 | F19: 663.38
B20: 2019 | C20: 3 | D20: 0.38 | E20: 218.5 | F20: 663.38
B21: 2019 | C21: 4 | D21: 4.16 | E21: 2495.83 | F21: 663.38
B22: 2019 | C22: 5 | D22: 3.15 | E22: 1921.67 | F22: 663.38
B23: 2019 | C23: 6 | D23: 3.23 | E23: 1931 | F23: 663.38
B24: 2019 | C24: 7 | D24: 5.7 | E24: 3419.83 | F24: 663.38
B25: 2019 | C25: 8 | D25: 3.07 | E25: 2280.83 | F25: 663.38
B26: 2019 | C26: 9 | D26: 5.21 | E26: 3864 | F26: 663.38
B27: 2019 | C27: 10 | D27: 5.34 | E27: 3972.67 | F27: 663.38
B28: 2019 | C28: 11 | D28: 2.48 | E28: 2121.33 | F28: 663.38
B29: 2019 | C29: 12 | D29: 11.69 | E29: 12088.17 | F29: 663.38
B30: 2020 | C30: 1 | D30: 2.68 | E30: 1932.14 | F30: 809.74
B31: 2020 | C31: 2 | D31: 3.05 | E31: 2483.29 | F31: 809.74
B32: 2020 | C32: 3 | D32: 5.66 | E32: 3735 | F32: 809.74
B33: 2020 | C33: 4 | D33: 6.07 | E33: 5015 | F33: 809.74
B34: 2020 | C34: 5 | D34: 6.89 | E34: 5657.14 | F34: 809.74
B35: 2020 | C35: 6 | D35: 11.18 | E35: 7913.86 | F35: 809.74
B36: 2020 | C36: 7 | D36: 8.84 | E36: 7986.71 | F36: 809.74
B37: 2020 | C37: 8 | D37: 9.5 | E37: 8672.29 | F37: 809.74
B38: 2020 | C38: 9 | D38: 8.63 | E38: 7035.86 | F38: 809.74
B39: 2020 | C39: 10 | D39: 9.47 | E39: 6678 | F39: 809.74
B40: 2020 | C40: 11 | D40: 7.67 | E40: 5577.43 | F40: 809.74
B41: 2020 | C41: 12 | D41: 4.62 | E41: 5096 | F41: 809.74

Sheet EVA
B2: Rok | C2: Mesiac | D2: EVA
B3: 2017 | C3: 10
B4: 2017 | C4: 11
B5: 2017 | C5: 12
B6: 2018 | C6: 1 | D6: 19184.64
B7: 2018 | C7: 2 | D7: -7218.45
B8: 2018 | C8: 3 | D8: -5652.58
B9: 2018 | C9: 4 | D9: -3801.54
B10: 2018 | C10: 5 | D10: -3740.93
B11: 2018 | C11: 6 | D11: -5888.72
B12: 2018 | C12: 7 | D12: záporné vlastné imanie
B13: 2018 | C13: 8 | D13: 3810.28
B14: 2018 | C14: 9 | D14: 1393.6
B15: 2018 | C15: 10 | D15: záporné vlastné imanie
B16: 2018 | C16: 11 | D16: záporné vlastné imanie
B17: 2018 | C17: 12 | D17: 7832.86
B18: 2019 | C18: 1 | D18: záporné vlastné imanie
B19: 2019 | C19: 2 | D19: záporné vlastné imanie
B20: 2019 | C20: 3 | D20: záporné vlastné imanie
B21: 2019 | C21: 4 | D21: záporné vlastné imanie
B22: 2019 | C22: 5 | D22: záporné vlastné imanie
B23: 2019 | C23: 6 | D23: záporné vlastné imanie
B24: 2019 | C24: 7 | D24: záporné vlastné imanie
B25: 2019 | C25: 8 | D25: záporné vlastné imanie
B26: 2019 | C26: 9 | D26: záporné vlastné imanie
B27: 2019 | C27: 10 | D27: záporné vlastné imanie
B28: 2019 | C28: 11 | D28: záporné vlastné imanie
B29: 2019 | C29: 12 | D29: 32365.05
B30: 2020 | C30: 1 | D30: záporné vlastné imanie
B31: 2020 | C31: 2 | D31: záporné vlastné imanie
B32: 2020 | C32: 3 | D32: 4474.32
B33: 2020 | C33: 4 | D33: -2628.88
B34: 2020 | C34: 5 | D34: -2936.57
B35: 2020 | C35: 6 | D35: -1883.49
B36: 2020 | C36: 7 | D36: 1314.65
B37: 2020 | C37: 8 | D37: 4936.93
B38: 2020 | C38: 9 | D38: -2811.63
B39: 2020 | C39: 10 | D39: -16859.95
B40: 2020 | C40: 11 | D40: -13488.99
B41: 2020 | C41: 12 | D41: -8200.96

Sheet Tržby
B2: Rok / mesiac | C2: 0 | D2: 1 | E2: 2 | F2: 3 | G2: 4 | H2: 5 | I2: 6 | J2: 7 | K2: 8 | L2: 9 | M2: 10 | N2: 11 | O2: 12
B3: 2018 | C3: 0 | D3: 38667.64 | E3: 45408 | F3: 54856 | G3: 63483 | H3: 71913 | I3: 82923 | J3: 94289 | K3: 113936 | L3: 130899 | M3: 140302 | N3: 151536 | O3: 198634
B4: 2019 | C4: 0 | D4: 6338 | E4: 23338 | F4: 24649 | G4: 39624 | H4: 51154 | I4: 62740 | J4: 83259 | K4: 96944 | L4: 120128 | M4: 143964 | N4: 156692 | O4: 229221
B5: 2020 | C5: 0 | D5: 13525 | E5: 30908 | F5: 57053 | G5: 92158 | H5: 131758 | I5: 187155 | J5: 243062 | K5: 303768 | L5: 353019 | M5: 399765 | N5: 438807 | O5: 474479

Sheet Šablóna
B2: Označenie | C2: AKTÍVA | D2: Číslo | E2: V bežnom účtovnom období (NETTO)
B3: a | C3: b | D3: riadku | E3: Január | F3: Február | G3: Marec | H3: Apríl | I3: Máj | J3: Jún | K3: Júl | L3: August | M3: September | N3: Október | O3: November | P3: December
D4: c
C5: SPOLU MAJETOK r. 02 + r. 33 + r. 74 | D5: 1 | E5: =SUM(E6+E37+E78) -> 0 | F5: =SUM(F6+F37+F78) -> 0 | G5: 0 | H5: 0 | I5: 0 | J5: 0 | K5: 0 | L5: 0 | M5: 0 | N5: 0 | O5: 0 | P5: 0
B6: A | C6: Neobežný majetok r. 03 + r. 11 + r. 21 | D6: 2 | E6: =SUM(E7+E15+E25) -> 0 | F6: =SUM(F7+F15+F25) -> 0 | G6: 0 | H6: 0 | I6: 0 | J6: 0 | K6: 0 | L6: 0 | M6: 0 | N6: 0 | O6: 0 | P6: 0
B7: A.I. | C7: Dlhodobý nehmotný majetok súčet (r. 04 až r. 10) | D7: 3 | E7: =SUM(E8:E14) -> 0 | F7: =SUM(F8:F14) -> 0 | G7: 0 | H7: 0 | I7: 0 | J7: 0 | K7: 0 | L7: 0 | M7: 0 | N7: 0 | O7: 0 | P7: 0
B8: A.I.1. | C8: Aktivované náklady na vývoj (012) - /072, 091A/ | D8: 4
B9: 2. | C9: Softvér (013) - /073, 091A/ | D9: 5
B10: 3. | C10: Oceniteľné práva (014) - /074, 091A/ | D10: 6
B11: 4. | C11: Goodwill (015) - /075, 091A/ | D11: 7
B12: 5. | C12: Ostatný dlhodobý nehmotný majetok (019, 01X) - /079, 07X, 091A/ | D12: 8
B13: 6. | C13: Obstarávaný dlhodobý nehmotný majetok (041) - /093/ | D13: 9
B14: 7. | C14: Poskytnuté preddavky na dlhodobý nehmotný majetok (051) - /095A/ | D14: 10
B15: A.II. | C15: Dlhodobý hmotný majetok súčet (r. 12 až r. 20) | D15: 11 | E15: =SUM(E16:E24) -> 0 | F15: =SUM(F16:F24) -> 0 | G15: 0 | H15: 0 | I15: 0 | J15: 0 | K15: 0 | L15: 0 | M15: 0 | N15: 0 | O15: 0 | P15: 0
B16: A.II.1. | C16: Pozemky (031) - /092A/ | D16: 12
B17: 2. | C17: Stavby (021) - /081, 092A/ | D17: 13
B18: 3. | C18: Samostatné hnuteľné veci a súbory hnuteľných vecí (022) - /082, 092A/ | D18: 14
B19: 4. | C19: Pestovateľské celky trvalých porastov (025) - /085, 092A/ | D19: 15
B20: 5. | C20: Základné stádo a ťažné zvieratá (026) - /086, 092A/ | D20: 16
B21: 6. | C21: Ostatný dlhodobý hmotný majetok (029, 02X, 032) - /089, 08X, 092A/ | D21: 17
B22: 7. | C22: Obstarávaný dlhodobý hmotný majetok (042) - /094/ | D22: 18
B23: 8. | C23: Poskytnuté preddavky na dlhodobý hmotný majetok (052) - /095A/ | D23: 19
B24: 9. | C24: Opravná položka k nadobudnutému majetku (+/- 097) +/- 098 | D24: 20
B25: A.III. | C25: Dlhodobý finančný majetok súčet (r. 22 až r. 32) | D25: 21 | E25: =SUM(E26:E36) -> 0 | F25: =SUM(F26:F36) -> 0 | G25: 0 | H25: 0 | I25: 0 | J25: 0 | K25: 0 | L25: 0 | M25: 0 | N25: 0 | O25: 0 | P25: 0
B26: A.III.1. | C26: Podielové cenné papiere a podiely v prepojených účtovných jednotkách (061A, 062A, 063A) - /096A/ | D26: 22
B27: 2. | C27: Podielové cenné papiere a podiely s podielovou účasťou okrem v prepojených účtovných jednotkách (062A) - /096A/ | D27: 23
B28: 3. | C28: Ostatné realizovateľné cenné papiere a podiely (063A) - /096A/ | D28: 24
B29: 4. | C29: Pôžičky prepojeným účtovným jednotkám (066A) - /096A/ | D29: 25
B30: 5. | C30: Pôžičky v rámci podielovej účasti okrem prepojeným účtovným jednotkám (066A) - /096A/ | D30: 26
B31: 6. | C31: Ostatné pôžičky (067A) - /096A/ | D31: 27
B32: 7. | C32: Dlhové cenné papiere a ostatný dlhodobý finančný majetok (065A, 069A, 06XA) - /096A/ | D32: 28
B33: 8. | C33: Pôžičky a ostatný dlhodobý finančný majetok so zostatkovou dobou splatnosti najviac jeden rok (066A, 067A, 069A, 06XA) - /096A/ | D33: 29
B34: 9. | C34: Účty v bankách s dobou viazanosti dlhšou ako jeden rok (22XA) | D34: 30
B35: 10. | C35: Obstarávaný dlhodobý finančný majetok (043) - /096A/ | D35: 31
B36: 11. | C36: Poskytnuté preddavky na dlhodobý finančný majetok (053) - /095A/ | D36: 32
B37: B. | C37: Obežný majetok r. 34 + r. 41 + r. 53 + r. 66 + r. 71 | D37: 33 | E37: =E38+E45+E57+E70+E75 -> 0 | F37: =F38+F45+F57+F70+F75 -> 0 | G37: 0 | H37: 0 | I37: 0 | J37: 0 | K37: 0 | L37: 0 | M37: 0 | N37: 0 | O37: 0 | P37: 0
B38: B.I. | C38: Zásoby súčet (r. 35 až r. 40) | D38: 34 | E38: =SUM(E39:E44) -> 0 | F38: =SUM(F39:F44) -> 0 | G38: 0 | H38: 0 | I38: 0 | J38: 0 | K38: 0 | L38: 0 | M38: 0 | N38: 0 | O38: 0 | P38: 0
B39: B.I.1. | C39: Materiál (112, 119, 11X) - /191, 19X/ | D39: 35
B40: 2. | C40: Nedokončená výroba a polotovary vlastnej výroby (121, 122, 12X) - /192, 193, 19X/ | D40: 36
B41: 3. | C41: Výrobky (123) - /194/ | D41: 37
B42: 4. | C42: Zvieratá (124) - /195/ | D42: 38
B43: 5. | C43: Tovar (132, 133, 13X, 139) - /196, 19X/ | D43: 39
B44: 6. | C44: Poskytnuté preddavky na zásoby (314A) - /391A/ | D44: 40
B45: B.II. | C45: Dlhodobé pohľadávky súčet (r. 42 + r. 46 až r. 52) | D45: 41 | E45: =SUM(E46+E50+E51+E52+E53+E54+E55+E56) -> 0 | F45: =SUM(F46+F50+F51+F52+F53+F54+F55+F56) -> 0 | G45: 0 | H45: 0 | I45: 0 | J45: 0 | K45: 0 | L45: 0 | M45: 0 | N45: 0 | O45: 0 | P45: 0
B46: B.II.1. | C46: Pohľadávky z obchodného styku súčet (r. 43 až r. 45) | D46: 42 | E46: =SUM(E47:E49) -> 0 | F46: =SUM(F47:F49) -> 0 | G46: 0 | H46: 0 | I46: 0 | J46: 0 | K46: 0 | L46: 0 | M46: 0 | N46: 0 | O46: 0 | P46: 0
B47: 1.a. | C47: Pohľadávky z obchodného styku voči prepojeným účtovným jednotkám (311A, 312A, 313A, 314A, 315A, 31XA) - /391A/ | D47: 43
B48: 1.b. | C48: Pohľadávky z obchodného styku v rámci podielovej účasti okrem pohľadávok voči prepojeným účtovným jednotkám (311A, 312A, 313A, 314A, 315A, 31XA) - /391A/ | D48: 44
B49: 1.c. | C49: Ostatné pohľadávky z obchodného styku (311A, 312A, 313A, 314A, 315A, 31XA) - /391A/ | D49: 45
B50: 2. | C50: Čistá hodnota zákazky (316A) | D50: 46
B51: 3. | C51: Ostatné pohľadávky voči prepojeným účtovným jednotkám (351A) - /391A/ | D51: 47
B52: 4. | C52: Ostatné pohľadávky v rámci podielovej účasti okrem pohľadávok voči prepojeným účtovným jednotkám (351A) - /391A/ | D52: 48
B53: 5. | C53: Pohľadávky voči spoločníkom, členom a združeniu (354A, 355A, 358A, 35XA) - /391A/ | D53: 49
B54: 6. | C54: Pohľadávky z derivátových operácií (373A, 376A) | D54: 50
B55: 7. | C55: Iné pohľadávky (335A, 336A, 33XA, 371A, 374A, 375A, 378A) - /391A/ | D55: 51
B56: 8. | C56: Odložená daňová pohľadávka (481A) | D56: 52
B57: B.III. | C57: Krátkodobé pohľadávky súčet (r. 54 + r. 58 až r. 65) | D57: 53 | E57: =SUM(E58,E62:E69) -> 0 | F57: =SUM(F58,F62:F69) -> 0 | G57: =SUM(G58,G62:G69) -> 0 | H57: 0 | I57: 0 | J57: 0 | K57: 0 | L57: 0 | M57: 0 | N57: 0 | O57: 0 | P57: 0
B58: B.III.1. | C58: Pohľadávky z obchodného styku súčet (r. 55 až r. 57) | D58: 54 | E58: =SUM(E59:E61) -> 0 | F58: =SUM(F59:F61) -> 0 | G58: 0 | H58: 0 | I58: 0 | J58: 0 | K58: 0 | L58: 0 | M58: 0 | N58: 0 | O58: 0 | P58: 0
B59: 1.a. | C59: Pohľadávky z obchodného styku voči prepojeným účtovným jednotkám (311A, 312A, 313A, 314A, 315A, 31XA) - /391A/ | D59: 55
B60: 1.b. | C60: Pohľadávky z obchodného styku v rámci podielovej účasti okrem pohľadávok voči prepojeným účtovným jednotkám (311A, 312A, 313A, 314A, 315A, 31XA) - /391A/ | D60: 56
B61: 1.c. | C61: Ostatné pohľadávky z obchodného styku (311A, 312A, 313A, 314A, 315A, 31XA) - /391A/ | D61: 57
B62: 2. | C62: Čistá hodnota zákazky (316A) | D62: 58
B63: 3. | C63: Ostatné pohľadávky voči prepojeným účtovným jednotkám (351A) - /391A/ | D63: 59
B64: 4. | C64: Ostatné pohľadávky v rámci podielovej účasti okrem pohľadávok voči prepojeným účtovným jednotkám (351A) - /391A/ | D64: 60
B65: 5. | C65: Pohľadávky voči spoločníkom, členom a združeniu (354A, 355A, 358A, 35XA, 398A) - /391A/ | D65: 61
B66: 6. | C66: Sociálne poistenie (336A) - /391A/ | D66: 62
B67: 7. | C67: Daňové pohľadávky a dotácie (341, 342, 343, 345, 346, 347) - /391A/ | D67: 63
B68: 8. | C68: Pohľadávky z derivátových operácií (373A, 376A) | D68: 64
B69: 9. | C69: Iné pohľadávky (335A, 33XA, 371A, 374A, 375A, 378A) - /391A/ | D69: 65
B70: B.IV. | C70: Krátkodobý finančný majetok súčet (r. 67 až r. 70) | D70: 66 | E70: =SUM(E71:E74) -> 0 | F70: =SUM(F71:F74) -> 0 | G70: 0 | H70: 0 | I70: 0 | J70: 0 | K70: 0 | L70: 0 | M70: 0 | N70: 0 | O70: 0 | P70: 0
B71: B.IV.1. | C71: Krátkodobý finančný majetok v prepojených účtovných jednotkách (251A, 253A, 256A, 257A, 25XA) - /291A, 29XA/ | D71: 67
B72: 2 | C72: Krátkodobý finančný majetok bez krátkodobého finančného majetku v prepojených účtovných jednotkách (251A, 253A, 256A, 257A, 25XA) - /291A, 29XA/ | D72: 68
B73: 3. | C73: Vlastné akcie a vlastné obchodné podiely (252) | D73: 69
B74: 4. | C74: Obstarávaný krátkodobý finančný majetok (259, 314A) - /291A/ | D74: 70
B75: B.V. | C75: Finančné účty r. 72 + r. 73 | D75: 71 | E75: =SUM(E76:E77) -> 0 | F75: =SUM(F76:F77) -> 0 | G75: 0 | H75: 0 | I75: 0 | J75: 0 | K75: 0 | L75: 0 | M75: 0 | N75: 0 | O75: 0 | P75: 0
B76: B.V.1. | C76: Peniaze (211, 213, 21X) | D76: 72
B77: 2. | C77: Účty v bankách (221A, 22X, +/- 261) | D77: 73
B78: C. | C78: Časové rozlíšenie súčet (r. 75 až r. 78) | D78: 74 | E78: =SUM(E79:E82) -> 0 | F78: =SUM(F79:F82) -> 0 | G78: 0 | H78: 0 | I78: 0 | J78: 0 | K78: 0 | L78: 0 | M78: 0 | N78: 0 | O78: 0 | P78: 0
B79: C.1. | C79: Náklady budúcich období dlhodobé (381A, 382A) | D79: 75
B80: 2. | C80: Náklady budúcich období krátkodobé (381A, 382A) | D80: 76
B81: 3. | C81: Príjmy budúcich období dlhodobé (385A) | D81: 77
B82: 4. | C82: Príjmy budúcich období krátkodobé (385A) | D82: 78
B84: Označenie | C84: PASÍVA | D84: Číslo | E84: V bežnom účtovnom období (NETTO)
B85: a | C85: b | D85: riadku | E85: Január | F85: Február | G85: Marec | H85: Apríl | I85: Máj | J85: Jún | K85: Júl | L85: August | M85: September | N85: Október | O85: November | P85: December
D86: c
C87: SPOLU VLASTNÉ IMANIE A ZÁVÄZKY r. 80 + r. 101 + r. 141 | D87: 79 | E87: =SUM(E88,E109,E149) -> 0 | F87: =SUM(F88,F109,F149) -> 0 | G87: 0 | H87: 0 | I87: 0 | J87: 0 | K87: 0 | L87: 0 | M87: 0 | N87: 0 | O87: 0 | P87: 0
B88: A. | C88: Vlastné imanie r. 81 + r. 85 + r. 86 + r. 87 + r. 90 + r. 93 + r. 97 + r. 100 | D88: 80 | E88: =E89+E93+E94+E95+E98+E101+E105+E108 -> 0 | F88: =F89+F93+F94+F95+F98+F101+F105+F108 -> 0 | G88: =G89+G93+G94+G95+G98+G101+G105+G108 -> 0 | H88: 0 | I88: 0 | J88: 0 | K88: 0 | L88: 0 | M88: 0 | N88: 0 | O88: 0 | P88: 0
B89: A.I. | C89: Základné imanie súčet (r. 82 až r. 84) | D89: 81 | E89: =SUM(E90:E92) -> 0 | F89: =SUM(F90:F92) -> 0 | G89: 0 | H89: 0 | I89: 0 | J89: 0 | K89: 0 | L89: 0 | M89: 0 | N89: 0 | O89: 0 | P89: 0
B90: A.I.1. | C90: Základné imanie (411 alebo +/- 491) | D90: 82
B91: 2. | C91: Zmena základného imania +/- 419 | D91: 83
B92: 3. | C92: Pohľadávky za upísané vlastné imanie (/-/353) | D92: 84
B93: A.II. | C93: Emisné ážio (412) | D93: 85
B94: A.III. | C94: Ostatné kapitálové fondy (413) | D94: 86
B95: A.IV. | C95: Zákonné rezervné fondy r. 88 + r. 89 | D95: 87 | E95: =SUM(E96:E97) -> 0 | F95: =SUM(F96:F97) -> 0 | G95: 0 | H95: 0 | I95: 0 | J95: 0 | K95: 0 | L95: 0 | M95: 0 | N95: 0 | O95: 0 | P95: 0
B96: A.IV.1. | C96: Zákonný rezervný fond a nedeliteľný fond (417A, 418, 421A, 422) | D96: 88
B97: 2. | C97: Rezervný fond na vlastné akcie a vlastné podiely (417A, 421A) | D97: 89
B98: A.V. | C98: Ostatné fondy zo zisku r. 91 + r. 92 | D98: 90 | E98: =SUM(E99:E100) -> 0 | F98: =SUM(F99:F100) -> 0 | G98: 0 | H98: 0 | I98: 0 | J98: 0 | K98: 0 | L98: 0 | M98: 0 | N98: 0 | O98: 0 | P98: 0
B99: A.V.1. | C99: Štatutárne fondy (423, 42X) | D99: 91
B100: 2. | C100: Ostatné fondy (427, 42X) | D100: 92
B101: A.VI. | C101: Oceňovacie rozdiely z precenenia súčet (r. 94 až r. 96) | D101: 93 | E101: =SUM(E102:E104) -> 0 | F101: =SUM(F102:F104) -> 0 | G101: 0 | H101: 0 | I101: 0 | J101: 0 | K101: 0 | L101: 0 | M101: 0 | N101: 0 | O101: 0 | P101: 0
B102: A.VI.1. | C102: Oceňovacie rozdiely z precenenia majetku a záväzkov (+/- 414) | D102: 94
B103: 2. | C103: Oceňovacie rozdiely z kapitálových účastín (+/- 415) | D103: 95
B104: 3. | C104: Oceňovacie rozdiely z precenenia pri zlúčení, splynutí a rozdelení (+/- 416) | D104: 96
B105: A.VII. | C105: Výsledok hospodárenia minulých rokov r. 98 + r. 99 | D105: 97 | E105: =SUM(E106:E107) -> 0 | F105: =SUM(F106:F107) -> 0 | G105: 0 | H105: 0 | I105: 0 | J105: 0 | K105: 0 | L105: 0 | M105: 0 | N105: 0 | O105: 0 | P105: 0
B106: A.VII.1. | C106: Nerozdelený zisk minulých rokov (428) | D106: 98
B107: 2. | C107: Neuhradená strata minulých rokov (/-/429) | D107: 99
B108: A.VIII. | C108: Výsledok hospodárenia za účtovné obdobie po zdanení /+-/ r. 01 - (r. 81 + r. 85 + r. 86 + r. 87 + r. 90 + r. 93 + r. 97 + r. 101 + r. 141) | D108: 100 | E108: =E5-(E89+E93+E94+E95+E98+E101+E105+E109+E149) -> 0 | F108: =F5-(F89+F93+F94+F95+F98+F101+F105+F109+F149) -> 0 | G108: =G5-(G89+G93+G94+G95+G98+G101+G105+G109+G149) -> 0 | H108: 0 | I108: 0 | J108: 0 | K108: 0 | L108: 0 | M108: 0 | N108: 0 | O108: 0 | P108: 0
B109: B. | C109: Záväzky r. 102 + r. 118 + r. 121 + r. 122 + r. 136 + r. 139 + r. 140 | D109: 101 | E109: =E110+E126+E129+E130+E144+E147+E148 -> 0 | F109: =F110+F126+F129+F130+F144+F147+F148 -> 0 | G109: 0 | H109: 0 | I109: 0 | J109: 0 | K109: 0 | L109: 0 | M109: 0 | N109: 0 | O109: 0 | P109: 0
B110: B.I. | C110: Dlhodobé záväzky súčet (r. 103 + r. 107 až r. 117) | D110: 102 | E110: =SUM(E111,E115:E125) -> 0 | F110: =SUM(F111,F115:F125) -> 0 | G110: 0 | H110: 0 | I110: 0 | J110: 0 | K110: 0 | L110: 0 | M110: 0 | N110: 0 | O110: 0 | P110: 0
B111: B.I.1. | C111: Dlhodobé záväzky z obchodného styku súčet (r. 104 až r. 106) | D111: 103 | E111: =SUM(E112:E114) -> 0 | F111: =SUM(F112:F114) -> 0 | G111: 0 | H111: 0 | I111: 0 | J111: 0 | K111: 0 | L111: 0 | M111: 0 | N111: 0 | O111: 0 | P111: 0
B112: 1.a. | C112: Záväzky z obchodného styku voči prepojeným účtovným jednotkám (321A, 475A, 476A) | D112: 104
B113: 1.b. | C113: Záväzky z obchodného styku v rámci podielovej účasti okrem záväzkov voči prepojeným účtovným jednotkám (321A, 475A, 476A) | D113: 105
B114: 1.c. | C114: Ostatné záväzky z obchodného styku (321A, 475A, 476A) | D114: 106
B115: 2. | C115: Čistá hodnota zákazky (316A) | D115: 107
B116: 3. | C116: Ostatné záväzky voči prepojeným účtovným jednotkám (471A, 47XA) | D116: 108
B117: 4. | C117: Ostatné záväzky v rámci podielovej účasti okrem záväzkov voči prepojeným účtovným jednotkám (471A, 47XA) | D117: 109
B118: 5. | C118: Ostatné dlhodobé záväzky (479A, 47XA) | D118: 110
B119: 6. | C119: Dlhodobé prijaté preddavky (475A) | D119: 111
B120: 7. | C120: Dlhodobé zmenky na úhradu (478A) | D120: 112
B121: 8. | C121: Vydané dlhopisy (473A/-/255A) | D121: 113
B122: 9. | C122: Záväzky zo sociálneho fondu (472) | D122: 114
B123: 10. | C123: Iné dlhodobé záväzky (336A, 372A, 474A, 47XA) | D123: 115
B124: 11. | C124: Dlhodobé záväzky z derivátových operácií (373A, 377A) | D124: 116
B125: 12. | C125: Odložený daňový záväzok (481A) | D125: 117
B126: B.II. | C126: Dlhodobé rezervy r. 119 + r. 120 | D126: 118 | E126: =SUM(E127:E128) -> 0 | F126: =SUM(F127:F128) -> 0 | G126: 0 | H126: 0 | I126: 0 | J126: 0 | K126: 0 | L126: 0 | M126: 0 | N126: 0 | O126: 0 | P126: 0
B127: B.II.1. | C127: Zákonné rezervy (451A) | D127: 119
B128: 2. | C128: Ostatné rezervy (459A, 45XA) | D128: 120
B129: B.III. | C129: Dlhodobé bankové úvery (461A, 46XA) | D129: 121
B130: B.IV. | C130: Krátkodobé záväzky súčet (r. 123 + r. 127 až r. 135) | D130: 122 | E130: =SUM(E131,E135:E143) -> 0 | F130: =SUM(F131,F135:F143) -> 0 | G130: 0 | H130: 0 | I130: 0 | J130: 0 | K130: 0 | L130: 0 | M130: 0 | N130: 0 | O130: 0 | P130: 0
B131: B.IV.1. | C131: Záväzky z obchodného styku súčet (r. 124 až r. 126) | D131: 123 | E131: =SUM(E132:E134) -> 0 | F131: =SUM(F132:F134) -> 0 | G131: 0 | H131: 0 | I131: 0 | J131: 0 | K131: 0 | L131: 0 | M131: 0 | N131: 0 | O131: 0 | P131: 0
B132: 1.a. | C132: Záväzky z obchodného styku voči prepojeným účtovným jednotkám (321A, 322A, 324A, 325A, 326A, 32XA, 475A, 476A, 478A, 47XA) | D132: 124
B133: 1.b. | C133: Záväzky z obchodného styku v rámci podielovej účasti okrem záväzkov voči prepojeným účtovným jednotkám (321A, 322A, 324A, 325A, 326A, 32XA, 475A, 476A, 478A, 47XA) | D133: 125
B134: 1.c. | C134: Ostatné záväzky z obchodného styku (321A, 322A, 324A, 325A, 326A, 32XA, 475A, 476A, 478A, 47XA) | D134: 126
B135: 2. | C135: Čistá hodnota zákazky (316A) | D135: 127
B136: 3. | C136: Ostatné záväzky voči prepojeným účtovným jednotkám (361A, 36XA, 471A, 47XA) | D136: 128
B137: 4. | C137: Ostatné záväzky v rámci podielovej účasti okrem záväzkov voči prepojeným účtovným jednotkám (361A, 36XA, 471A, 47XA) | D137: 129
B138: 5. | C138: Záväzky voči spoločníkom a združeniu (364, 365, 366, 367, 368, 398A, 478A, 479A) | D138: 130
B139: 6. | C139: Záväzky voči zamestnancom (331, 333, 33X, 479A) | D139: 131
B140: 7. | C140: Záväzky zo sociálneho poistenia (336A) | D140: 132
B141: 8. | C141: Daňové záväzky a dotácie (341, 342, 343, 345, 346, 347, 34X) | D141: 133
B142: 9. | C142: Záväzky z derivátových operácií (373A, 377A) | D142: 134
B143: 10. | C143: Iné záväzky (372A, 379A, 474A, 475A, 479A, 47XA) | D143: 135
B144: B.V. | C144: Krátkodobé rezervy r. 137 + r. 138 | D144: 136 | E144: =SUM(E145:E146) -> 0 | F144: =SUM(F145:F146) -> 0 | G144: 0 | H144: 0 | I144: 0 | J144: 0 | K144: 0 | L144: 0 | M144: 0 | N144: 0 | O144: 0 | P144: 0
B145: B.V.1. | C145: Zákonné rezervy (323A, 451A) | D145: 137
B146: 2. | C146: Ostatné rezervy (323A, 32X, 459A, 45XA) | D146: 138
B147: B.VI. | C147: Bežné bankové úvery (221A, 231, 232, 23X, 461A, 46XA) | D147: 139
B148: B.VII. | C148: Krátkodobé finančné výpomoci (241, 249, 24X, 473A, /-/255A) | D148: 140
B149: C. | C149: Časové rozlíšenie súčet (r. 142 až r. 145) | D149: 141 | E149: =SUM(E150:E153) -> 0 | F149: =SUM(F150:F153) -> 0 | G149: 0 | H149: 0 | I149: 0 | J149: 0 | K149: 0 | L149: 0 | M149: 0 | N149: 0 | O149: 0 | P149: 0
B150: C.1. | C150: Výdavky budúcich období dlhodobé (383A) | D150: 142
B151: 2. | C151: Výdavky budúcich období krátkodobé (383A) | D151: 143
B152: 3. | C152: Výnosy budúcich období dlhodobé (384A) | D152: 144
B153: 4. | C153: Výnosy budúcich období krátkodobé (384A) | D153: 145
B157: Označenie | C157: Text | D157: Číslo | E157: Skutočnosť v účtovnom období (sledovanom)
D158: riadku | E158: Január | F158: Február | G158: Marec | H158: Apríl | I158: Máj | J158: Jún | K158: Júl | L158: August | M158: September | N158: Október | O158: November | P158: December | Q158: Celkom
B159: a | C159: b | D159: c
B160: * | C160: Čistý obrat (časť účt. tr. 6 podľa zákona) | D160: 1 | E160: =E164 -> 0 | F160: =F164 -> 0 | G160: 0 | H160: 0 | I160: 0 | J160: 0 | K160: 0 | L160: 0 | M160: 0 | N160: 0 | O160: 0 | P160: 0 | Q160: =SUM(E160:P160) -> 0
B161: ** | C161: Výnosy z hospodárskej činnosti spolu súčet (r. 03 až r. 09) | D161: 2 | E161: =SUM(E162:E168) -> 0 | F161: =SUM(F162:F168) -> 0 | G161: 0 | H161: 0 | I161: 0 | J161: 0 | K161: 0 | L161: 0 | M161: 0 | N161: 0 | O161: 0 | P161: 0 | Q161: =SUM(E161:P161) -> 0
B162: I. | C162: Tržby z predaja tovaru (604, 607) | D162: 3 | Q162: 0
B163: II. | C163: Tržby z predaja vlastných výrobkov (601) | D163: 4 | Q163: 0
B164: III. | C164: Tržby z predaja služieb (602, 606) | D164: 5 | Q164: 0
B165: IV. | C165: Zmeny stavu vnútroorganizačných zásob (+/-) (účtová skupina 61) | D165: 6 | Q165: 0
B166: V. | C166: Aktivácia (účtová skupina 62) | D166: 7 | Q166: 0
B167: VI. | C167: Tržby z predaja dlhodobého nehmotného majetku, dlhodobého hmotného majetku a materiálu (641, 642) | D167: 8 | Q167: 0
B168: VII. | C168: Ostatné výnosy z hospodárskej činnosti (644, 645, 646, 648, 655, 657) | D168: 9 | Q168: 0
B169: ** | C169: Náklady na hospodársku činnosť spolu r. 11 + r. 12 + r. 13 + r. 14 + r. 15 + r. 20 + r. 21 + r. 24 + r. 25 + r. 26 | D169: 10 | E169: =E170+E171+E172+E173+E174+E179+E180+E183+E184+E185 -> 0 | F169: =F170+F171+F172+F173+F174+F179+F180+F183+F184+F185 -> 0 | G169: 0 | H169: 0 | I169: 0 | J169: 0 | K169: 0 | L169: 0 | M169: 0 | N169: 0 | O169: 0 | P169: 0 | Q169: 0
B170: A. | C170: Náklady vynaložené na obstaranie predaného tovaru (504, 507) | D170: 11 | Q170: 0
B171: B. | C171: Spotreba materiálu, energie a ostatných neskladovateľných dodávok (501, 502, 503) | D171: 12 | Q171: 0
B172: C. | C172: Opravné položky k zásobám (+/-) (505) | D172: 13 | Q172: 0
B173: D. | C173: Služby (účtová skupina 51) | D173: 14 | Q173: 0
B174: E. | C174: Osobné náklady (r. 16 až r. 19) | D174: 15 | E174: =SUM(E175:E178) -> 0 | F174: =SUM(F175:F178) -> 0 | G174: 0 | H174: 0 | I174: 0 | J174: 0 | K174: 0 | L174: 0 | M174: 0 | N174: 0 | O174: 0 | P174: 0 | Q174: 0
B175: E.1. | C175: Mzdové náklady (521, 522) | D175: 16 | Q175: 0
B176: 2 | C176: Odmeny členom orgánov spoločnosti a družstva (523) | D176: 17 | Q176: 0
B177: 3 | C177: Náklady na sociálne poistenie (524, 525, 526) | D177: 18 | Q177: 0
B178: 4 | C178: Sociálne náklady (527, 528) | D178: 19 | Q178: 0
B179: F. | C179: Dane a poplatky (účtová skupina 53) | D179: 20 | Q179: 0
B180: G. | C180: Odpisy a opravné položky k dlhodobému nehmotnému majetku a dlhodobému hmotnému majetku (r. 22 + r. 23) | D180: 21 | E180: =SUM(E181:E182) -> 0 | F180: =SUM(F181:F182) -> 0 | G180: 0 | H180: 0 | I180: 0 | J180: 0 | K180: 0 | L180: 0 | M180: 0 | N180: 0 | O180: 0 | P180: 0 | Q180: 0
B181: G.1. | C181: Odpisy dlhodobého nehmotného majetku a dlhodobého hmotného majetku (551) | D181: 22 | Q181: 0
B182: 2 | C182: Opravné položky k dlhodobému nehmotnému majetku a dlhodobému hmotnému majetku (+/-) (553) | D182: 23 | Q182: 0
B183: H. | C183: Zostatková cena predaného dlhodobého majetku a predaného materiálu (541, 542) | D183: 24 | Q183: 0
B184: I. | C184: Opravné položky k pohľadávkam (+/-) (547) | D184: 25 | Q184: 0
B185: J. | C185: Ostatné náklady na hospodársku činnosť (543, 544, 545, 546, 548, 549, 555, 557) | D185: 26 | Q185: 0
B186: *** | C186: Výsledok hospodárenia z hospodárskej činnosti (+/-) (r. 02 - r. 10) | D186: 27 | E186: =E161-E169 -> 0 | F186: =F161-F169 -> 0 | G186: 0 | H186: 0 | I186: 0 | J186: 0 | K186: 0 | L186: 0 | M186: 0 | N186: 0 | O186: 0 | P186: 0 | Q186: 0
B187: * | C187: Pridaná hodnota (r. 03 + r. 04 + r. 05 + r. 06 + r. 07) - (r. 11 + r. 12 + r. 13 + r. 14) | D187: 28 | E187: =(E162+E163+E164+E165+E166)-(E170+E171+E172+E173) -> 0 | F187: =(F162+F163+F164+F165+F166)-(F170+F171+F172+F173) -> 0 | G187: 0 | H187: 0 | I187: 0 | J187: 0 | K187: 0 | L187: 0 | M187: 0 | N187: 0 | O187: 0 | P187: 0 | Q187: 0
B188: ** | C188: Výnosy z finančnej činnosti spolu r. 30 + r. 31 + r. 35 + r. 39 + r. 42 + r. 43 + r. 44 | D188: 29 | E188: =E189+E190+E194+E198+E201+E202+E203 -> 0 | F188: =F189+F190+F194+F198+F201+F202+F203 -> 0 | G188: 0 | H188: 0 | I188: 0 | J188: 0 | K188: 0 | L188: 0 | M188: 0 | N188: 0 | O188: 0 | P188: 0 | Q188: 0
B189: VIII. | C189: Tržby z predaja cenných papierov a podielov (661) | D189: 30 | Q189: 0
B190: IX. | C190: Výnosy z dlhodobého finančného majetku súčet (r. 32 až r. 34) | D190: 31 | E190: =SUM(E191:E193) -> 0 | F190: =SUM(F191:F193) -> 0 | G190: 0 | H190: 0 | I190: 0 | J190: 0 | K190: 0 | L190: 0 | M190: 0 | N190: 0 | O190: 0 | P190: 0 | Q190: 0
B191: IX.1. | C191: Výnosy z cenných papierov a podielov od prepojených účtovných jednotiek (665A) | D191: 32 | Q191: 0
B192: 2 | C192: Výnosy z cenných papierov a podielov v podielovej účasti okrem výnosov prepojených účtovných jednotiek (665A) | D192: 33 | Q192: 0
B193: 3 | C193: Ostatné výnosy z cenných papierov a podielov (665A) | D193: 34 | Q193: 0
B194: X. | C194: Výnosy z krátkodobého finančného majetku súčet (r. 36 až r. 38) | D194: 35 | E194: =SUM(E195:E197) -> 0 | F194: =SUM(F195:F197) -> 0 | G194: 0 | H194: 0 | I194: 0 | J194: 0 | K194: 0 | L194: 0 | M194: 0 | N194: 0 | O194: 0 | P194: 0 | Q194: 0
B195: X.1. | C195: Výnosy z krátkodobého finančného majetku od prepojených účtovných jednotiek (666A) | D195: 36 | Q195: 0
B196: 2 | C196: Výnosy z krátkodobého finančného majetku v podielovej účasti okrem výnosov prepojených účtovných jednotiek (666A) | D196: 37 | Q196: 0
B197: 3 | C197: Ostatné výnosy z krátkodobého finančného majetku (666A) | D197: 38 | Q197: 0
B198: XI. | C198: Výnosové úroky (r. 40 + r. 41) | D198: 39 | E198: =SUM(E199:E200) -> 0 | F198: =SUM(F199:F200) -> 0 | G198: 0 | H198: 0 | I198: 0 | J198: 0 | K198: 0 | L198: 0 | M198: 0 | N198: 0 | O198: 0 | P198: 0 | Q198: 0
B199: XI.1. | C199: Výnosové úroky od prepojených účtovných jednotiek (662A) | D199: 40 | Q199: 0
B200: 2 | C200: Ostatné výnosové úroky (662A) | D200: 41 | Q200: 0
B201: XII. | C201: Kurzové zisky (663) | D201: 42 | Q201: 0
B202: XIII. | C202: Výnosy z precenenia cenných papierov a výnosy z derivátových operácií (664, 667) | D202: 43 | Q202: 0
B203: XIV. | C203: Ostatné výnosy z finančnej činnosti (668) | D203: 44 | Q203: 0
B204: ** | C204: Náklady na finančnú činnosť spolu r. 46 + r. 47 + r. 48 + r. 49 + r. 52 + r. 53 + r. 54 | D204: 45 | E204: =SUM(E205:E208,E211:E213) -> 0 | F204: =SUM(F205:F208,F211:F213) -> 0 | G204: 0 | H204: 0 | I204: 0 | J204: 0 | K204: 0 | L204: 0 | M204: 0 | N204: 0 | O204: 0 | P204: 0 | Q204: 0
B205: K. | C205: Predané cenné papiere a podiely (561) | D205: 46 | Q205: 0
... 15 more rows

Sheet 2017
B2: Označenie | C2: AKTÍVA | D2: Číslo | E2: V bežnom účtovnom období (NETTO)
B3: a | C3: b | D3: riadku | E3: Január | F3: Február | G3: Marec | H3: Apríl | I3: Máj | J3: Jún | K3: Júl | L3: August | M3: September | N3: Október | O3: November | P3: December
D4: c
C5: SPOLU MAJETOK r. 02 + r. 33 + r. 74 | D5: 1 | E5: =SUM(E6+E37+E78) -> 0 | F5: =SUM(F6+F37+F78) -> 0 | G5: 0 | H5: 27834.72 | I5: 52675.9 | J5: 48702.11 | K5: 46266.16 | L5: 40266.67 | M5: 40684.31 | N5: 34991.57 | O5: 43978.54 | P5: 49343.94
B6: A | C6: Neobežný majetok r. 03 + r. 11 + r. 21 | D6: 2 | E6: =SUM(E7+E15+E25) -> 0 | F6: =SUM(F7+F15+F25) -> 0 | G6: 0 | H6: 0 | I6: 0 | J6: 0 | K6: 0 | L6: 0 | M6: 0 | N6: 0 | O6: 0 | P6: 0
B7: A.I. | C7: Dlhodobý nehmotný majetok súčet (r. 04 až r. 10) | D7: 3 | E7: =SUM(E8:E14) -> 0 | F7: =SUM(F8:F14) -> 0 | G7: 0 | H7: 0 | I7: 0 | J7: 0 | K7: 0 | L7: 0 | M7: 0 | N7: 0 | O7: 0 | P7: 0
B8: A.I.1. | C8: Aktivované náklady na vývoj (012) - /072, 091A/ | D8: 4
B9: 2. | C9: Softvér (013) - /073, 091A/ | D9: 5
B10: 3. | C10: Oceniteľné práva (014) - /074, 091A/ | D10: 6
B11: 4. | C11: Goodwill (015) - /075, 091A/ | D11: 7
B12: 5. | C12: Ostatný dlhodobý nehmotný majetok (019, 01X) - /079, 07X, 091A/ | D12: 8
B13: 6. | C13: Obstarávaný dlhodobý nehmotný majetok (041) - /093/ | D13: 9
B14: 7. | C14: Poskytnuté preddavky na dlhodobý nehmotný majetok (051) - /095A/ | D14: 10
B15: A.II. | C15: Dlhodobý hmotný majetok súčet (r. 12 až r. 20) | D15: 11 | E15: =SUM(E16:E24) -> 0 | F15: =SUM(F16:F24) -> 0 | G15: 0 | H15: 0 | I15: 0 | J15: 0 | K15: 0 | L15: 0 | M15: 0 | N15: 0 | O15: 0 | P15: 0
B16: A.II.1. | C16: Pozemky (031) - /092A/ | D16: 12
B17: 2. | C17: Stavby (021) - /081, 092A/ | D17: 13
B18: 3. | C18: Samostatné hnuteľné veci a súbory hnuteľných vecí (022) - /082, 092A/ | D18: 14
B19: 4. | C19: Pestovateľské celky trvalých porastov (025) - /085, 092A/ | D19: 15
B20: 5. | C20: Základné stádo a ťažné zvieratá (026) - /086, 092A/ | D20: 16
B21: 6. | C21: Ostatný dlhodobý hmotný majetok (029, 02X, 032) - /089, 08X, 092A/ | D21: 17
B22: 7. | C22: Obstarávaný dlhodobý hmotný majetok (042) - /094/ | D22: 18
B23: 8. | C23: Poskytnuté preddavky na dlhodobý hmotný majetok (052) - /095A/ | D23: 19
B24: 9. | C24: Opravná položka k nadobudnutému majetku (+/- 097) +/- 098 | D24: 20
B25: A.III. | C25: Dlhodobý finančný majetok súčet (r. 22 až r. 32) | D25: 21 | E25: =SUM(E26:E36) -> 0 | F25: =SUM(F26:F36) -> 0 | G25: 0 | H25: 0 | I25: 0 | J25: 0 | K25: 0 | L25: 0 | M25: 0 | N25: 0 | O25: 0 | P25: 0
B26: A.III.1. | C26: Podielové cenné papiere a podiely v prepojených účtovných jednotkách (061A, 062A, 063A) - /096A/ | D26: 22
B27: 2. | C27: Podielové cenné papiere a podiely s podielovou účasťou okrem v prepojených účtovných jednotkách (062A) - /096A/ | D27: 23
B28: 3. | C28: Ostatné realizovateľné cenné papiere a podiely (063A) - /096A/ | D28: 24
B29: 4. | C29: Pôžičky prepojeným účtovným jednotkám (066A) - /096A/ | D29: 25
B30: 5. | C30: Pôžičky v rámci podielovej účasti okrem prepojeným účtovným jednotkám (066A) - /096A/ | D30: 26
B31: 6. | C31: Ostatné pôžičky (067A) - /096A/ | D31: 27
B32: 7. | C32: Dlhové cenné papiere a ostatný dlhodobý finančný majetok (065A, 069A, 06XA) - /096A/ | D32: 28
B33: 8. | C33: Pôžičky a ostatný dlhodobý finančný majetok so zostatkovou dobou splatnosti najviac jeden rok (066A, 067A, 069A, 06XA) - /096A/ | D33: 29
B34: 9. | C34: Účty v bankách s dobou viazanosti dlhšou ako jeden rok (22XA) | D34: 30
B35: 10. | C35: Obstarávaný dlhodobý finančný majetok (043) - /096A/ | D35: 31
B36: 11. | C36: Poskytnuté preddavky na dlhodobý finančný majetok (053) - /095A/ | D36: 32
B37: B. | C37: Obežný majetok r. 34 + r. 41 + r. 53 + r. 66 + r. 71 | D37: 33 | E37: =E38+E45+E57+E70+E75 -> 0 | F37: =F38+F45+F57+F70+F75 -> 0 | G37: 0 | H37: 27834.72 | I37: 52675.9 | J37: 48702.11 | K37: 46266.16 | L37: 40266.67 | M37: 40684.31 | N37: 34991.57 | O37: 43978.54 | P37: 49343.94
B38: B.I. | C38: Zásoby súčet (r. 35 až r. 40) | D38: 34 | E38: =SUM(E39:E44) -> 0 | F38: =SUM(F39:F44) -> 0 | G38: 0 | H38: 0 | I38: 0 | J38: 0 | K38: 0 | L38: 0 | M38: 0 | N38: 0 | O38: 0 | P38: 0
B39: B.I.1. | C39: Materiál (112, 119, 11X) - /191, 19X/ | D39: 35
B40: 2. | C40: Nedokončená výroba a polotovary vlastnej výroby (121, 122, 12X) - /192, 193, 19X/ | D40: 36
B41: 3. | C41: Výrobky (123) - /194/ | D41: 37
B42: 4. | C42: Zvieratá (124) - /195/ | D42: 38
B43: 5. | C43: Tovar (132, 133, 13X, 139) - /196, 19X/ | D43: 39
B44: 6. | C44: Poskytnuté preddavky na zásoby (314A) - /391A/ | D44: 40
B45: B.II. | C45: Dlhodobé pohľadávky súčet (r. 42 + r. 46 až r. 52) | D45: 41 | E45: =SUM(E46+E50+E51+E52+E53+E54+E55+E56) -> 0 | F45: =SUM(F46+F50+F51+F52+F53+F54+F55+F56) -> 0 | G45: 0 | H45: 0 | I45: 0 | J45: 0 | K45: 0 | L45: 0 | M45: 0 | N45: 0 | O45: 0 | P45: 0
B46: B.II.1. | C46: Pohľadávky z obchodného styku súčet (r. 43 až r. 45) | D46: 42 | E46: =SUM(E47:E49) -> 0 | F46: =SUM(F47:F49) -> 0 | G46: 0 | H46: 0 | I46: 0 | J46: 0 | K46: 0 | L46: 0 | M46: 0 | N46: 0 | O46: 0 | P46: 0
B47: 1.a. | C47: Pohľadávky z obchodného styku voči prepojeným účtovným jednotkám (311A, 312A, 313A, 314A, 315A, 31XA) - /391A/ | D47: 43
B48: 1.b. | C48: Pohľadávky z obchodného styku v rámci podielovej účasti okrem pohľadávok voči prepojeným účtovným jednotkám (311A, 312A, 313A, 314A, 315A, 31XA) - /391A/ | D48: 44
B49: 1.c. | C49: Ostatné pohľadávky z obchodného styku (311A, 312A, 313A, 314A, 315A, 31XA) - /391A/ | D49: 45
B50: 2. | C50: Čistá hodnota zákazky (316A) | D50: 46
B51: 3. | C51: Ostatné pohľadávky voči prepojeným účtovným jednotkám (351A) - /391A/ | D51: 47
B52: 4. | C52: Ostatné pohľadávky v rámci podielovej účasti okrem pohľadávok voči prepojeným účtovným jednotkám (351A) - /391A/ | D52: 48
B53: 5. | C53: Pohľadávky voči spoločníkom, členom a združeniu (354A, 355A, 358A, 35XA) - /391A/ | D53: 49
B54: 6. | C54: Pohľadávky z derivátových operácií (373A, 376A) | D54: 50
B55: 7. | C55: Iné pohľadávky (335A, 336A, 33XA, 371A, 374A, 375A, 378A) - /391A/ | D55: 51
B56: 8. | C56: Odložená daňová pohľadávka (481A) | D56: 52
B57: B.III. | C57: Krátkodobé pohľadávky súčet (r. 54 + r. 58 až r. 65) | D57: 53 | E57: =SUM(E58,E62:E69) -> 0 | F57: =SUM(F58,F62:F69) -> 0 | G57: =SUM(G58,G62:G69) -> 0 | H57: 22293 | I57: 46719 | J57: 43581 | K57: 33581 | L57: 33781 | M57: 33781 | N57: 28781 | O57: 30322.6 | P57: 43332.6
B58: B.III.1. | C58: Pohľadávky z obchodného styku súčet (r. 55 až r. 57) | D58: 54 | E58: =SUM(E59:E61) -> 0 | F58: =SUM(F59:F61) -> 0 | G58: 0 | H58: 22293 | I58: 46719 | J58: 43581 | K58: 33581 | L58: 33781 | M58: 33781 | N58: 28781 | O58: 30322.6 | P58: 43332.6
B59: 1.a. | C59: Pohľadávky z obchodného styku voči prepojeným účtovným jednotkám (311A, 312A, 313A, 314A, 315A, 31XA) - /391A/ | D59: 55
B60: 1.b. | C60: Pohľadávky z obchodného styku v rámci podielovej účasti okrem pohľadávok voči prepojeným účtovným jednotkám (311A, 312A, 313A, 314A, 315A, 31XA) - /391A/ | D60: 56
B61: 1.c. | C61: Ostatné pohľadávky z obchodného styku (311A, 312A, 313A, 314A, 315A, 31XA) - /391A/ | D61: 57 | H61: 22293 | I61: 46719 | J61: 43581 | K61: 33581 | L61: 33781 | M61: 33781 | N61: 28781 | O61: 30322.6 | P61: 43332.6
B62: 2. | C62: Čistá hodnota zákazky (316A) | D62: 58
B63: 3. | C63: Ostatné pohľadávky voči prepojeným účtovným jednotkám (351A) - /391A/ | D63: 59
B64: 4. | C64: Ostatné pohľadávky v rámci podielovej účasti okrem pohľadávok voči prepojeným účtovným jednotkám (351A) - /391A/ | D64: 60
B65: 5. | C65: Pohľadávky voči spoločníkom, členom a združeniu (354A, 355A, 358A, 35XA, 398A) - /391A/ | D65: 61
B66: 6. | C66: Sociálne poistenie (336A) - /391A/ | D66: 62
B67: 7. | C67: Daňové pohľadávky a dotácie (341, 342, 343, 345, 346, 347) - /391A/ | D67: 63
B68: 8. | C68: Pohľadávky z derivátových operácií (373A, 376A) | D68: 64
B69: 9. | C69: Iné pohľadávky (335A, 33XA, 371A, 374A, 375A, 378A) - /391A/ | D69: 65
B70: B.IV. | C70: Krátkodobý finančný majetok súčet (r. 67 až r. 70) | D70: 66 | E70: =SUM(E71:E74) -> 0 | F70: =SUM(F71:F74) -> 0 | G70: 0 | H70: 0 | I70: 0 | J70: 0 | K70: 0 | L70: 0 | M70: 0 | N70: 0 | O70: 0 | P70: 0
B71: B.IV.1. | C71: Krátkodobý finančný majetok v prepojených účtovných jednotkách (251A, 253A, 256A, 257A, 25XA) - /291A, 29XA/ | D71: 67
B72: 2 | C72: Krátkodobý finančný majetok bez krátkodobého finančného majetku v prepojených účtovných jednotkách (251A, 253A, 256A, 257A, 25XA) - /291A, 29XA/ | D72: 68
B73: 3. | C73: Vlastné akcie a vlastné obchodné podiely (252) | D73: 69
B74: 4. | C74: Obstarávaný krátkodobý finančný majetok (259, 314A) - /291A/ | D74: 70
B75: B.V. | C75: Finančné účty r. 72 + r. 73 | D75: 71 | E75: =SUM(E76:E77) -> 0 | F75: =SUM(F76:F77) -> 0 | G75: 0 | H75: 5541.72 | I75: 5956.9 | J75: 5121.11 | K75: 12685.16 | L75: 6485.67 | M75: 6903.31 | N75: 6210.57 | O75: 13655.94 | P75: 6011.34
B76: B.V.1. | C76: Peniaze (211, 213, 21X) | D76: 72 | H76: 5030.6 | I76: 5023.8 | J76: 5007.5 | K76: 5024.5 | L76: 4938.2 | M76: 6049.04 | N76: 5869.29 | O76: 5323.07 | P76: 5354.36
B77: 2. | C77: Účty v bankách (221A, 22X, +/- 261) | D77: 73 | H77: 511.12 | I77: 933.1 | J77: 113.61 | K77: 7660.66 | L77: 1547.47 | M77: 854.27 | N77: 341.28 | O77: 8332.87 | P77: 656.98
B78: C. | C78: Časové rozlíšenie súčet (r. 75 až r. 78) | D78: 74 | E78: =SUM(E79:E82) -> 0 | F78: =SUM(F79:F82) -> 0 | G78: 0 | H78: 0 | I78: 0 | J78: 0 | K78: 0 | L78: 0 | M78: 0 | N78: 0 | O78: 0 | P78: 0
B79: C.1. | C79: Náklady budúcich období dlhodobé (381A, 382A) | D79: 75
B80: 2. | C80: Náklady budúcich období krátkodobé (381A, 382A) | D80: 76
B81: 3. | C81: Príjmy budúcich období dlhodobé (385A) | D81: 77
B82: 4. | C82: Príjmy budúcich období krátkodobé (385A) | D82: 78
B84: Označenie | C84: PASÍVA | D84: Číslo | E84: V bežnom účtovnom období (NETTO)
B85: a | C85: b | D85: riadku | E85: Január | F85: Február | G85: Marec | H85: Apríl | I85: Máj | J85: Jún | K85: Júl | L85: August | M85: September | N85: Október | O85: November | P85: December
D86: c
C87: SPOLU VLASTNÉ IMANIE A ZÁVÄZKY r. 80 + r. 101 + r. 141 | D87: 79 | E87: =SUM(E88,E109,E149) -> 0 | F87: =SUM(F88,F109,F149) -> 0 | G87: 0 | H87: 27834.72 | I87: 52675.9 | J87: 48702.11 | K87: 46266.16 | L87: 40266.67 | M87: 40684.31 | N87: 34991.57 | O87: 43978.54 | P87: 49343.94
B88: A. | C88: Vlastné imanie r. 81 + r. 85 + r. 86 + r. 87 + r. 90 + r. 93 + r. 97 + r. 100 | D88: 80 | E88: =E89+E93+E94+E95+E98+E101+E105+E108 -> 0 | F88: =F89+F93+F94+F95+F98+F101+F105+F108 -> 0 | G88: =G89+G93+G94+G95+G98+G101+G105+G108 -> 0 | H88: 22268.94 | I88: 45907.51 | J88: 39657.23 | K88: 32608.5 | L88: 23813.08 | M88: 13700.76 | N88: 2234.66 | O88: 8221.91 | P88: -919.63
B89: A.I. | C89: Základné imanie súčet (r. 82 až r. 84) | D89: 81 | E89: =SUM(E90:E92) -> 0 | F89: =SUM(F90:F92) -> 0 | G89: 0 | H89: 5000 | I89: 5000 | J89: 5000 | K89: 5000 | L89: 5000 | M89: 5000 | N89: 5000 | O89: 5000 | P89: 5000
B90: A.I.1. | C90: Základné imanie (411 alebo +/- 491) | D90: 82 | H90: 5000 | I90: 5000 | J90: 5000 | K90: 5000 | L90: 5000 | M90: 5000 | N90: 5000 | O90: 5000 | P90: 5000
B91: 2. | C91: Zmena základného imania +/- 419 | D91: 83
B92: 3. | C92: Pohľadávky za upísané vlastné imanie (/-/353) | D92: 84
B93: A.II. | C93: Emisné ážio (412) | D93: 85
B94: A.III. | C94: Ostatné kapitálové fondy (413) | D94: 86
B95: A.IV. | C95: Zákonné rezervné fondy r. 88 + r. 89 | D95: 87 | E95: =SUM(E96:E97) -> 0 | F95: =SUM(F96:F97) -> 0 | G95: 0 | H95: 0 | I95: 0 | J95: 0 | K95: 0 | L95: 0 | M95: 0 | N95: 0 | O95: 0 | P95: 14.35
B96: A.IV.1. | C96: Zákonný rezervný fond a nedeliteľný fond (417A, 418, 421A, 422) | D96: 88 | P96: 14.35
B97: 2. | C97: Rezervný fond na vlastné akcie a vlastné podiely (417A, 421A) | D97: 89
B98: A.V. | C98: Ostatné fondy zo zisku r. 91 + r. 92 | D98: 90 | E98: =SUM(E99:E100) -> 0 | F98: =SUM(F99:F100) -> 0 | G98: 0 | H98: 0 | I98: 0 | J98: 0 | K98: 0 | L98: 0 | M98: 0 | N98: 0 | O98: 0 | P98: 0
B99: A.V.1. | C99: Štatutárne fondy (423, 42X) | D99: 91
B100: 2. | C100: Ostatné fondy (427, 42X) | D100: 92
B101: A.VI. | C101: Oceňovacie rozdiely z precenenia súčet (r. 94 až r. 96) | D101: 93 | E101: =SUM(E102:E104) -> 0 | F101: =SUM(F102:F104) -> 0 | G101: 0 | H101: 0 | I101: 0 | J101: 0 | K101: 0 | L101: 0 | M101: 0 | N101: 0 | O101: 0 | P101: 0
B102: A.VI.1. | C102: Oceňovacie rozdiely z precenenia majetku a záväzkov (+/- 414) | D102: 94
B103: 2. | C103: Oceňovacie rozdiely z kapitálových účastín (+/- 415) | D103: 95
B104: 3. | C104: Oceňovacie rozdiely z precenenia pri zlúčení, splynutí a rozdelení (+/- 416) | D104: 96
B105: A.VII. | C105: Výsledok hospodárenia minulých rokov r. 98 + r. 99 | D105: 97 | E105: =SUM(E106:E107) -> 0 | F105: =SUM(F106:F107) -> 0 | G105: 0 | H105: 287.04 | I105: 287.04 | J105: 287.04 | K105: 287.04 | L105: 287.04 | M105: 287.04 | N105: 287.04 | O105: 287.04 | P105: 272.69
B106: A.VII.1. | C106: Nerozdelený zisk minulých rokov (428) | D106: 98 | H106: 287.04 | I106: 287.04 | J106: 287.04 | K106: 287.04 | L106: 287.04 | M106: 287.04 | N106: 287.04 | O106: 287.04 | P106: 272.69
B107: 2. | C107: Neuhradená strata minulých rokov (/-/429) | D107: 99
B108: A.VIII. | C108: Výsledok hospodárenia za účtovné obdobie po zdanení /+-/ r. 01 - (r. 81 + r. 85 + r. 86 + r. 87 + r. 90 + r. 93 + r. 97 + r. 101 + r. 141) | D108: 100 | E108: =E5-(E89+E93+E94+E95+E98+E101+E105+E109+E149) -> 0 | F108: =F5-(F89+F93+F94+F95+F98+F101+F105+F109+F149) -> 0 | G108: =G5-(G89+G93+G94+G95+G98+G101+G105+G109+G149) -> 0 | H108: 16981.9 | I108: 40620.47 | J108: 34370.19 | K108: 27321.46 | L108: 18526.04 | M108: 8413.72 | N108: -3052.38 | O108: 2934.87 | P108: -6206.67
B109: B. | C109: Záväzky r. 102 + r. 118 + r. 121 + r. 122 + r. 136 + r. 139 + r. 140 | D109: 101 | E109: =E110+E126+E129+E130+E144+E147+E148 -> 0 | F109: =F110+F126+F129+F130+F144+F147+F148 -> 0 | G109: 0 | H109: 5565.78 | I109: 6768.39 | J109: 9044.88 | K109: 13657.66 | L109: 16453.59 | M109: 26983.55 | N109: 32756.91 | O109: 35756.63 | P109: 50263.57
B110: B.I. | C110: Dlhodobé záväzky súčet (r. 103 + r. 107 až r. 117) | D110: 102 | E110: =SUM(E111,E115:E125) -> 0 | F110: =SUM(F111,F115:F125) -> 0 | G110: 0 | H110: 8.93 | I110: 18.83 | J110: 28.46 | K110: 41.5 | L110: 58.68 | M110: 76.62 | N110: 96.38 | O110: 118.44 | P110: 135.62
B111: B.I.1. | C111: Dlhodobé záväzky z obchodného styku súčet (r. 104 až r. 106) | D111: 103 | E111: =SUM(E112:E114) -> 0 | F111: =SUM(F112:F114) -> 0 | G111: 0 | H111: 0 | I111: 0 | J111: 0 | K111: 0 | L111: 0 | M111: 0 | N111: 0 | O111: 0 | P111: 0
B112: 1.a. | C112: Záväzky z obchodného styku voči prepojeným účtovným jednotkám (321A, 475A, 476A) | D112: 104
B113: 1.b. | C113: Záväzky z obchodného styku v rámci podielovej účasti okrem záväzkov voči prepojeným účtovným jednotkám (321A, 475A, 476A) | D113: 105
B114: 1.c. | C114: Ostatné záväzky z obchodného styku (321A, 475A, 476A) | D114: 106
B115: 2. | C115: Čistá hodnota zákazky (316A) | D115: 107
B116: 3. | C116: Ostatné záväzky voči prepojeným účtovným jednotkám (471A, 47XA) | D116: 108
B117: 4. | C117: Ostatné záväzky v rámci podielovej účasti okrem záväzkov voči prepojeným účtovným jednotkám (471A, 47XA) | D117: 109
B118: 5. | C118: Ostatné dlhodobé záväzky (479A, 47XA) | D118: 110
B119: 6. | C119: Dlhodobé prijaté preddavky (475A) | D119: 111
B120: 7. | C120: Dlhodobé zmenky na úhradu (478A) | D120: 112
B121: 8. | C121: Vydané dlhopisy (473A/-/255A) | D121: 113
B122: 9. | C122: Záväzky zo sociálneho fondu (472) | D122: 114 | H122: 8.93 | I122: 18.83 | J122: 28.46 | K122: 41.5 | L122: 58.68 | M122: 76.62 | N122: 96.38 | O122: 118.44 | P122: 135.62
B123: 10. | C123: Iné dlhodobé záväzky (336A, 372A, 474A, 47XA) | D123: 115
B124: 11. | C124: Dlhodobé záväzky z derivátových operácií (373A, 377A) | D124: 116
B125: 12. | C125: Odložený daňový záväzok (481A) | D125: 117
B126: B.II. | C126: Dlhodobé rezervy r. 119 + r. 120 | D126: 118 | E126: =SUM(E127:E128) -> 0 | F126: =SUM(F127:F128) -> 0 | G126: 0 | H126: 0 | I126: 0 | J126: 0 | K126: 0 | L126: 0 | M126: 0 | N126: 0 | O126: 0 | P126: 0
B127: B.II.1. | C127: Zákonné rezervy (451A) | D127: 119
B128: 2. | C128: Ostatné rezervy (459A, 45XA) | D128: 120
B129: B.III. | C129: Dlhodobé bankové úvery (461A, 46XA) | D129: 121
B130: B.IV. | C130: Krátkodobé záväzky súčet (r. 123 + r. 127 až r. 135) | D130: 122 | E130: =SUM(E131,E135:E143) -> 0 | F130: =SUM(F131,F135:F143) -> 0 | G130: 0 | H130: 5556.85 | I130: 6749.56 | J130: 9016.42 | K130: 13616.16 | L130: 16394.91 | M130: 26906.93 | N130: 32660.53 | O130: 35638.19 | P130: 48017.23
B131: B.IV.1. | C131: Záväzky z obchodného styku súčet (r. 124 až r. 126) | D131: 123 | E131: =SUM(E132:E134) -> 0 | F131: =SUM(F132:F134) -> 0 | G131: 0 | H131: 3512.25 | I131: 4502.07 | J131: 5459.65 | K131: 5863.78 | L131: 7218.8 | M131: 11087.96 | N131: 11468.3 | O131: 11662.08 | P131: 34332.76
B132: 1.a. | C132: Záväzky z obchodného styku voči prepojeným účtovným jednotkám (321A, 322A, 324A, 325A, 326A, 32XA, 475A, 476A, 478A, 47XA) | D132: 124
B133: 1.b. | C133: Záväzky z obchodného styku v rámci podielovej účasti okrem záväzkov voči prepojeným účtovným jednotkám (321A, 322A, 324A, 325A, 326A, 32XA, 475A, 476A, 478A, 47XA) | D133: 125
B134: 1.c. | C134: Ostatné záväzky z obchodného styku (321A, 322A, 324A, 325A, 326A, 32XA, 475A, 476A, 478A, 47XA) | D134: 126 | H134: 3512.25 | I134: 4502.07 | J134: 5459.65 | K134: 5863.78 | L134: 7218.8 | M134: 11087.96 | N134: 11468.3 | O134: 11662.08 | P134: 34332.76
B135: 2. | C135: Čistá hodnota zákazky (316A) | D135: 127
B136: 3. | C136: Ostatné záväzky voči prepojeným účtovným jednotkám (361A, 36XA, 471A, 47XA) | D136: 128
B137: 4. | C137: Ostatné záväzky v rámci podielovej účasti okrem záväzkov voči prepojeným účtovným jednotkám (361A, 36XA, 471A, 47XA) | D137: 129
B138: 5. | C138: Záväzky voči spoločníkom a združeniu (364, 365, 366, 367, 368, 398A, 478A, 479A) | D138: 130
B139: 6. | C139: Záväzky voči zamestnancom (331, 333, 33X, 479A) | D139: 131 | H139: 1116.45 | I139: 1213.59 | J139: 1241.54 | K139: 2316.41 | L139: 3117.99 | M139: 3264.52 | N139: 3511.67 | O139: 3185.67 | P139: 3197.29
B140: 7. | C140: Záväzky zo sociálneho poistenia (336A) | D140: 132 | H140: 722.88 | I140: 801.89 | J140: 802.09 | K140: 1252.37 | L140: 1761.02 | M140: 1747.05 | N140: 1786.66 | O140: 1822.72 | P140: 1674.94
B141: 8. | C141: Daňové záväzky a dotácie (341, 342, 343, 345, 346, 347, 34X) | D141: 133 | H141: 205.27 | I141: 232.01 | J141: 151.14 | K141: 221.6 | L141: 335.1 | M141: -54.6 | N141: -268.1 | O141: 2805.72 | P141: 6908.24
B142: 9. | C142: Záväzky z derivátových operácií (373A, 377A) | D142: 134
B143: 10. | C143: Iné záväzky (372A, 379A, 474A, 475A, 479A, 47XA) | D143: 135 | J143: 1362 | K143: 3962 | L143: 3962 | M143: 10862 | N143: 16162 | O143: 16162 | P143: 1904
B144: B.V. | C144: Krátkodobé rezervy r. 137 + r. 138 | D144: 136 | E144: =SUM(E145:E146) -> 0 | F144: =SUM(F145:F146) -> 0 | G144: 0 | H144: 0 | I144: 0 | J144: 0 | K144: 0 | L144: 0 | M144: 0 | N144: 0 | O144: 0 | P144: 2110.72
B145: B.V.1. | C145: Zákonné rezervy (323A, 451A) | D145: 137 | P145: 1110.72
B146: 2. | C146: Ostatné rezervy (323A, 32X, 459A, 45XA) | D146: 138 | P146: 1000
B147: B.VI. | C147: Bežné bankové úvery (221A, 231, 232, 23X, 461A, 46XA) | D147: 139
B148: B.VII. | C148: Krátkodobé finančné výpomoci (241, 249, 24X, 473A, /-/255A) | D148: 140
B149: C. | C149: Časové rozlíšenie súčet (r. 142 až r. 145) | D149: 141 | E149: =SUM(E150:E153) -> 0 | F149: =SUM(F150:F153) -> 0 | G149: 0 | H149: 0 | I149: 0 | J149: 0 | K149: 0 | L149: 0 | M149: 0 | N149: 0 | O149: 0 | P149: 0
B150: C.1. | C150: Výdavky budúcich období dlhodobé (383A) | D150: 142
B151: 2. | C151: Výdavky budúcich období krátkodobé (383A) | D151: 143
B152: 3. | C152: Výnosy budúcich období dlhodobé (384A) | D152: 144
B153: 4. | C153: Výnosy budúcich období krátkodobé (384A) | D153: 145
B157: Označenie | C157: Text | D157: Číslo | E157: Skutočnosť v účtovnom období (sledovanom)
D158: riadku | E158: Január | F158: Február | G158: Marec | H158: Apríl | I158: Máj | J158: Jún | K158: Júl | L158: August | M158: September | N158: Október | O158: November | P158: December | Q158: Celkom
B159: a | C159: b | D159: c
B160: * | C160: Čistý obrat (časť účt. tr. 6 podľa zákona) | D160: 1 | E160: =E164 -> 0 | F160: =F164 -> 0 | G160: 0 | H160: 25031 | I160: 29126 | J160: 0 | K160: 0 | L160: 0 | M160: 0 | N160: 0 | O160: 17118 | P160: 34060 | Q160: =SUM(E160:P160) -> 105335
B161: ** | C161: Výnosy z hospodárskej činnosti spolu súčet (r. 03 až r. 09) | D161: 2 | E161: =SUM(E162:E168) -> 0 | F161: =SUM(F162:F168) -> 0 | G161: 0 | H161: 25031 | I161: 29126 | J161: 0 | K161: 0 | L161: 0 | M161: 0 | N161: 0 | O161: 17118 | P161: 34060 | Q161: =SUM(E161:P161) -> 105335
B162: I. | C162: Tržby z predaja tovaru (604, 607) | D162: 3 | Q162: 0
B163: II. | C163: Tržby z predaja vlastných výrobkov (601) | D163: 4 | Q163: 0
B164: III. | C164: Tržby z predaja služieb (602, 606) | D164: 5 | H164: 25031 | I164: 29126 | O164: 17118 | P164: 34060 | Q164: 105335
B165: IV. | C165: Zmeny stavu vnútroorganizačných zásob (+/-) (účtová skupina 61) | D165: 6 | Q165: 0
B166: V. | C166: Aktivácia (účtová skupina 62) | D166: 7 | Q166: 0
B167: VI. | C167: Tržby z predaja dlhodobého nehmotného majetku, dlhodobého hmotného majetku a materiálu (641, 642) | D167: 8 | Q167: 0
B168: VII. | C168: Ostatné výnosy z hospodárskej činnosti (644, 645, 646, 648, 655, 657) | D168: 9 | Q168: 0
B169: ** | C169: Náklady na hospodársku činnosť spolu r. 11 + r. 12 + r. 13 + r. 14 + r. 15 + r. 20 + r. 21 + r. 24 + r. 25 + r. 26 | D169: 10 | E169: =E170+E171+E172+E173+E174+E179+E180+E183+E184+E185 -> 0 | F169: =F170+F171+F172+F173+F174+F179+F180+F183+F184+F185 -> 0 | G169: 0 | H169: 8049.1 | I169: 5479 | J169: 6243.33 | K169: 7041 | L169: 8790 | M169: 10102.37 | N169: 11457 | O169: 11124 | P169: 37778 | Q169: 106063.8
B170: A. | C170: Náklady vynaložené na obstaranie predaného tovaru (504, 507) | D170: 11 | Q170: 0
B171: B. | C171: Spotreba materiálu, energie a ostatných neskladovateľných dodávok (501, 502, 503) | D171: 12 | M171: 441.37 | O171: 298 | Q171: 739.37
B172: C. | C172: Opravné položky k zásobám (+/-) (505) | D172: 13 | Q172: 0
B173: D. | C173: Služby (účtová skupina 51) | D173: 14 | H173: 5971.13 | I173: 3161 | J173: 3938 | K173: 2997 | L173: 3187 | M173: 4421 | N173: 6007 | O173: 5512 | P173: 31724 | Q173: 66918.13
B174: E. | C174: Osobné náklady (r. 16 až r. 19) | D174: 15 | E174: =SUM(E175:E178) -> 0 | F174: =SUM(F175:F178) -> 0 | G174: 0 | H174: 2077.97 | I174: 2318 | J174: 2286 | K174: 4044 | L174: 5603 | M174: 5229 | N174: 5440 | O174: 5235 | P174: 5994 | Q174: 38226.97
B175: E.1. | C175: Mzdové náklady (521, 522) | D175: 16 | H175: 1487.5 | I175: 1650 | J175: 1650 | K175: 2977 | L175: 4089 | M175: 3807 | N175: 3999 | O175: 3751 | P175: 4308 | Q175: 27718.5
B176: 2 | C176: Odmeny členom orgánov spoločnosti a družstva (523) | D176: 17 | Q176: 0
B177: 3 | C177: Náklady na sociálne poistenie (524, 525, 526) | D177: 18 | H177: 523.57 | I177: 580 | J177: 581 | K177: 914 | L177: 1285 | M177: 1268 | N177: 1298 | O177: 1320 | P177: 1504 | Q177: 9273.57
B178: 4 | C178: Sociálne náklady (527, 528) | D178: 19 | H178: 66.9 | I178: 88 | J178: 55 | K178: 153 | L178: 229 | M178: 154 | N178: 143 | O178: 164 | P178: 182 | Q178: 1234.9
B179: F. | C179: Dane a poplatky (účtová skupina 53) | D179: 20 | Q179: 0
B180: G. | C180: Odpisy a opravné položky k dlhodobému nehmotnému majetku a dlhodobému hmotnému majetku (r. 22 + r. 23) | D180: 21 | E180: =SUM(E181:E182) -> 0 | F180: =SUM(F181:F182) -> 0 | G180: 0 | H180: 0 | I180: 0 | J180: 0 | K180: 0 | L180: 0 | M180: 0 | N180: 0 | O180: 0 | P180: 0 | Q180: 0
B181: G.1. | C181: Odpisy dlhodobého nehmotného majetku a dlhodobého hmotného majetku (551) | D181: 22 | Q181: 0
B182: 2 | C182: Opravné položky k dlhodobému nehmotnému majetku a dlhodobému hmotnému majetku (+/-) (553) | D182: 23 | Q182: 0
B183: H. | C183: Zostatková cena predaného dlhodobého majetku a predaného materiálu (541, 542) | D183: 24 | Q183: 0
B184: I. | C184: Opravné položky k pohľadávkam (+/-) (547) | D184: 25 | Q184: 0
B185: J. | C185: Ostatné náklady na hospodársku činnosť (543, 544, 545, 546, 548, 549, 555, 557) | D185: 26 | J185: 19.33 | M185: 11 | N185: 10 | O185: 79 | P185: 60 | Q185: 179.33
B186: *** | C186: Výsledok hospodárenia z hospodárskej činnosti (+/-) (r. 02 - r. 10) | D186: 27 | E186: =E161-E169 -> 0 | F186: =F161-F169 -> 0 | G186: 0 | H186: 16981.9 | I186: 23647 | J186: -6243.33 | K186: -7041 | L186: -8790 | M186: -10102.37 | N186: -11457 | O186: 5994 | P186: -3718 | Q186: -728.8
B187: * | C187: Pridaná hodnota (r. 03 + r. 04 + r. 05 + r. 06 + r. 07) - (r. 11 + r. 12 + r. 13 + r. 14) | D187: 28 | E187: =(E162+E163+E164+E165+E166)-(E170+E171+E172+E173) -> 0 | F187: =(F162+F163+F164+F165+F166)-(F170+F171+F172+F173) -> 0 | G187: 0 | H187: 19059.87 | I187: 25965 | J187: -3938 | K187: -2997 | L187: -3187 | M187: -4862.37 | N187: -6007 | O187: 11308 | P187: 2336 | Q187: 37677.5
B188: ** | C188: Výnosy z finančnej činnosti spolu r. 30 + r. 31 + r. 35 + r. 39 + r. 42 + r. 43 + r. 44 | D188: 29 | E188: =E189+E190+E194+E198+E201+E202+E203 -> 0 | F188: =F189+F190+F194+F198+F201+F202+F203 -> 0 | G188: 0 | H188: 0 | I188: 0 | J188: 0 | K188: 0 | L188: 0 | M188: 0 | N188: 0 | O188: 0 | P188: 0 | Q188: 0
B189: VIII. | C189: Tržby z predaja cenných papierov a podielov (661) | D189: 30 | Q189: 0
B190: IX. | C190: Výnosy z dlhodobého finančného majetku súčet (r. 32 až r. 34) | D190: 31 | E190: =SUM(E191:E193) -> 0 | F190: =SUM(F191:F193) -> 0 | G190: 0 | H190: 0 | I190: 0 | J190: 0 | K190: 0 | L190: 0 | M190: 0 | N190: 0 | O190: 0 | P190: 0 | Q190: 0
B191: IX.1. | C191: Výnosy z cenných papierov a podielov od prepojených účtovných jednotiek (665A) | D191: 32 | Q191: 0
B192: 2 | C192: Výnosy z cenných papierov a podielov v podielovej účasti okrem výnosov prepojených účtovných jednotiek (665A) | D192: 33 | Q192: 0
B193: 3 | C193: Ostatné výnosy z cenných papierov a podielov (665A) | D193: 34 | Q193: 0
B194: X. | C194: Výnosy z krátkodobého finančného majetku súčet (r. 36 až r. 38) | D194: 35 | E194: =SUM(E195:E197) -> 0 | F194: =SUM(F195:F197) -> 0 | G194: 0 | H194: 0 | I194: 0 | J194: 0 | K194: 0 | L194: 0 | M194: 0 | N194: 0 | O194: 0 | P194: 0 | Q194: 0
B195: X.1. | C195: Výnosy z krátkodobého finančného majetku od prepojených účtovných jednotiek (666A) | D195: 36 | Q195: 0
B196: 2 | C196: Výnosy z krátkodobého finančného majetku v podielovej účasti okrem výnosov prepojených účtovných jednotiek (666A) | D196: 37 | Q196: 0
B197: 3 | C197: Ostatné výnosy z krátkodobého finančného majetku (666A) | D197: 38 | Q197: 0
B198: XI. | C198: Výnosové úroky (r. 40 + r. 41) | D198: 39 | E198: =SUM(E199:E200) -> 0 | F198: =SUM(F199:F200) -> 0 | G198: 0 | H198: 0 | I198: 0 | J198: 0 | K198: 0 | L198: 0 | M198: 0 | N198: 0 | O198: 0 | P198: 0 | Q198: 0
B199: XI.1. | C199: Výnosové úroky od prepojených účtovných jednotiek (662A) | D199: 40 | Q199: 0
B200: 2 | C200: Ostatné výnosové úroky (662A) | D200: 41 | Q200: 0
B201: XII. | C201: Kurzové zisky (663) | D201: 42 | Q201: 0
B202: XIII. | C202: Výnosy z precenenia cenných papierov a výnosy z derivátových operácií (664, 667) | D202: 43 | Q202: 0
B203: XIV. | C203: Ostatné výnosy z finančnej činnosti (668) | D203: 44 | Q203: 0
B204: ** | C204: Náklady na finančnú činnosť spolu r. 46 + r. 47 + r. 48 + r. 49 + r. 52 + r. 53 + r. 54 | D204: 45 | E204: =SUM(E205:E208,E211:E213) -> 0 | F204: =SUM(F205:F208,F211:F213) -> 0 | G204: 0 | H204: 0 | I204: 7 | J204: 7 | K204: 7 | L204: 7 | M204: 10 | N204: 8 | O204: 7 | P204: 11 | Q204: 64
B205: K. | C205: Predané cenné papiere a podiely (561) | D205: 46 | Q205: 0
... 15 more rows

Sheet 2018
B2: Označenie | C2: AKTÍVA | D2: Číslo | E2: V bežnom účtovnom období (NETTO)
B3: a | C3: b | D3: riadku | E3: Január | F3: Február | G3: Marec | H3: Apríl | I3: Máj | J3: Jún | K3: Júl | L3: August | M3: September | N3: Október | O3: November | P3: December
D4: c
C5: SPOLU MAJETOK r. 02 + r. 33 + r. 74 | D5: 1 | E5: =SUM(E6+E37+E78) -> 138008.95 | F5: =SUM(F6+F37+F78) -> 129069.11 | G5: 111520.93 | H5: 111130.57 | I5: 92768.03 | J5: 93483.41 | K5: 106597.38 | L5: 117269.89 | M5: 120419.71 | N5: 101876.63 | O5: 133476.48 | P5: 161114.36
B6: A | C6: Neobežný majetok r. 03 + r. 11 + r. 21 | D6: 2 | E6: =SUM(E7+E15+E25) -> 49500 | F6: =SUM(F7+F15+F25) -> 48675 | G6: 62974.65 | H6: 61884.3 | I6: 60793.95 | J6: 59703.6 | K6: 72292.4 | L6: 70970.2 | M6: 69648 | N6: 68325.8 | O6: 95374.6 | P6: 93536.9
B7: A.I. | C7: Dlhodobý nehmotný majetok súčet (r. 04 až r. 10) | D7: 3 | E7: =SUM(E8:E14) -> 49500 | F7: =SUM(F8:F14) -> 48675 | G7: 62974.65 | H7: 61884.3 | I7: 60793.95 | J7: 59703.6 | K7: 72292.4 | L7: 70970.2 | M7: 69648 | N7: 68325.8 | O7: 67003.6 | P7: 65769.9
B8: A.I.1. | C8: Aktivované náklady na vývoj (012) - /072, 091A/ | D8: 4
B9: 2. | C9: Softvér (013) - /073, 091A/ | D9: 5
B10: 3. | C10: Oceniteľné práva (014) - /074, 091A/ | D10: 6 | E10: 49500 | F10: 48675 | G10: 62974.65 | H10: 61884.3 | I10: 60793.95 | J10: 59703.6 | K10: 72292.4 | L10: 70970.2 | M10: 69648 | N10: 68325.8 | O10: 67003.6 | P10: 65769.9
B11: 4. | C11: Goodwill (015) - /075, 091A/ | D11: 7
B12: 5. | C12: Ostatný dlhodobý nehmotný majetok (019, 01X) - /079, 07X, 091A/ | D12: 8
B13: 6. | C13: Obstarávaný dlhodobý nehmotný majetok (041) - /093/ | D13: 9
B14: 7. | C14: Poskytnuté preddavky na dlhodobý nehmotný majetok (051) - /095A/ | D14: 10
B15: A.II. | C15: Dlhodobý hmotný majetok súčet (r. 12 až r. 20) | D15: 11 | E15: =SUM(E16:E24) -> 0 | F15: =SUM(F16:F24) -> 0 | G15: 0 | H15: 0 | I15: 0 | J15: 0 | K15: 0 | L15: 0 | M15: 0 | N15: 0 | O15: 28371 | P15: 27767
B16: A.II.1. | C16: Pozemky (031) - /092A/ | D16: 12
B17: 2. | C17: Stavby (021) - /081, 092A/ | D17: 13
B18: 3. | C18: Samostatné hnuteľné veci a súbory hnuteľných vecí (022) - /082, 092A/ | D18: 14 | O18: 28371 | P18: 27767
B19: 4. | C19: Pestovateľské celky trvalých porastov (025) - /085, 092A/ | D19: 15
B20: 5. | C20: Základné stádo a ťažné zvieratá (026) - /086, 092A/ | D20: 16
B21: 6. | C21: Ostatný dlhodobý hmotný majetok (029, 02X, 032) - /089, 08X, 092A/ | D21: 17
B22: 7. | C22: Obstarávaný dlhodobý hmotný majetok (042) - /094/ | D22: 18
B23: 8. | C23: Poskytnuté preddavky na dlhodobý hmotný majetok (052) - /095A/ | D23: 19
B24: 9. | C24: Opravná položka k nadobudnutému majetku (+/- 097) +/- 098 | D24: 20
B25: A.III. | C25: Dlhodobý finančný majetok súčet (r. 22 až r. 32) | D25: 21 | E25: =SUM(E26:E36) -> 0 | F25: =SUM(F26:F36) -> 0 | G25: 0 | H25: 0 | I25: 0 | J25: 0 | K25: 0 | L25: 0 | M25: 0 | N25: 0 | O25: 0 | P25: 0
B26: A.III.1. | C26: Podielové cenné papiere a podiely v prepojených účtovných jednotkách (061A, 062A, 063A) - /096A/ | D26: 22
B27: 2. | C27: Podielové cenné papiere a podiely s podielovou účasťou okrem v prepojených účtovných jednotkách (062A) - /096A/ | D27: 23
B28: 3. | C28: Ostatné realizovateľné cenné papiere a podiely (063A) - /096A/ | D28: 24
B29: 4. | C29: Pôžičky prepojeným účtovným jednotkám (066A) - /096A/ | D29: 25
B30: 5. | C30: Pôžičky v rámci podielovej účasti okrem prepojeným účtovným jednotkám (066A) - /096A/ | D30: 26
B31: 6. | C31: Ostatné pôžičky (067A) - /096A/ | D31: 27
B32: 7. | C32: Dlhové cenné papiere a ostatný dlhodobý finančný majetok (065A, 069A, 06XA) - /096A/ | D32: 28
B33: 8. | C33: Pôžičky a ostatný dlhodobý finančný majetok so zostatkovou dobou splatnosti najviac jeden rok (066A, 067A, 069A, 06XA) - /096A/ | D33: 29
B34: 9. | C34: Účty v bankách s dobou viazanosti dlhšou ako jeden rok (22XA) | D34: 30
B35: 10. | C35: Obstarávaný dlhodobý finančný majetok (043) - /096A/ | D35: 31
B36: 11. | C36: Poskytnuté preddavky na dlhodobý finančný majetok (053) - /095A/ | D36: 32
B37: B. | C37: Obežný majetok r. 34 + r. 41 + r. 53 + r. 66 + r. 71 | D37: 33 | E37: =E38+E45+E57+E70+E75 -> 88508.95 | F37: =F38+F45+F57+F70+F75 -> 80394.11 | G37: 48546.28 | H37: 49246.27 | I37: 31974.08 | J37: 33779.81 | K37: 34304.98 | L37: 46299.69 | M37: 50771.71 | N37: 33550.83 | O37: 38101.88 | P37: 67577.46
B38: B.I. | C38: Zásoby súčet (r. 35 až r. 40) | D38: 34 | E38: =SUM(E39:E44) -> 0 | F38: =SUM(F39:F44) -> 0 | G38: 0 | H38: 0 | I38: 0 | J38: 0 | K38: 0 | L38: 0 | M38: 0 | N38: 0 | O38: 0 | P38: 0
B39: B.I.1. | C39: Materiál (112, 119, 11X) - /191, 19X/ | D39: 35
B40: 2. | C40: Nedokončená výroba a polotovary vlastnej výroby (121, 122, 12X) - /192, 193, 19X/ | D40: 36
B41: 3. | C41: Výrobky (123) - /194/ | D41: 37
B42: 4. | C42: Zvieratá (124) - /195/ | D42: 38
B43: 5. | C43: Tovar (132, 133, 13X, 139) - /196, 19X/ | D43: 39
B44: 6. | C44: Poskytnuté preddavky na zásoby (314A) - /391A/ | D44: 40
B45: B.II. | C45: Dlhodobé pohľadávky súčet (r. 42 + r. 46 až r. 52) | D45: 41 | E45: =SUM(E46+E50+E51+E52+E53+E54+E55+E56) -> 0 | F45: =SUM(F46+F50+F51+F52+F53+F54+F55+F56) -> 0 | G45: 0 | H45: 0 | I45: 0 | J45: 0 | K45: 0 | L45: 0 | M45: 0 | N45: 0 | O45: 0 | P45: 0
B46: B.II.1. | C46: Pohľadávky z obchodného styku súčet (r. 43 až r. 45) | D46: 42 | E46: =SUM(E47:E49) -> 0 | F46: =SUM(F47:F49) -> 0 | G46: 0 | H46: 0 | I46: 0 | J46: 0 | K46: 0 | L46: 0 | M46: 0 | N46: 0 | O46: 0 | P46: 0
B47: 1.a. | C47: Pohľadávky z obchodného styku voči prepojeným účtovným jednotkám (311A, 312A, 313A, 314A, 315A, 31XA) - /391A/ | D47: 43
B48: 1.b. | C48: Pohľadávky z obchodného styku v rámci podielovej účasti okrem pohľadávok voči prepojeným účtovným jednotkám (311A, 312A, 313A, 314A, 315A, 31XA) - /391A/ | D48: 44
B49: 1.c. | C49: Ostatné pohľadávky z obchodného styku (311A, 312A, 313A, 314A, 315A, 31XA) - /391A/ | D49: 45
B50: 2. | C50: Čistá hodnota zákazky (316A) | D50: 46
B51: 3. | C51: Ostatné pohľadávky voči prepojeným účtovným jednotkám (351A) - /391A/ | D51: 47
B52: 4. | C52: Ostatné pohľadávky v rámci podielovej účasti okrem pohľadávok voči prepojeným účtovným jednotkám (351A) - /391A/ | D52: 48
B53: 5. | C53: Pohľadávky voči spoločníkom, členom a združeniu (354A, 355A, 358A, 35XA) - /391A/ | D53: 49
B54: 6. | C54: Pohľadávky z derivátových operácií (373A, 376A) | D54: 50
B55: 7. | C55: Iné pohľadávky (335A, 336A, 33XA, 371A, 374A, 375A, 378A) - /391A/ | D55: 51
B56: 8. | C56: Odložená daňová pohľadávka (481A) | D56: 52
B57: B.III. | C57: Krátkodobé pohľadávky súčet (r. 54 + r. 58 až r. 65) | D57: 53 | E57: =SUM(E58,E62:E69) -> 83370.09 | F57: =SUM(F58,F62:F69) -> 49541.88 | G57: =SUM(G58,G62:G69) -> 31946.25 | H57: 45011.6 | I57: 23883.17 | J57: 27816.78 | K57: 25971.79 | L57: 36582.96 | M57: 45115.49 | N57: 22793.99 | O57: 28971.95 | P57: 59934.56
B58: B.III.1. | C58: Pohľadávky z obchodného styku súčet (r. 55 až r. 57) | D58: 54 | E58: =SUM(E59:E61) -> 88783.79 | F58: =SUM(F59:F61) -> 54955.58 | G58: 37359.95 | H58: 45011.6 | I58: 23883.17 | J58: 27816.78 | K58: 25971.79 | L58: 34129.33 | M58: 42661.86 | N58: 18986.94 | O58: 25164.9 | P58: 58361.07
B59: 1.a. | C59: Pohľadávky z obchodného styku voči prepojeným účtovným jednotkám (311A, 312A, 313A, 314A, 315A, 31XA) - /391A/ | D59: 55
B60: 1.b. | C60: Pohľadávky z obchodného styku v rámci podielovej účasti okrem pohľadávok voči prepojeným účtovným jednotkám (311A, 312A, 313A, 314A, 315A, 31XA) - /391A/ | D60: 56
B61: 1.c. | C61: Ostatné pohľadávky z obchodného styku (311A, 312A, 313A, 314A, 315A, 31XA) - /391A/ | D61: 57 | E61: 88783.79 | F61: 54955.58 | G61: 37359.95 | H61: 45011.6 | I61: 23883.17 | J61: 27816.78 | K61: 25971.79 | L61: 34129.33 | M61: 42661.86 | N61: 18986.94 | O61: 25164.9 | P61: 58361.07
B62: 2. | C62: Čistá hodnota zákazky (316A) | D62: 58
B63: 3. | C63: Ostatné pohľadávky voči prepojeným účtovným jednotkám (351A) - /391A/ | D63: 59
B64: 4. | C64: Ostatné pohľadávky v rámci podielovej účasti okrem pohľadávok voči prepojeným účtovným jednotkám (351A) - /391A/ | D64: 60
B65: 5. | C65: Pohľadávky voči spoločníkom, členom a združeniu (354A, 355A, 358A, 35XA, 398A) - /391A/ | D65: 61
B66: 6. | C66: Sociálne poistenie (336A) - /391A/ | D66: 62
B67: 7. | C67: Daňové pohľadávky a dotácie (341, 342, 343, 345, 346, 347) - /391A/ | D67: 63 | E67: -5413.7 | F67: -5413.7 | G67: -5413.7 | L67: 2453.63 | M67: 2453.63 | N67: 3807.05 | O67: 3807.05 | P67: 1573.49
B68: 8. | C68: Pohľadávky z derivátových operácií (373A, 376A) | D68: 64
B69: 9. | C69: Iné pohľadávky (335A, 33XA, 371A, 374A, 375A, 378A) - /391A/ | D69: 65
B70: B.IV. | C70: Krátkodobý finančný majetok súčet (r. 67 až r. 70) | D70: 66 | E70: =SUM(E71:E74) -> 0 | F70: =SUM(F71:F74) -> 0 | G70: 0 | H70: 0 | I70: 0 | J70: 0 | K70: 0 | L70: 0 | M70: 0 | N70: 0 | O70: 0 | P70: 0
B71: B.IV.1. | C71: Krátkodobý finančný majetok v prepojených účtovných jednotkách (251A, 253A, 256A, 257A, 25XA) - /291A, 29XA/ | D71: 67
B72: 2 | C72: Krátkodobý finančný majetok bez krátkodobého finančného majetku v prepojených účtovných jednotkách (251A, 253A, 256A, 257A, 25XA) - /291A, 29XA/ | D72: 68
B73: 3. | C73: Vlastné akcie a vlastné obchodné podiely (252) | D73: 69
B74: 4. | C74: Obstarávaný krátkodobý finančný majetok (259, 314A) - /291A/ | D74: 70
B75: B.V. | C75: Finančné účty r. 72 + r. 73 | D75: 71 | E75: =SUM(E76:E77) -> 5138.86 | F75: =SUM(F76:F77) -> 30852.23 | G75: 16600.03 | H75: 4234.67 | I75: 8090.91 | J75: 5963.03 | K75: 8333.19 | L75: 9716.73 | M75: 5656.22 | N75: 10756.84 | O75: 9129.93 | P75: 7642.9
B76: B.V.1. | C76: Peniaze (211, 213, 21X) | D76: 72 | E76: 4995.46 | F76: 4669.76 | G76: 4129.13 | H76: 4139.33 | I76: 4076.23 | J76: 3908.1 | K76: 3822.1 | L76: 3610.38 | M76: 3591.01 | N76: 3363.93 | O76: 4041.42 | P76: 4214.57
B77: 2. | C77: Účty v bankách (221A, 22X, +/- 261) | D77: 73 | E77: 143.4 | F77: 26182.47 | G77: 12470.9 | H77: 95.34 | I77: 4014.68 | J77: 2054.93 | K77: 4511.09 | L77: 6106.35 | M77: 2065.21 | N77: 7392.91 | O77: 5088.51 | P77: 3428.33
B78: C. | C78: Časové rozlíšenie súčet (r. 75 až r. 78) | D78: 74 | E78: =SUM(E79:E82) -> 0 | F78: =SUM(F79:F82) -> 0 | G78: 0 | H78: 0 | I78: 0 | J78: 0 | K78: 0 | L78: 0 | M78: 0 | N78: 0 | O78: 0 | P78: 0
B79: C.1. | C79: Náklady budúcich období dlhodobé (381A, 382A) | D79: 75
B80: 2. | C80: Náklady budúcich období krátkodobé (381A, 382A) | D80: 76
B81: 3. | C81: Príjmy budúcich období dlhodobé (385A) | D81: 77
B82: 4. | C82: Príjmy budúcich období krátkodobé (385A) | D82: 78
B84: Označenie | C84: PASÍVA | D84: Číslo | E84: V bežnom účtovnom období (NETTO)
B85: a | C85: b | D85: riadku | E85: Január | F85: Február | G85: Marec | H85: Apríl | I85: Máj | J85: Jún | K85: Júl | L85: August | M85: September | N85: Október | O85: November | P85: December
D86: c
C87: SPOLU VLASTNÉ IMANIE A ZÁVÄZKY r. 80 + r. 101 + r. 141 | D87: 79 | E87: =SUM(E88,E109,E149) -> 138008.95 | F87: =SUM(F88,F109,F149) -> 129069.11 | G87: 111520.93 | H87: 111130.57 | I87: 92768.03 | J87: 93483.41 | K87: 106597.38 | L87: 117269.89 | M87: 120419.71 | N87: 101876.63 | O87: 133476.48 | P87: 161114.36
B88: A. | C88: Vlastné imanie r. 81 + r. 85 + r. 86 + r. 87 + r. 90 + r. 93 + r. 97 + r. 100 | D88: 80 | E88: =E89+E93+E94+E95+E98+E101+E105+E108 -> 26750.91 | F88: =F89+F93+F94+F95+F98+F101+F105+F108 -> 20166.33 | G88: =G89+G93+G94+G95+G98+G101+G105+G108 -> 14896.84 | H88: 11546.33 | I88: 7798.07 | J88: 393.85 | K88: -4565.77 | L88: 294.67 | M88: 2357.09 | N88: -5532.77 | O88: -11098.08 | P88: 5282.99
B89: A.I. | C89: Základné imanie súčet (r. 82 až r. 84) | D89: 81 | E89: =SUM(E90:E92) -> 5000 | F89: =SUM(F90:F92) -> 5000 | G89: 5000 | H89: 5000 | I89: 5000 | J89: 5000 | K89: 5000 | L89: 5000 | M89: 5000 | N89: 5000 | O89: 5000 | P89: 5000
B90: A.I.1. | C90: Základné imanie (411 alebo +/- 491) | D90: 82 | E90: 5000 | F90: 5000 | G90: 5000 | H90: 5000 | I90: 5000 | J90: 5000 | K90: 5000 | L90: 5000 | M90: 5000 | N90: 5000 | O90: 5000 | P90: 5000
B91: 2. | C91: Zmena základného imania +/- 419 | D91: 83
B92: 3. | C92: Pohľadávky za upísané vlastné imanie (/-/353) | D92: 84
B93: A.II. | C93: Emisné ážio (412) | D93: 85
B94: A.III. | C94: Ostatné kapitálové fondy (413) | D94: 86
B95: A.IV. | C95: Zákonné rezervné fondy r. 88 + r. 89 | D95: 87 | E95: =SUM(E96:E97) -> 14.35 | F95: =SUM(F96:F97) -> 14.35 | G95: 14.35 | H95: 14.35 | I95: 14.35 | J95: 14.35 | K95: 14.35 | L95: 14.35 | M95: 14.35 | N95: 14.35 | O95: 14.35 | P95: 14.35
B96: A.IV.1. | C96: Zákonný rezervný fond a nedeliteľný fond (417A, 418, 421A, 422) | D96: 88 | E96: 14.35 | F96: 14.35 | G96: 14.35 | H96: 14.35 | I96: 14.35 | J96: 14.35 | K96: 14.35 | L96: 14.35 | M96: 14.35 | N96: 14.35 | O96: 14.35 | P96: 14.35
B97: 2. | C97: Rezervný fond na vlastné akcie a vlastné podiely (417A, 421A) | D97: 89
B98: A.V. | C98: Ostatné fondy zo zisku r. 91 + r. 92 | D98: 90 | E98: =SUM(E99:E100) -> 0 | F98: =SUM(F99:F100) -> 0 | G98: 0 | H98: 0 | I98: 0 | J98: 0 | K98: 0 | L98: 0 | M98: 0 | N98: 0 | O98: 0 | P98: 0
B99: A.V.1. | C99: Štatutárne fondy (423, 42X) | D99: 91
B100: 2. | C100: Ostatné fondy (427, 42X) | D100: 92
B101: A.VI. | C101: Oceňovacie rozdiely z precenenia súčet (r. 94 až r. 96) | D101: 93 | E101: =SUM(E102:E104) -> 0 | F101: =SUM(F102:F104) -> 0 | G101: 0 | H101: 0 | I101: 0 | J101: 0 | K101: 0 | L101: 0 | M101: 0 | N101: 0 | O101: 0 | P101: 0
B102: A.VI.1. | C102: Oceňovacie rozdiely z precenenia majetku a záväzkov (+/- 414) | D102: 94
B103: 2. | C103: Oceňovacie rozdiely z kapitálových účastín (+/- 415) | D103: 95
B104: 3. | C104: Oceňovacie rozdiely z precenenia pri zlúčení, splynutí a rozdelení (+/- 416) | D104: 96
B105: A.VII. | C105: Výsledok hospodárenia minulých rokov r. 98 + r. 99 | D105: 97 | E105: =SUM(E106:E107) -> -5933.98 | F105: =SUM(F106:F107) -> -5933.98 | G105: -5933.98 | H105: -5933.98 | I105: -5933.98 | J105: -5933.98 | K105: -5933.98 | L105: -5933.98 | M105: -5933.98 | N105: -5933.98 | O105: -5933.98 | P105: -5933.98
B106: A.VII.1. | C106: Nerozdelený zisk minulých rokov (428) | D106: 98 | E106: -5933.98 | F106: -5933.98 | G106: -5933.98 | H106: -5933.98 | I106: -5933.98 | J106: -5933.98 | K106: -5933.98 | L106: -5933.98 | M106: -5933.98 | N106: -5933.98 | O106: -5933.98 | P106: 272.69
B107: 2. | C107: Neuhradená strata minulých rokov (/-/429) | D107: 99 | P107: -6206.67
B108: A.VIII. | C108: Výsledok hospodárenia za účtovné obdobie po zdanení /+-/ r. 01 - (r. 81 + r. 85 + r. 86 + r. 87 + r. 90 + r. 93 + r. 97 + r. 101 + r. 141) | D108: 100 | E108: =E5-(E89+E93+E94+E95+E98+E101+E105+E109+E149) -> 27670.54 | F108: =F5-(F89+F93+F94+F95+F98+F101+F105+F109+F149) -> 21085.96 | G108: =G5-(G89+G93+G94+G95+G98+G101+G105+G109+G149) -> 15816.47 | H108: 12465.96 | I108: 8717.7 | J108: 1313.48 | K108: -3646.14 | L108: 1214.3 | M108: 3276.72 | N108: -4613.14 | O108: -10178.45 | P108: 6202.62
B109: B. | C109: Záväzky r. 102 + r. 118 + r. 121 + r. 122 + r. 136 + r. 139 + r. 140 | D109: 101 | E109: =E110+E126+E129+E130+E144+E147+E148 -> 111258.04 | F109: =F110+F126+F129+F130+F144+F147+F148 -> 108902.78 | G109: 96624.09 | H109: 99584.24 | I109: 84969.96 | J109: 93089.56 | K109: 111163.15 | L109: 116975.22 | M109: 118062.62 | N109: 107409.4 | O109: 144574.56 | P109: 155831.37
B110: B.I. | C110: Dlhodobé záväzky súčet (r. 103 + r. 107 až r. 117) | D110: 102 | E110: =SUM(E111,E115:E125) -> 148.39 | F110: =SUM(F111,F115:F125) -> 162.43 | G110: 177.73 | H110: 192.77 | I110: 209.32 | J110: 229.91 | K110: 253.3 | L110: 276.13 | M110: 298.9 | N110: 323.17 | O110: 24684.81 | P110: 24062.91
B111: B.I.1. | C111: Dlhodobé záväzky z obchodného styku súčet (r. 104 až r. 106) | D111: 103 | E111: =SUM(E112:E114) -> 0 | F111: =SUM(F112:F114) -> 0 | G111: 0 | H111: 0 | I111: 0 | J111: 0 | K111: 0 | L111: 0 | M111: 0 | N111: 0 | O111: 0 | P111: 0
B112: 1.a. | C112: Záväzky z obchodného styku voči prepojeným účtovným jednotkám (321A, 475A, 476A) | D112: 104
B113: 1.b. | C113: Záväzky z obchodného styku v rámci podielovej účasti okrem záväzkov voči prepojeným účtovným jednotkám (321A, 475A, 476A) | D113: 105
B114: 1.c. | C114: Ostatné záväzky z obchodného styku (321A, 475A, 476A) | D114: 106
B115: 2. | C115: Čistá hodnota zákazky (316A) | D115: 107
B116: 3. | C116: Ostatné záväzky voči prepojeným účtovným jednotkám (471A, 47XA) | D116: 108
B117: 4. | C117: Ostatné záväzky v rámci podielovej účasti okrem záväzkov voči prepojeným účtovným jednotkám (471A, 47XA) | D117: 109
B118: 5. | C118: Ostatné dlhodobé záväzky (479A, 47XA) | D118: 110
B119: 6. | C119: Dlhodobé prijaté preddavky (475A) | D119: 111
B120: 7. | C120: Dlhodobé zmenky na úhradu (478A) | D120: 112
B121: 8. | C121: Vydané dlhopisy (473A/-/255A) | D121: 113
B122: 9. | C122: Záväzky zo sociálneho fondu (472) | D122: 114 | E122: 148.39 | F122: 162.43 | G122: 177.73 | H122: 192.77 | I122: 209.32 | J122: 229.91 | K122: 253.3 | L122: 276.13 | M122: 298.9 | N122: 323.17 | O122: 345.81 | P122: 361.37
B123: 10. | C123: Iné dlhodobé záväzky (336A, 372A, 474A, 47XA) | D123: 115 | O123: 24339 | P123: 23701.54
B124: 11. | C124: Dlhodobé záväzky z derivátových operácií (373A, 377A) | D124: 116
B125: 12. | C125: Odložený daňový záväzok (481A) | D125: 117
B126: B.II. | C126: Dlhodobé rezervy r. 119 + r. 120 | D126: 118 | E126: =SUM(E127:E128) -> 0 | F126: =SUM(F127:F128) -> 0 | G126: 0 | H126: 0 | I126: 0 | J126: 0 | K126: 0 | L126: 0 | M126: 0 | N126: 0 | O126: 0 | P126: 0
B127: B.II.1. | C127: Zákonné rezervy (451A) | D127: 119
B128: 2. | C128: Ostatné rezervy (459A, 45XA) | D128: 120
B129: B.III. | C129: Dlhodobé bankové úvery (461A, 46XA) | D129: 121
B130: B.IV. | C130: Krátkodobé záväzky súčet (r. 123 + r. 127 až r. 135) | D130: 122 | E130: =SUM(E131,E135:E143) -> 109598.93 | F130: =SUM(F131,F135:F143) -> 107229.63 | G130: 95335.64 | H130: 98280.75 | I130: 83649.92 | J130: 91748.93 | K130: 109799.13 | L130: 115588.37 | M130: 116653 | N130: 105975.51 | O130: 118779.03 | P130: 129008.77
B131: B.IV.1. | C131: Záväzky z obchodného styku súčet (r. 124 až r. 126) | D131: 123 | E131: =SUM(E132:E134) -> 86149.18 | F131: =SUM(F132:F134) -> 82013.39 | G131: 96639.14 | H131: 100141.88 | I131: 80755.09 | J131: 88553.11 | K131: 111068.9 | L131: 114056.1 | M131: 115640.95 | N131: 101734.37 | O131: 105047.34 | P131: 113649.91
B132: 1.a. | C132: Záväzky z obchodného styku voči prepojeným účtovným jednotkám (321A, 322A, 324A, 325A, 326A, 32XA, 475A, 476A, 478A, 47XA) | D132: 124
B133: 1.b. | C133: Záväzky z obchodného styku v rámci podielovej účasti okrem záväzkov voči prepojeným účtovným jednotkám (321A, 322A, 324A, 325A, 326A, 32XA, 475A, 476A, 478A, 47XA) | D133: 125
B134: 1.c. | C134: Ostatné záväzky z obchodného styku (321A, 322A, 324A, 325A, 326A, 32XA, 475A, 476A, 478A, 47XA) | D134: 126 | E134: 86149.18 | F134: 82013.39 | G134: 96639.14 | H134: 100141.88 | I134: 80755.09 | J134: 88553.11 | K134: 111068.9 | L134: 114056.1 | M134: 115640.95 | N134: 101734.37 | O134: 105047.34 | P134: 113649.91
B135: 2. | C135: Čistá hodnota zákazky (316A) | D135: 127
B136: 3. | C136: Ostatné záväzky voči prepojeným účtovným jednotkám (361A, 36XA, 471A, 47XA) | D136: 128
B137: 4. | C137: Ostatné záväzky v rámci podielovej účasti okrem záväzkov voči prepojeným účtovným jednotkám (361A, 36XA, 471A, 47XA) | D137: 129
B138: 5. | C138: Záväzky voči spoločníkom a združeniu (364, 365, 366, 367, 368, 398A, 478A, 479A) | D138: 130 | O138: 11000 | P138: 11000
B139: 6. | C139: Záväzky voči zamestnancom (331, 333, 33X, 479A) | D139: 131 | E139: 2675.84 | F139: 2825.2 | G139: 1796.24 | H139: 1968.47 | I139: 2381.36 | J139: 2667.38 | K139: 3095.45 | L139: 3181.15 | M139: 3066.77 | N139: 3439.41 | O139: 3141.91 | P139: 2410.15
B140: 7. | C140: Záväzky zo sociálneho poistenia (336A) | D140: 132 | E140: 1219.18 | F140: 1218.22 | G140: 1239.31 | H140: 1238.69 | I140: 1500.34 | J140: 1707.88 | K140: 1919.99 | L140: 1944.13 | M140: 1933.93 | N140: 2115.52 | O140: 2017.2 | P140: 1555.9
B141: 8. | C141: Daňové záväzky a dotácie (341, 342, 343, 345, 346, 347, 34X) | D141: 133 | E141: -3949.27 | F141: -4231.18 | G141: -6243.05 | H141: -6972.29 | I141: -2890.87 | J141: -3083.44 | K141: -5369.21 | L141: -2677.01 | M141: -3072.65 | N141: -2541.79 | O141: -7011.42 | P141: 392.81
B142: 9. | C142: Záväzky z derivátových operácií (373A, 377A) | D142: 134
B143: 10. | C143: Iné záväzky (372A, 379A, 474A, 475A, 479A, 47XA) | D143: 135 | E143: 23504 | F143: 25404 | G143: 1904 | H143: 1904 | I143: 1904 | J143: 1904 | K143: -916 | L143: -916 | M143: -916 | N143: 1228 | O143: 4584
B144: B.V. | C144: Krátkodobé rezervy r. 137 + r. 138 | D144: 136 | E144: =SUM(E145:E146) -> 1510.72 | F144: =SUM(F145:F146) -> 1510.72 | G144: 1110.72 | H144: 1110.72 | I144: 1110.72 | J144: 1110.72 | K144: 1110.72 | L144: 1110.72 | M144: 1110.72 | N144: 1110.72 | O144: 1110.72 | P144: 2759.69
B145: B.V.1. | C145: Zákonné rezervy (323A, 451A) | D145: 137 | E145: 1110.72 | F145: 1110.72 | G145: 1110.72 | H145: 1110.72 | I145: 1110.72 | J145: 1110.72 | K145: 1110.72 | L145: 1110.72 | M145: 1110.72 | N145: 1110.72 | O145: 1110.72 | P145: 1809.69
B146: 2. | C146: Ostatné rezervy (323A, 32X, 459A, 45XA) | D146: 138 | E146: 400 | F146: 400 | P146: 950
B147: B.VI. | C147: Bežné bankové úvery (221A, 231, 232, 23X, 461A, 46XA) | D147: 139
B148: B.VII. | C148: Krátkodobé finančné výpomoci (241, 249, 24X, 473A, /-/255A) | D148: 140
B149: C. | C149: Časové rozlíšenie súčet (r. 142 až r. 145) | D149: 141 | E149: =SUM(E150:E153) -> 0 | F149: =SUM(F150:F153) -> 0 | G149: 0 | H149: 0 | I149: 0 | J149: 0 | K149: 0 | L149: 0 | M149: 0 | N149: 0 | O149: 0 | P149: 0
B150: C.1. | C150: Výdavky budúcich období dlhodobé (383A) | D150: 142
B151: 2. | C151: Výdavky budúcich období krátkodobé (383A) | D151: 143
B152: 3. | C152: Výnosy budúcich období dlhodobé (384A) | D152: 144
B153: 4. | C153: Výnosy budúcich období krátkodobé (384A) | D153: 145
B157: Označenie | C157: Text | D157: Číslo | E157: Skutočnosť v účtovnom období (sledovanom)
D158: riadku | E158: Január | F158: Február | G158: Marec | H158: Apríl | I158: Máj | J158: Jún | K158: Júl | L158: August | M158: September | N158: Október | O158: November | P158: December | Q158: Celkom
B159: a | C159: b | D159: c
B160: * | C160: Čistý obrat (časť účt. tr. 6 podľa zákona) | D160: 1 | E160: =E164 -> 38667.64 | F160: =F164 -> 6740.42 | G160: 9447.71 | H160: 8627.05 | I160: 8430.16 | J160: 11010.19 | K160: 11366.42 | L160: 19646.57 | M160: 16962.77 | N160: 9403.19 | O160: 11234.12 | P160: 47097.72 | Q160: =SUM(E160:P160) -> 198633.96
B161: ** | C161: Výnosy z hospodárskej činnosti spolu súčet (r. 03 až r. 09) | D161: 2 | E161: =SUM(E162:E168) -> 38667.64 | F161: =SUM(F162:F168) -> 6740.42 | G161: 9447.71 | H161: 8627.05 | I161: 8430.16 | J161: 11010.19 | K161: 11366.42 | L161: 19646.57 | M161: 16962.77 | N161: 9403.19 | O161: 11234.12 | P161: 47233.75 | Q161: =SUM(E161:P161) -> 198769.99
B162: I. | C162: Tržby z predaja tovaru (604, 607) | D162: 3 | Q162: 0
B163: II. | C163: Tržby z predaja vlastných výrobkov (601) | D163: 4 | Q163: 0
B164: III. | C164: Tržby z predaja služieb (602, 606) | D164: 5 | E164: 38667.64 | F164: 6740.42 | G164: 9447.71 | H164: 8627.05 | I164: 8430.16 | J164: 11010.19 | K164: 11366.42 | L164: 19646.57 | M164: 16962.77 | N164: 9403.19 | O164: 11234.12 | P164: 47097.72 | Q164: 198633.96
B165: IV. | C165: Zmeny stavu vnútroorganizačných zásob (+/-) (účtová skupina 61) | D165: 6 | Q165: 0
B166: V. | C166: Aktivácia (účtová skupina 62) | D166: 7 | Q166: 0
B167: VI. | C167: Tržby z predaja dlhodobého nehmotného majetku, dlhodobého hmotného majetku a materiálu (641, 642) | D167: 8 | Q167: 0
B168: VII. | C168: Ostatné výnosy z hospodárskej činnosti (644, 645, 646, 648, 655, 657) | D168: 9 | P168: 136.03 | Q168: 136.03
B169: ** | C169: Náklady na hospodársku činnosť spolu r. 11 + r. 12 + r. 13 + r. 14 + r. 15 + r. 20 + r. 21 + r. 24 + r. 25 + r. 26 | D169: 10 | E169: =E170+E171+E172+E173+E174+E179+E180+E183+E184+E185 -> 10989.74 | F169: =F170+F171+F172+F173+F174+F179+F180+F183+F184+F185 -> 13318 | G169: 14707.5 | H169: 11970.56 | I169: 12166.98 | J169: 18407.41 | K169: 16318.86 | L169: 14777.69 | M169: 14892.09 | N169: 17283.89 | O169: 16770.47 | P169: 28523.3 | Q169: 190126.49
B170: A. | C170: Náklady vynaložené na obstaranie predaného tovaru (504, 507) | D170: 11 | Q170: 0
B171: B. | C171: Spotreba materiálu, energie a ostatných neskladovateľných dodávok (501, 502, 503) | D171: 12 | G171: 75 | I171: 522 | J171: 2287.5 | K171: 48.5 | L171: 733.44 | N171: 99.47 | O171: 163.69 | P171: 423.9 | Q171: 4353.5
B172: C. | C172: Opravné položky k zásobám (+/-) (505) | D172: 13 | Q172: 0
B173: D. | C173: Služby (účtová skupina 51) | D173: 14 | E173: 7204.61 | F173: 8989.41 | G173: 9961.45 | H173: 7312.57 | I173: 6217.66 | J173: 10054.86 | K173: 9370.18 | L173: 7270.93 | M173: 8038.6 | N173: 9799.23 | O173: 8078.31 | P173: 21041.57 | Q173: 113339.38
B174: E. | C174: Osobné náklady (r. 16 až r. 19) | D174: 15 | E174: =SUM(E175:E178) -> 3677.49 | F174: =SUM(F175:F178) -> 3498.64 | G174: 3580.7 | H174: 3567.64 | I174: 4336.97 | J174: 4974.7 | K174: 5577.98 | L174: 5447.56 | M174: 5531.29 | N174: 6062.99 | O174: 5829.14 | P174: 5139.68 | Q174: 57224.78
B175: E.1. | C175: Mzdové náklady (521, 522) | D175: 16 | E175: 2678.83 | F175: 2506.9 | G175: 2550 | H175: 2548.86 | I175: 3087.46 | J175: 3514.39 | K175: 3950.81 | L175: 3959.24 | M175: 3938.37 | N175: 4311.98 | O175: 4151.1 | P175: 3719.05 | Q175: 40916.99
B176: 2 | C176: Odmeny členom orgánov spoločnosti a družstva (523) | D176: 17 | Q176: 0
B177: 3 | C177: Náklady na sociálne poistenie (524, 525, 526) | D177: 18 | E177: 883.04 | F177: 882.33 | G177: 897.59 | H177: 897.15 | I177: 1086.66 | J177: 1236.99 | K177: 1390.6 | L177: 1252.31 | M177: 1386.23 | N177: 1517.74 | O177: 1461.03 | P177: 1308.93 | Q177: 14200.6
B178: 4 | C178: Sociálne náklady (527, 528) | D178: 19 | E178: 115.62 | F178: 109.41 | G178: 133.11 | H178: 121.63 | I178: 162.85 | J178: 223.32 | K178: 236.57 | L178: 236.01 | M178: 206.69 | N178: 233.27 | O178: 217.01 | P178: 111.7 | Q178: 2107.19
B179: F. | C179: Dane a poplatky (účtová skupina 53) | D179: 20 | E179: 92.8 | O179: 768 | P179: 18.5 | Q179: 879.3
B180: G. | C180: Odpisy a opravné položky k dlhodobému nehmotnému majetku a dlhodobému hmotnému majetku (r. 22 + r. 23) | D180: 21 | E180: =SUM(E181:E182) -> 0 | F180: =SUM(F181:F182) -> 825 | G180: 1090.35 | H180: 1090.35 | I180: 1090.35 | J180: 1090.35 | K180: 1322.2 | L180: 1322.2 | M180: 1322.2 | N180: 1322.2 | O180: 1926.2 | P180: 1837.7 | Q180: 14239.1
B181: G.1. | C181: Odpisy dlhodobého nehmotného majetku a dlhodobého hmotného majetku (551) | D181: 22 | F181: 825 | G181: 1090.35 | H181: 1090.35 | I181: 1090.35 | J181: 1090.35 | K181: 1322.2 | L181: 1322.2 | M181: 1322.2 | N181: 1322.2 | O181: 1926.2 | P181: 1837.7 | Q181: 14239.1
B182: 2 | C182: Opravné položky k dlhodobému nehmotnému majetku a dlhodobému hmotnému majetku (+/-) (553) | D182: 23 | Q182: 0
B183: H. | C183: Zostatková cena predaného dlhodobého majetku a predaného materiálu (541, 542) | D183: 24 | Q183: 0
B184: I. | C184: Opravné položky k pohľadávkam (+/-) (547) | D184: 25 | Q184: 0
B185: J. | C185: Ostatné náklady na hospodársku činnosť (543, 544, 545, 546, 548, 549, 555, 557) | D185: 26 | E185: 14.84 | F185: 4.95 | L185: 3.56 | O185: 5.13 | P185: 61.95 | Q185: 90.43
B186: *** | C186: Výsledok hospodárenia z hospodárskej činnosti (+/-) (r. 02 - r. 10) | D186: 27 | E186: =E161-E169 -> 27677.9 | F186: =F161-F169 -> -6577.58 | G186: -5259.79 | H186: -3343.51 | I186: -3736.82 | J186: -7397.22 | K186: -4952.44 | L186: 4868.88 | M186: 2070.68 | N186: -7880.7 | O186: -5536.35 | P186: 18710.45 | Q186: 8643.5
B187: * | C187: Pridaná hodnota (r. 03 + r. 04 + r. 05 + r. 06 + r. 07) - (r. 11 + r. 12 + r. 13 + r. 14) | D187: 28 | E187: =(E162+E163+E164+E165+E166)-(E170+E171+E172+E173) -> 31463.03 | F187: =(F162+F163+F164+F165+F166)-(F170+F171+F172+F173) -> -2248.99 | G187: -588.74 | H187: 1314.48 | I187: 1690.5 | J187: -1332.17 | K187: 1947.74 | L187: 11642.2 | M187: 8924.17 | N187: -495.51 | O187: 2992.12 | P187: 25632.25 | Q187: 80941.08
B188: ** | C188: Výnosy z finančnej činnosti spolu r. 30 + r. 31 + r. 35 + r. 39 + r. 42 + r. 43 + r. 44 | D188: 29 | E188: =E189+E190+E194+E198+E201+E202+E203 -> 0 | F188: =F189+F190+F194+F198+F201+F202+F203 -> 0 | G188: 0 | H188: 0 | I188: 0 | J188: 0 | K188: 0 | L188: 0 | M188: 0 | N188: 0 | O188: 0 | P188: 0 | Q188: 0
B189: VIII. | C189: Tržby z predaja cenných papierov a podielov (661) | D189: 30 | Q189: 0
B190: IX. | C190: Výnosy z dlhodobého finančného majetku súčet (r. 32 až r. 34) | D190: 31 | E190: =SUM(E191:E193) -> 0 | F190: =SUM(F191:F193) -> 0 | G190: 0 | H190: 0 | I190: 0 | J190: 0 | K190: 0 | L190: 0 | M190: 0 | N190: 0 | O190: 0 | P190: 0 | Q190: 0
B191: IX.1. | C191: Výnosy z cenných papierov a podielov od prepojených účtovných jednotiek (665A) | D191: 32 | Q191: 0
B192: 2 | C192: Výnosy z cenných papierov a podielov v podielovej účasti okrem výnosov prepojených účtovných jednotiek (665A) | D192: 33 | Q192: 0
B193: 3 | C193: Ostatné výnosy z cenných papierov a podielov (665A) | D193: 34 | Q193: 0
B194: X. | C194: Výnosy z krátkodobého finančného majetku súčet (r. 36 až r. 38) | D194: 35 | E194: =SUM(E195:E197) -> 0 | F194: =SUM(F195:F197) -> 0 | G194: 0 | H194: 0 | I194: 0 | J194: 0 | K194: 0 | L194: 0 | M194: 0 | N194: 0 | O194: 0 | P194: 0 | Q194: 0
B195: X.1. | C195: Výnosy z krátkodobého finančného majetku od prepojených účtovných jednotiek (666A) | D195: 36 | Q195: 0
B196: 2 | C196: Výnosy z krátkodobého finančného majetku v podielovej účasti okrem výnosov prepojených účtovných jednotiek (666A) | D196: 37 | Q196: 0
B197: 3 | C197: Ostatné výnosy z krátkodobého finančného majetku (666A) | D197: 38 | Q197: 0
B198: XI. | C198: Výnosové úroky (r. 40 + r. 41) | D198: 39 | E198: =SUM(E199:E200) -> 0 | F198: =SUM(F199:F200) -> 0 | G198: 0 | H198: 0 | I198: 0 | J198: 0 | K198: 0 | L198: 0 | M198: 0 | N198: 0 | O198: 0 | P198: 0 | Q198: 0
B199: XI.1. | C199: Výnosové úroky od prepojených účtovných jednotiek (662A) | D199: 40 | Q199: 0
B200: 2 | C200: Ostatné výnosové úroky (662A) | D200: 41 | Q200: 0
B201: XII. | C201: Kurzové zisky (663) | D201: 42 | Q201: 0
B202: XIII. | C202: Výnosy z precenenia cenných papierov a výnosy z derivátových operácií (664, 667) | D202: 43 | Q202: 0
B203: XIV. | C203: Ostatné výnosy z finančnej činnosti (668) | D203: 44 | Q203: 0
B204: ** | C204: Náklady na finančnú činnosť spolu r. 46 + r. 47 + r. 48 + r. 49 + r. 52 + r. 53 + r. 54 | D204: 45 | E204: =SUM(E205:E208,E211:E213) -> 7.36 | F204: =SUM(F205:F208,F211:F213) -> 7 | G204: 9.7 | H204: 7 | I204: 11.44 | J204: 7 | K204: 7.18 | L204: 8.44 | M204: 8.26 | N204: 9.16 | O204: 28.96 | P204: 95.82 | Q204: 207.32
B205: K. | C205: Predané cenné papiere a podiely (561) | D205: 46 | Q205: 0
... 15 more rows

Sheet 2019
B2: Označenie | C2: AKTÍVA | D2: Číslo | E2: V bežnom účtovnom období (NETTO)
B3: a | C3: b | D3: riadku | E3: Január | F3: Február | G3: Marec | H3: Apríl | I3: Máj | J3: Jún | K3: Júl | L3: August | M3: September | N3: Október | O3: November | P3: December
D4: c
C5: SPOLU MAJETOK r. 02 + r. 33 + r. 74 | D5: 1 | E5: =SUM(E6+E37+E78) -> 153376.27 | F5: =SUM(F6+F37+F78) -> 154252 | G5: 137354 | H5: 137463.83 | I5: 130625 | J5: 125234.11 | K5: 127707 | L5: 122771 | M5: 125621 | N5: 133821 | O5: 113389 | P5: 170056
B6: A | C6: Neobežný majetok r. 03 + r. 11 + r. 21 | D6: 2 | E6: =SUM(E7+E15+E25) -> 91619.88 | F6: =SUM(F7+F15+F25) -> 89703 | G6: 87786 | H6: 85869 | I6: 83952 | J6: 82035 | K6: 80118 | L6: 78201 | M6: 76284 | N6: 78971 | O6: 76977 | P6: 74982
B7: A.I. | C7: Dlhodobý nehmotný majetok súčet (r. 04 až r. 10) | D7: 3 | E7: =SUM(E8:E14) -> 64456.55 | F7: =SUM(F8:F14) -> 63143 | G7: 61830 | H7: 60517 | I7: 59203 | J7: 57890 | K7: 56577 | L7: 55263 | M7: 53950 | N7: 57241 | O7: 55850 | P7: 54459
B8: A.I.1. | C8: Aktivované náklady na vývoj (012) - /072, 091A/ | D8: 4
B9: 2. | C9: Softvér (013) - /073, 091A/ | D9: 5
B10: 3. | C10: Oceniteľné práva (014) - /074, 091A/ | D10: 6 | E10: 64456.55 | F10: 63143 | G10: 61830 | H10: 60517 | I10: 59203 | J10: 57890 | K10: 56577 | L10: 55263 | M10: 53950 | N10: 57241 | O10: 55850 | P10: 54459
B11: 4. | C11: Goodwill (015) - /075, 091A/ | D11: 7
B12: 5. | C12: Ostatný dlhodobý nehmotný majetok (019, 01X) - /079, 07X, 091A/ | D12: 8
B13: 6. | C13: Obstarávaný dlhodobý nehmotný majetok (041) - /093/ | D13: 9
B14: 7. | C14: Poskytnuté preddavky na dlhodobý nehmotný majetok (051) - /095A/ | D14: 10
B15: A.II. | C15: Dlhodobý hmotný majetok súčet (r. 12 až r. 20) | D15: 11 | E15: =SUM(E16:E24) -> 27163.33 | F15: =SUM(F16:F24) -> 26560 | G15: 25956 | H15: 25352 | I15: 24749 | J15: 24145 | K15: 23541 | L15: 22938 | M15: 22334 | N15: 21730 | O15: 21127 | P15: 20523
B16: A.II.1. | C16: Pozemky (031) - /092A/ | D16: 12
B17: 2. | C17: Stavby (021) - /081, 092A/ | D17: 13
B18: 3. | C18: Samostatné hnuteľné veci a súbory hnuteľných vecí (022) - /082, 092A/ | D18: 14 | E18: 27163.33 | F18: 26560 | G18: 25956 | H18: 25352 | I18: 24749 | J18: 24145 | K18: 23541 | L18: 22938 | M18: 22334 | N18: 21730 | O18: 21127 | P18: 20523
B19: 4. | C19: Pestovateľské celky trvalých porastov (025) - /085, 092A/ | D19: 15
B20: 5. | C20: Základné stádo a ťažné zvieratá (026) - /086, 092A/ | D20: 16
B21: 6. | C21: Ostatný dlhodobý hmotný majetok (029, 02X, 032) - /089, 08X, 092A/ | D21: 17
B22: 7. | C22: Obstarávaný dlhodobý hmotný majetok (042) - /094/ | D22: 18
B23: 8. | C23: Poskytnuté preddavky na dlhodobý hmotný majetok (052) - /095A/ | D23: 19
B24: 9. | C24: Opravná položka k nadobudnutému majetku (+/- 097) +/- 098 | D24: 20
B25: A.III. | C25: Dlhodobý finančný majetok súčet (r. 22 až r. 32) | D25: 21 | E25: =SUM(E26:E36) -> 0 | F25: =SUM(F26:F36) -> 0 | G25: 0 | H25: 0 | I25: 0 | J25: 0 | K25: 0 | L25: 0 | M25: 0 | N25: 0 | O25: 0 | P25: 0
B26: A.III.1. | C26: Podielové cenné papiere a podiely v prepojených účtovných jednotkách (061A, 062A, 063A) - /096A/ | D26: 22
B27: 2. | C27: Podielové cenné papiere a podiely s podielovou účasťou okrem v prepojených účtovných jednotkách (062A) - /096A/ | D27: 23
B28: 3. | C28: Ostatné realizovateľné cenné papiere a podiely (063A) - /096A/ | D28: 24
B29: 4. | C29: Pôžičky prepojeným účtovným jednotkám (066A) - /096A/ | D29: 25
B30: 5. | C30: Pôžičky v rámci podielovej účasti okrem prepojeným účtovným jednotkám (066A) - /096A/ | D30: 26
B31: 6. | C31: Ostatné pôžičky (067A) - /096A/ | D31: 27
B32: 7. | C32: Dlhové cenné papiere a ostatný dlhodobý finančný majetok (065A, 069A, 06XA) - /096A/ | D32: 28
B33: 8. | C33: Pôžičky a ostatný dlhodobý finančný majetok so zostatkovou dobou splatnosti najviac jeden rok (066A, 067A, 069A, 06XA) - /096A/ | D33: 29
B34: 9. | C34: Účty v bankách s dobou viazanosti dlhšou ako jeden rok (22XA) | D34: 30
B35: 10. | C35: Obstarávaný dlhodobý finančný majetok (043) - /096A/ | D35: 31
B36: 11. | C36: Poskytnuté preddavky na dlhodobý finančný majetok (053) - /095A/ | D36: 32
B37: B. | C37: Obežný majetok r. 34 + r. 41 + r. 53 + r. 66 + r. 71 | D37: 33 | E37: =E38+E45+E57+E70+E75 -> 61756.39 | F37: =F38+F45+F57+F70+F75 -> 64549 | G37: 49568 | H37: 51594.83 | I37: 46673 | J37: 43199.11 | K37: 47589 | L37: 44570 | M37: 49337 | N37: 54850 | O37: 36412 | P37: 95074
B38: B.I. | C38: Zásoby súčet (r. 35 až r. 40) | D38: 34 | E38: =SUM(E39:E44) -> 0 | F38: =SUM(F39:F44) -> 0 | G38: 0 | H38: 0 | I38: 0 | J38: 0 | K38: 0 | L38: 0 | M38: 0 | N38: 0 | O38: 0 | P38: 0
B39: B.I.1. | C39: Materiál (112, 119, 11X) - /191, 19X/ | D39: 35
B40: 2. | C40: Nedokončená výroba a polotovary vlastnej výroby (121, 122, 12X) - /192, 193, 19X/ | D40: 36
B41: 3. | C41: Výrobky (123) - /194/ | D41: 37
B42: 4. | C42: Zvieratá (124) - /195/ | D42: 38
B43: 5. | C43: Tovar (132, 133, 13X, 139) - /196, 19X/ | D43: 39
B44: 6. | C44: Poskytnuté preddavky na zásoby (314A) - /391A/ | D44: 40
B45: B.II. | C45: Dlhodobé pohľadávky súčet (r. 42 + r. 46 až r. 52) | D45: 41 | E45: =SUM(E46+E50+E51+E52+E53+E54+E55+E56) -> 0 | F45: =SUM(F46+F50+F51+F52+F53+F54+F55+F56) -> 0 | G45: 0 | H45: 0 | I45: 0 | J45: 0 | K45: 0 | L45: 0 | M45: 0 | N45: 0 | O45: 0 | P45: 0
B46: B.II.1. | C46: Pohľadávky z obchodného styku súčet (r. 43 až r. 45) | D46: 42 | E46: =SUM(E47:E49) -> 0 | F46: =SUM(F47:F49) -> 0 | G46: 0 | H46: 0 | I46: 0 | J46: 0 | K46: 0 | L46: 0 | M46: 0 | N46: 0 | O46: 0 | P46: 0
B47: 1.a. | C47: Pohľadávky z obchodného styku voči prepojeným účtovným jednotkám (311A, 312A, 313A, 314A, 315A, 31XA) - /391A/ | D47: 43
B48: 1.b. | C48: Pohľadávky z obchodného styku v rámci podielovej účasti okrem pohľadávok voči prepojeným účtovným jednotkám (311A, 312A, 313A, 314A, 315A, 31XA) - /391A/ | D48: 44
B49: 1.c. | C49: Ostatné pohľadávky z obchodného styku (311A, 312A, 313A, 314A, 315A, 31XA) - /391A/ | D49: 45
B50: 2. | C50: Čistá hodnota zákazky (316A) | D50: 46
B51: 3. | C51: Ostatné pohľadávky voči prepojeným účtovným jednotkám (351A) - /391A/ | D51: 47
B52: 4. | C52: Ostatné pohľadávky v rámci podielovej účasti okrem pohľadávok voči prepojeným účtovným jednotkám (351A) - /391A/ | D52: 48
B53: 5. | C53: Pohľadávky voči spoločníkom, členom a združeniu (354A, 355A, 358A, 35XA) - /391A/ | D53: 49
B54: 6. | C54: Pohľadávky z derivátových operácií (373A, 376A) | D54: 50
B55: 7. | C55: Iné pohľadávky (335A, 336A, 33XA, 371A, 374A, 375A, 378A) - /391A/ | D55: 51
B56: 8. | C56: Odložená daňová pohľadávka (481A) | D56: 52
B57: B.III. | C57: Krátkodobé pohľadávky súčet (r. 54 + r. 58 až r. 65) | D57: 53 | E57: =SUM(E58,E62:E69) -> 57197.91 | F57: =SUM(F58,F62:F69) -> 59586 | G57: =SUM(G58,G62:G69) -> 45231 | H57: 47036 | I57: 42749 | J57: 38186 | K57: 44746 | L57: 43555 | M57: 45824 | N57: 48662 | O57: 34387 | P57: 93264
B58: B.III.1. | C58: Pohľadávky z obchodného styku súčet (r. 55 až r. 57) | D58: 54 | E58: =SUM(E59:E61) -> 54833.79 | F58: =SUM(F59:F61) -> 57735 | G58: 41687 | H58: 43781 | I58: 41763 | J58: 37273 | K58: 43176 | L58: 41980 | M58: 45170 | N58: 46173 | O58: 32141 | P58: 93264
B59: 1.a. | C59: Pohľadávky z obchodného styku voči prepojeným účtovným jednotkám (311A, 312A, 313A, 314A, 315A, 31XA) - /391A/ | D59: 55
B60: 1.b. | C60: Pohľadávky z obchodného styku v rámci podielovej účasti okrem pohľadávok voči prepojeným účtovným jednotkám (311A, 312A, 313A, 314A, 315A, 31XA) - /391A/ | D60: 56
B61: 1.c. | C61: Ostatné pohľadávky z obchodného styku (311A, 312A, 313A, 314A, 315A, 31XA) - /391A/ | D61: 57 | E61: 54833.79 | F61: 57735 | G61: 41687 | H61: 43781 | I61: 41763 | J61: 37273 | K61: 43176 | L61: 41980 | M61: 45170 | N61: 46173 | O61: 32141 | P61: 93264
B62: 2. | C62: Čistá hodnota zákazky (316A) | D62: 58
B63: 3. | C63: Ostatné pohľadávky voči prepojeným účtovným jednotkám (351A) - /391A/ | D63: 59
B64: 4. | C64: Ostatné pohľadávky v rámci podielovej účasti okrem pohľadávok voči prepojeným účtovným jednotkám (351A) - /391A/ | D64: 60
B65: 5. | C65: Pohľadávky voči spoločníkom, členom a združeniu (354A, 355A, 358A, 35XA, 398A) - /391A/ | D65: 61
B66: 6. | C66: Sociálne poistenie (336A) - /391A/ | D66: 62
B67: 7. | C67: Daňové pohľadávky a dotácie (341, 342, 343, 345, 346, 347) - /391A/ | D67: 63 | E67: 2364.12 | F67: 1851 | G67: 3544 | H67: 3255 | I67: 986 | J67: 913 | K67: 1570 | L67: 1575 | M67: 654 | N67: 2489 | O67: 2246
B68: 8. | C68: Pohľadávky z derivátových operácií (373A, 376A) | D68: 64
B69: 9. | C69: Iné pohľadávky (335A, 33XA, 371A, 374A, 375A, 378A) - /391A/ | D69: 65
B70: B.IV. | C70: Krátkodobý finančný majetok súčet (r. 67 až r. 70) | D70: 66 | E70: =SUM(E71:E74) -> 0 | F70: =SUM(F71:F74) -> 0 | G70: 0 | H70: 0 | I70: 0 | J70: 0 | K70: 0 | L70: 0 | M70: 0 | N70: 0 | O70: 0 | P70: 0
B71: B.IV.1. | C71: Krátkodobý finančný majetok v prepojených účtovných jednotkách (251A, 253A, 256A, 257A, 25XA) - /291A, 29XA/ | D71: 67
B72: 2 | C72: Krátkodobý finančný majetok bez krátkodobého finančného majetku v prepojených účtovných jednotkách (251A, 253A, 256A, 257A, 25XA) - /291A, 29XA/ | D72: 68
B73: 3. | C73: Vlastné akcie a vlastné obchodné podiely (252) | D73: 69
B74: 4. | C74: Obstarávaný krátkodobý finančný majetok (259, 314A) - /291A/ | D74: 70
B75: B.V. | C75: Finančné účty r. 72 + r. 73 | D75: 71 | E75: =SUM(E76:E77) -> 4558.48 | F75: =SUM(F76:F77) -> 4963 | G75: 4337 | H75: 4558.83 | I75: 3924 | J75: 5013.11 | K75: 2843 | L75: 1015 | M75: 3513 | N75: 6188 | O75: 2025 | P75: 1810
B76: B.V.1. | C76: Peniaze (211, 213, 21X) | D76: 72 | E76: 4027.29 | F76: 3846 | G76: 3371 | H76: 3331.83 | I76: 2569 | J76: 1852.11 | K76: 723 | L76: 579 | M76: 337 | N76: 151 | O76: 133 | P76: 83
B77: 2. | C77: Účty v bankách (221A, 22X, +/- 261) | D77: 73 | E77: 531.19 | F77: 1117 | G77: 966 | H77: 1227 | I77: 1355 | J77: 3161 | K77: 2120 | L77: 436 | M77: 3176 | N77: 6037 | O77: 1892 | P77: 1727
B78: C. | C78: Časové rozlíšenie súčet (r. 75 až r. 78) | D78: 74 | E78: =SUM(E79:E82) -> 0 | F78: =SUM(F79:F82) -> 0 | G78: 0 | H78: 0 | I78: 0 | J78: 0 | K78: 0 | L78: 0 | M78: 0 | N78: 0 | O78: 0 | P78: 0
B79: C.1. | C79: Náklady budúcich období dlhodobé (381A, 382A) | D79: 75
B80: 2. | C80: Náklady budúcich období krátkodobé (381A, 382A) | D80: 76
B81: 3. | C81: Príjmy budúcich období dlhodobé (385A) | D81: 77
B82: 4. | C82: Príjmy budúcich období krátkodobé (385A) | D82: 78
B84: Označenie | C84: PASÍVA | D84: Číslo | E84: V bežnom účtovnom období (NETTO)
B85: a | C85: b | D85: riadku | E85: Január | F85: Február | G85: Marec | H85: Apríl | I85: Máj | J85: Jún | K85: Júl | L85: August | M85: September | N85: Október | O85: November | P85: December
D86: c
C87: SPOLU VLASTNÉ IMANIE A ZÁVÄZKY r. 80 + r. 101 + r. 141 | D87: 79 | E87: =SUM(E88,E109,E149) -> 153376.27 | F87: =SUM(F88,F109,F149) -> 154252 | G87: 137354 | H87: 137463.83 | I87: 130625 | J87: 125234.11 | K87: 127707 | L87: 122771 | M87: 125621 | N87: =SUM(N88,N109,N149) -> 133821 | O87: =SUM(O88,O109,O149) -> 113389 | P87: 170056
B88: A. | C88: Vlastné imanie r. 81 + r. 85 + r. 86 + r. 87 + r. 90 + r. 93 + r. 97 + r. 100 | D88: 80 | E88: =E89+E93+E94+E95+E98+E101+E105+E108 -> -4186.73 | F88: =F89+F93+F94+F95+F98+F101+F105+F108 -> -2303 | G88: -16895 | H88: -22338.17 | I88: -25498.53 | J88: -28217.89 | K88: -34250 | L88: -36852 | M88: -30126 | N88: -33154 | O88: -41549 | P88: 5187
B89: A.I. | C89: Základné imanie súčet (r. 82 až r. 84) | D89: 81 | E89: =SUM(E90:E92) -> 5000 | F89: =SUM(F90:F92) -> 5000 | G89: 5000 | H89: 5000 | I89: 5000 | J89: 5000 | K89: 5000 | L89: 5000 | M89: 5000 | N89: 5000 | O89: 5000 | P89: 5000
B90: A.I.1. | C90: Základné imanie (411 alebo +/- 491) | D90: 82 | E90: 5000 | F90: 5000 | G90: 5000 | H90: 5000 | I90: 5000 | J90: 5000 | K90: 5000 | L90: 5000 | M90: 5000 | N90: 5000 | O90: 5000 | P90: 5000
B91: 2. | C91: Zmena základného imania +/- 419 | D91: 83
B92: 3. | C92: Pohľadávky za upísané vlastné imanie (/-/353) | D92: 84
B93: A.II. | C93: Emisné ážio (412) | D93: 85
B94: A.III. | C94: Ostatné kapitálové fondy (413) | D94: 86
B95: A.IV. | C95: Zákonné rezervné fondy r. 88 + r. 89 | D95: 87 | E95: =SUM(E96:E97) -> 15 | F95: =SUM(F96:F97) -> 15 | G95: 15 | H95: 15 | I95: 15 | J95: 15 | K95: 15 | L95: 15 | M95: 15 | N95: 15 | O95: 14 | P95: 15
B96: A.IV.1. | C96: Zákonný rezervný fond a nedeliteľný fond (417A, 418, 421A, 422) | D96: 88 | E96: 15 | F96: 15 | G96: 15 | H96: 15 | I96: 15 | J96: 15 | K96: 15 | L96: 15 | M96: 15 | N96: 15 | O96: 14 | P96: 15
B97: 2. | C97: Rezervný fond na vlastné akcie a vlastné podiely (417A, 421A) | D97: 89
B98: A.V. | C98: Ostatné fondy zo zisku r. 91 + r. 92 | D98: 90 | E98: =SUM(E99:E100) -> 0 | F98: =SUM(F99:F100) -> 0 | G98: 0 | H98: 0 | I98: 0 | J98: 0 | K98: 0 | L98: 0 | M98: 0 | N98: 0 | O98: 0 | P98: 0
B99: A.V.1. | C99: Štatutárne fondy (423, 42X) | D99: 91
B100: 2. | C100: Ostatné fondy (427, 42X) | D100: 92
B101: A.VI. | C101: Oceňovacie rozdiely z precenenia súčet (r. 94 až r. 96) | D101: 93 | E101: =SUM(E102:E104) -> 0 | F101: =SUM(F102:F104) -> 0 | G101: 0 | H101: 0 | I101: 0 | J101: 0 | K101: 0 | L101: 0 | M101: 0 | N101: 0 | O101: 0 | P101: 0
B102: A.VI.1. | C102: Oceňovacie rozdiely z precenenia majetku a záväzkov (+/- 414) | D102: 94
B103: 2. | C103: Oceňovacie rozdiely z kapitálových účastín (+/- 415) | D103: 95
B104: 3. | C104: Oceňovacie rozdiely z precenenia pri zlúčení, splynutí a rozdelení (+/- 416) | D104: 96
B105: A.VII. | C105: Výsledok hospodárenia minulých rokov r. 98 + r. 99 | D105: 97 | E105: =SUM(E106:E107) -> 268 | F105: =SUM(F106:F107) -> 268 | G105: 268 | H105: 268 | I105: 268 | J105: 268 | K105: 268 | L105: 268 | M105: 268 | N105: 268 | O105: 268 | P105: 268
B106: A.VII.1. | C106: Nerozdelený zisk minulých rokov (428) | D106: 98 | E106: 6475 | F106: 6475 | G106: 6475 | H106: 6475 | I106: 6475 | J106: 6475 | K106: 6475 | L106: 6475 | M106: 6475 | N106: 6475 | O106: 6475 | P106: 6475
B107: 2. | C107: Neuhradená strata minulých rokov (/-/429) | D107: 99 | E107: -6207 | F107: -6207 | G107: -6207 | H107: -6207 | I107: -6207 | J107: -6207 | K107: -6207 | L107: -6207 | M107: -6207 | N107: -6207 | O107: -6207 | P107: -6207
B108: A.VIII. | C108: Výsledok hospodárenia za účtovné obdobie po zdanení /+-/ r. 01 - (r. 81 + r. 85 + r. 86 + r. 87 + r. 90 + r. 93 + r. 97 + r. 101 + r. 141) | D108: 100 | E108: =E5-(E89+E93+E94+E95+E98+E101+E105+E109+E149) -> -9469.73 | F108: =F5-(F89+F93+F94+F95+F98+F101+F105+F109+F149) -> -7586 | G108: =G5-(G89+G93+G94+G95+G98+G101+G105+G109+G149) -> -22178 | H108: -27621.17 | I108: -30781.53 | J108: -33500.89 | K108: -39533 | L108: -42135 | M108: -35409 | N108: -38437 | O108: -46831 | P108: =P5-(P89+P93+P94+P95+P98+P101+P105+P109+P149) -> -96
B109: B. | C109: Záväzky r. 102 + r. 118 + r. 121 + r. 122 + r. 136 + r. 139 + r. 140 | D109: 101 | E109: =E110+E126+E129+E130+E144+E147+E148 -> 157563 | F109: =F110+F126+F129+F130+F144+F147+F148 -> 156555 | G109: 154249 | H109: 159802 | I109: 156123.53 | J109: 153452 | K109: 161957 | L109: 159623 | M109: 155747 | N109: 166975 | O109: =O110+O126+O129+O130+O144+O147+O148 -> 154938 | P109: 164869
B110: B.I. | C110: Dlhodobé záväzky súčet (r. 103 + r. 107 až r. 117) | D110: 102 | E110: =SUM(E111,E115:E125) -> 23439 | F110: =SUM(F111,F115:F125) -> 22816 | G110: 22191 | H110: 21566 | I110: 20935 | J110: 20306 | K110: 19672 | L110: 19042 | M110: 18412 | N110: 17778 | O110: 17143 | P110: 8501
B111: B.I.1. | C111: Dlhodobé záväzky z obchodného styku súčet (r. 104 až r. 106) | D111: 103 | E111: =SUM(E112:E114) -> 0 | F111: =SUM(F112:F114) -> 0 | G111: 0 | H111: 0 | I111: 0 | J111: 0 | K111: 0 | L111: 0 | M111: 0 | N111: 0 | O111: 0 | P111: 0
B112: 1.a. | C112: Záväzky z obchodného styku voči prepojeným účtovným jednotkám (321A, 475A, 476A) | D112: 104
B113: 1.b. | C113: Záväzky z obchodného styku v rámci podielovej účasti okrem záväzkov voči prepojeným účtovným jednotkám (321A, 475A, 476A) | D113: 105
B114: 1.c. | C114: Ostatné záväzky z obchodného styku (321A, 475A, 476A) | D114: 106
B115: 2. | C115: Čistá hodnota zákazky (316A) | D115: 107
B116: 3. | C116: Ostatné záväzky voči prepojeným účtovným jednotkám (471A, 47XA) | D116: 108
B117: 4. | C117: Ostatné záväzky v rámci podielovej účasti okrem záväzkov voči prepojeným účtovným jednotkám (471A, 47XA) | D117: 109
B118: 5. | C118: Ostatné dlhodobé záväzky (479A, 47XA) | D118: 110
B119: 6. | C119: Dlhodobé prijaté preddavky (475A) | D119: 111
B120: 7. | C120: Dlhodobé zmenky na úhradu (478A) | D120: 112
B121: 8. | C121: Vydané dlhopisy (473A/-/255A) | D121: 113
B122: 9. | C122: Záväzky zo sociálneho fondu (472) | D122: 114 | E122: 377 | F122: 396 | G122: 415 | H122: 436 | I122: 453 | J122: 474 | K122: 493 | L122: 517 | M122: 544 | N122: 569 | O122: 595 | P122: 616
B123: 10. | C123: Iné dlhodobé záväzky (336A, 372A, 474A, 47XA) | D123: 115 | E123: 23062 | F123: 22420 | G123: 21776 | H123: 21130 | I123: 20482 | J123: 19832 | K123: 19179 | L123: 18525 | M123: 17868 | N123: 17209 | O123: 16548 | P123: 7885
B124: 11. | C124: Dlhodobé záväzky z derivátových operácií (373A, 377A) | D124: 116
B125: 12. | C125: Odložený daňový záväzok (481A) | D125: 117
B126: B.II. | C126: Dlhodobé rezervy r. 119 + r. 120 | D126: 118 | E126: =SUM(E127:E128) -> 0 | F126: =SUM(F127:F128) -> 0 | G126: 0 | H126: 0 | I126: 0 | J126: 0 | K126: 0 | L126: 0 | M126: 0 | N126: 0 | O126: 0 | P126: 0
B127: B.II.1. | C127: Zákonné rezervy (451A) | D127: 119
B128: 2. | C128: Ostatné rezervy (459A, 45XA) | D128: 120
B129: B.III. | C129: Dlhodobé bankové úvery (461A, 46XA) | D129: 121
B130: B.IV. | C130: Krátkodobé záväzky súčet (r. 123 + r. 127 až r. 135) | D130: 122 | E130: =SUM(E131,E135:E143) -> 133624 | F130: =SUM(F131,F135:F143) -> 133239 | G130: 132058 | H130: 138236 | I130: 135188.53 | J130: 133146 | K130: 142285 | L130: 140581 | M130: 137335 | N130: 149197 | O130: 137795 | P130: 155657
B131: B.IV.1. | C131: Záväzky z obchodného styku súčet (r. 124 až r. 126) | D131: 123 | E131: =SUM(E132:E134) -> 117749 | F131: =SUM(F132:F134) -> 115784 | G131: 115952 | H131: 121591 | I131: 118421 | J131: 116100 | K131: 124708 | L131: 121940 | M131: 118361 | N131: 129820 | O131: 119034 | P131: 119091
B132: 1.a. | C132: Záväzky z obchodného styku voči prepojeným účtovným jednotkám (321A, 322A, 324A, 325A, 326A, 32XA, 475A, 476A, 478A, 47XA) | D132: 124
B133: 1.b. | C133: Záväzky z obchodného styku v rámci podielovej účasti okrem záväzkov voči prepojeným účtovným jednotkám (321A, 322A, 324A, 325A, 326A, 32XA, 475A, 476A, 478A, 47XA) | D133: 125
B134: 1.c. | C134: Ostatné záväzky z obchodného styku (321A, 322A, 324A, 325A, 326A, 32XA, 475A, 476A, 478A, 47XA) | D134: 126 | E134: 117749 | F134: 115784 | G134: 115952 | H134: 121591 | I134: 118421 | J134: 116100 | K134: 124708 | L134: 121940 | M134: 118361 | N134: 129820 | O134: 119034 | P134: 119091
B135: 2. | C135: Čistá hodnota zákazky (316A) | D135: 127
B136: 3. | C136: Ostatné záväzky voči prepojeným účtovným jednotkám (361A, 36XA, 471A, 47XA) | D136: 128
B137: 4. | C137: Ostatné záväzky v rámci podielovej účasti okrem záväzkov voči prepojeným účtovným jednotkám (361A, 36XA, 471A, 47XA) | D137: 129
B138: 5. | C138: Záväzky voči spoločníkom a združeniu (364, 365, 366, 367, 368, 398A, 478A, 479A) | D138: 130 | E138: 11000 | F138: 11000 | G138: 11000 | H138: 11000 | I138: 11000 | J138: 11000 | K138: 11000 | L138: 11000 | M138: 11000 | N138: 11000 | O138: 11000 | P138: 11000
B139: 6. | C139: Záväzky voči zamestnancom (331, 333, 33X, 479A) | D139: 131 | E139: 2715 | F139: 3260 | G139: 2687 | H139: 2852 | I139: 2935.58 | J139: 2859 | K139: 3028 | L139: 3552 | M139: 3491 | N139: 3485 | O139: 3999 | P139: 4427
B140: 7. | C140: Záväzky zo sociálneho poistenia (336A) | D140: 132 | E140: 1576 | F140: 1576 | G140: 1678 | H140: 1750 | I140: 1778.95 | J140: 1745 | K140: 1749 | L140: 2167 | M140: 2163 | N140: 2169 | O140: 2492 | P140: 2761
B141: 8. | C141: Daňové záväzky a dotácie (341, 342, 343, 345, 346, 347, 34X) | D141: 133 | E141: 284 | F141: 1319 | G141: 41 | H141: 343 | I141: 353 | J141: 342 | K141: 300 | L141: 422 | M141: 420 | N141: 423 | O141: 470 | P141: 9256
B142: 9. | C142: Záväzky z derivátových operácií (373A, 377A) | D142: 134
B143: 10. | C143: Iné záväzky (372A, 379A, 474A, 475A, 479A, 47XA) | D143: 135 | E143: 300 | F143: 300 | G143: 700 | H143: 700 | I143: 700 | J143: 1100 | K143: 1500 | L143: 1500 | M143: 1900 | N143: 2300 | O143: 800 | P143: 9122
B144: B.V. | C144: Krátkodobé rezervy r. 137 + r. 138 | D144: 136 | E144: =SUM(E145:E146) -> 500 | F144: =SUM(F145:F146) -> 500 | G144: 0 | H144: 0 | I144: 0 | J144: 0 | K144: 0 | L144: 0 | M144: 0 | N144: 0 | O144: =SUM(O145:O146) -> 0 | P144: 711
B145: B.V.1. | C145: Zákonné rezervy (323A, 451A) | D145: 137 | E145: 500 | F145: 500 | P145: 711
B146: 2. | C146: Ostatné rezervy (323A, 32X, 459A, 45XA) | D146: 138
B147: B.VI. | C147: Bežné bankové úvery (221A, 231, 232, 23X, 461A, 46XA) | D147: 139
B148: B.VII. | C148: Krátkodobé finančné výpomoci (241, 249, 24X, 473A, /-/255A) | D148: 140
B149: C. | C149: Časové rozlíšenie súčet (r. 142 až r. 145) | D149: 141 | E149: =SUM(E150:E153) -> 0 | F149: =SUM(F150:F153) -> 0 | G149: 0 | H149: 0 | I149: 0 | J149: 0 | K149: 0 | L149: 0 | M149: 0 | N149: 0 | O149: 0 | P149: 0
B150: C.1. | C150: Výdavky budúcich období dlhodobé (383A) | D150: 142
B151: 2. | C151: Výdavky budúcich období krátkodobé (383A) | D151: 143
B152: 3. | C152: Výnosy budúcich období dlhodobé (384A) | D152: 144
B153: 4. | C153: Výnosy budúcich období krátkodobé (384A) | D153: 145
B157: Označenie | C157: Text | D157: Číslo | E157: Skutočnosť v účtovnom období (sledovanom)
D158: riadku | E158: Január | F158: Február | G158: Marec | H158: Apríl | I158: Máj | J158: Jún | K158: Júl | L158: August | M158: September | N158: Október | O158: November | P158: December | Q158: Celkom
B159: a | C159: b | D159: c
B160: * | C160: Čistý obrat (časť účt. tr. 6 podľa zákona) | D160: 1 | E160: =E161 -> 6338 | F160: =F161 -> 17000 | G160: 1311 | H160: 14975 | I160: 11530 | J160: 11586 | K160: 20519 | L160: 13685 | M160: 23184 | N160: 23836 | O160: 12728 | P160: 72529 | Q160: =SUM(E160:P160) -> 229221
B161: ** | C161: Výnosy z hospodárskej činnosti spolu súčet (r. 03 až r. 09) | D161: 2 | E161: =SUM(E162:E168) -> 6338 | F161: =SUM(F162:F168) -> 17000 | G161: 1311 | H161: 14975 | I161: 11530 | J161: 11586 | K161: 20519 | L161: 13685 | M161: 23184 | N161: 23836 | O161: 12728 | P161: 72529 | Q161: =SUM(E161:P161) -> 229221
B162: I. | C162: Tržby z predaja tovaru (604, 607) | D162: 3 | Q162: 0
B163: II. | C163: Tržby z predaja vlastných výrobkov (601) | D163: 4 | Q163: 0
B164: III. | C164: Tržby z predaja služieb (602, 606) | D164: 5 | E164: 6338 | F164: 17000 | G164: 1311 | H164: 14975 | I164: 11530 | J164: 11586 | K164: 20519 | L164: 13685 | M164: 23184 | N164: 23836 | O164: 12728 | P164: 72529 | Q164: 229221
B165: IV. | C165: Zmeny stavu vnútroorganizačných zásob (+/-) (účtová skupina 61) | D165: 6 | Q165: 0
B166: V. | C166: Aktivácia (účtová skupina 62) | D166: 7 | Q166: 0
B167: VI. | C167: Tržby z predaja dlhodobého nehmotného majetku, dlhodobého hmotného majetku a materiálu (641, 642) | D167: 8 | Q167: 0
B168: VII. | C168: Ostatné výnosy z hospodárskej činnosti (644, 645, 646, 648, 655, 657) | D168: 9 | Q168: 0
B169: ** | C169: Náklady na hospodársku činnosť spolu r. 11 + r. 12 + r. 13 + r. 14 + r. 15 + r. 20 + r. 21 + r. 24 + r. 25 + r. 26 | D169: 10 | E169: =E170+E171+E172+E173+E174+E179+E180+E183+E184+E185 -> 15718 | F169: =F170+F171+F172+F173+F174+F179+F180+F183+F184+F185 -> 15031 | G169: 15815 | H169: 20336 | I169: 14610 | J169: 14227 | K169: 26475 | L169: 16213 | M169: 16384 | N169: 26794 | O169: =O170+O171+O172+O173+O174+O179+O180+O183+O184+O185 -> 21039 | P169: 25393 | Q169: 228035
B170: A. | C170: Náklady vynaložené na obstaranie predaného tovaru (504, 507) | D170: 11 | Q170: 0
B171: B. | C171: Spotreba materiálu, energie a ostatných neskladovateľných dodávok (501, 502, 503) | D171: 12 | E171: 222 | F171: 112 | G171: 290 | H171: 207 | I171: 122 | J171: 234 | K171: 1068 | L171: 524 | M171: 274 | N171: 1863 | O171: 503 | P171: 153 | Q171: 5572
B172: C. | C172: Opravné položky k zásobám (+/-) (505) | D172: 13 | Q172: 0
B173: D. | C173: Služby (účtová skupina 51) | D173: 14 | E173: 10755 | F173: 8316 | G173: 8712 | H173: 13137 | I173: 7408 | J173: 7010 | K173: 18212 | L173: 7481 | M173: 7784 | N173: 16595 | O173: 11278 | P173: 14144 | Q173: 130832
B174: E. | C174: Osobné náklady (r. 16 až r. 19) | D174: 15 | E174: =SUM(E175:E178) -> 2719 | F174: =SUM(F175:F178) -> 4639 | G174: 4845 | H174: 5032 | I174: 5121 | J174: 5023 | K174: 5173 | L174: 6226 | M174: 6263 | N174: 6268 | O174: 7196 | P174: 8810 | Q174: 67315
B175: E.1. | C175: Mzdové náklady (521, 522) | D175: 16 | E175: 1905 | F175: 3244 | G175: 3454 | H175: 3601 | I175: 3660 | J175: 3592 | K175: 3599 | L175: 4458 | M175: 4451 | N175: 4463 | O175: 5129 | P175: 6207 | Q175: 47763
B176: 2 | C176: Odmeny členom orgánov spoločnosti a družstva (523) | D176: 17 | Q176: 0
B177: 3 | C177: Náklady na sociálne poistenie (524, 525, 526) | D177: 18 | E177: 670 | F177: 1142 | G177: 1216 | H177: 1267 | I177: 1289 | J177: 1264 | K177: 1267 | L177: 1569 | M177: 1566 | N177: 1571 | O177: 1805 | P177: 2185 | Q177: 16811
B178: 4 | C178: Sociálne náklady (527, 528) | D178: 19 | E178: 144 | F178: 253 | G178: 175 | H178: 164 | I178: 172 | J178: 167 | K178: 307 | L178: 199 | M178: 246 | N178: 234 | O178: 262 | P178: 418 | Q178: 2741
B179: F. | C179: Dane a poplatky (účtová skupina 53) | D179: 20 | E179: 56 | P179: 129 | Q179: 185
B180: G. | C180: Odpisy a opravné položky k dlhodobému nehmotnému majetku a dlhodobému hmotnému majetku (r. 22 + r. 23) | D180: 21 | E180: =SUM(E181:E182) -> 1917 | F180: =SUM(F181:F182) -> 1917 | G180: 1917 | H180: 1917 | I180: 1917 | J180: 1917 | K180: 1917 | L180: 1917 | M180: 1917 | N180: 1995 | O180: 1995 | P180: 1995 | Q180: 23238
B181: G.1. | C181: Odpisy dlhodobého nehmotného majetku a dlhodobého hmotného majetku (551) | D181: 22 | E181: 1917 | F181: 1917 | G181: 1917 | H181: 1917 | I181: 1917 | J181: 1917 | K181: 1917 | L181: 1917 | M181: 1917 | N181: 1995 | O181: 1995 | P181: 1995 | Q181: 23238
B182: 2 | C182: Opravné položky k dlhodobému nehmotnému majetku a dlhodobému hmotnému majetku (+/-) (553) | D182: 23 | Q182: 0
B183: H. | C183: Zostatková cena predaného dlhodobého majetku a predaného materiálu (541, 542) | D183: 24 | Q183: 0
B184: I. | C184: Opravné položky k pohľadávkam (+/-) (547) | D184: 25 | Q184: 0
B185: J. | C185: Ostatné náklady na hospodársku činnosť (543, 544, 545, 546, 548, 549, 555, 557) | D185: 26 | E185: 49 | F185: 47 | G185: 51 | H185: 43 | I185: 42 | J185: 43 | K185: 105 | L185: 65 | M185: 146 | N185: 73 | O185: 67 | P185: 162 | Q185: 893
B186: *** | C186: Výsledok hospodárenia z hospodárskej činnosti (+/-) (r. 02 - r. 10) | D186: 27 | E186: =E161-E169 -> -9380 | F186: =F161-F169 -> 1969 | G186: -14504 | H186: -5361 | I186: -3080 | J186: -2641 | K186: -5956 | L186: -2528 | M186: 6800 | N186: -2958 | O186: =O161-O169 -> -8311 | P186: 47136 | Q186: 1186
B187: * | C187: Pridaná hodnota (r. 03 + r. 04 + r. 05 + r. 06 + r. 07) - (r. 11 + r. 12 + r. 13 + r. 14) | D187: 28 | E187: =(E162+E163+E164+E165+E166)-(E170+E171+E172+E173) -> -4639 | F187: 8572 | G187: -7691 | H187: 1631 | I187: 4000 | J187: 4342 | K187: 1239 | L187: 5680 | M187: 15126 | N187: 5378 | O187: 947 | P187: 58232 | Q187: 92817
B188: ** | C188: Výnosy z finančnej činnosti spolu r. 30 + r. 31 + r. 35 + r. 39 + r. 42 + r. 43 + r. 44 | D188: 29 | E188: =E189+E190+E194+E198+E201+E202+E203 -> 0 | F188: =F189+F190+F194+F198+F201+F202+F203 -> 0 | G188: 0 | H188: 0 | I188: 0 | J188: 0 | K188: 0 | L188: 0 | M188: 0 | N188: 0 | O188: 0 | P188: 0 | Q188: 0
B189: VIII. | C189: Tržby z predaja cenných papierov a podielov (661) | D189: 30 | Q189: 0
B190: IX. | C190: Výnosy z dlhodobého finančného majetku súčet (r. 32 až r. 34) | D190: 31 | E190: =SUM(E191:E193) -> 0 | F190: =SUM(F191:F193) -> 0 | G190: 0 | H190: 0 | I190: 0 | J190: 0 | K190: 0 | L190: 0 | M190: 0 | N190: 0 | O190: 0 | P190: 0 | Q190: 0
B191: IX.1. | C191: Výnosy z cenných papierov a podielov od prepojených účtovných jednotiek (665A) | D191: 32 | Q191: 0
B192: 2 | C192: Výnosy z cenných papierov a podielov v podielovej účasti okrem výnosov prepojených účtovných jednotiek (665A) | D192: 33 | Q192: 0
B193: 3 | C193: Ostatné výnosy z cenných papierov a podielov (665A) | D193: 34 | Q193: 0
B194: X. | C194: Výnosy z krátkodobého finančného majetku súčet (r. 36 až r. 38) | D194: 35 | E194: =SUM(E195:E197) -> 0 | F194: =SUM(F195:F197) -> 0 | G194: 0 | H194: 0 | I194: 0 | J194: 0 | K194: 0 | L194: 0 | M194: 0 | N194: 0 | O194: 0 | P194: 0 | Q194: 0
B195: X.1. | C195: Výnosy z krátkodobého finančného majetku od prepojených účtovných jednotiek (666A) | D195: 36 | Q195: 0
B196: 2 | C196: Výnosy z krátkodobého finančného majetku v podielovej účasti okrem výnosov prepojených účtovných jednotiek (666A) | D196: 37 | Q196: 0
B197: 3 | C197: Ostatné výnosy z krátkodobého finančného majetku (666A) | D197: 38 | Q197: 0
B198: XI. | C198: Výnosové úroky (r. 40 + r. 41) | D198: 39 | E198: =SUM(E199:E200) -> 0 | F198: =SUM(F199:F200) -> 0 | G198: 0 | H198: 0 | I198: 0 | J198: 0 | K198: 0 | L198: 0 | M198: 0 | N198: 0 | O198: 0 | P198: 0 | Q198: 0
B199: XI.1. | C199: Výnosové úroky od prepojených účtovných jednotiek (662A) | D199: 40 | Q199: 0
B200: 2 | C200: Ostatné výnosové úroky (662A) | D200: 41 | Q200: 0
B201: XII. | C201: Kurzové zisky (663) | D201: 42 | Q201: 0
B202: XIII. | C202: Výnosy z precenenia cenných papierov a výnosy z derivátových operácií (664, 667) | D202: 43 | Q202: 0
B203: XIV. | C203: Ostatné výnosy z finančnej činnosti (668) | D203: 44 | Q203: 0
B204: ** | C204: Náklady na finančnú činnosť spolu r. 46 + r. 47 + r. 48 + r. 49 + r. 52 + r. 53 + r. 54 | D204: 45 | E204: =SUM(E205:E208,E211:E213) -> 90 | F204: =SUM(F205:F208,F211:F213) -> 85 | G204: 89 | H204: 81 | I204: 81 | J204: 78 | K204: 76 | L204: 74 | M204: 74 | N204: 70 | O204: 83 | P204: 66 | Q204: 947
B205: K. | C205: Predané cenné papiere a podiely (561) | D205: 46 | Q205: 0
... 15 more rows

Sheet 2020
B2: Označenie | C2: AKTÍVA | D2: Číslo | E2: V bežnom účtovnom období (NETTO) v €
B3: a | C3: b | D3: riadku | E3: Január | F3: Február | G3: Marec | H3: Apríl | I3: Máj | J3: Jún | K3: Júl | L3: August | M3: September | N3: Október | O3: November | P3: December
D4: c
C5: SPOLU MAJETOK r. 02 + r. 33 + r. 74 | D5: 1 | E5: =SUM(E6+E37+E78) -> 162170 | F5: =SUM(F6+F37+F78) -> 167463 | G5: 174018 | H5: 189924 | I5: 204970 | J5: 232144 | K5: 243280 | L5: 241464 | M5: 226232 | N5: 216988 | O5: 229403 | P5: 210777
B6: A | C6: Neobežný majetok r. 03 + r. 11 + r. 21 | D6: 2 | E6: =SUM(E7+E15+E25) -> 72986 | F6: =SUM(F7+F15+F25) -> 70991 | G6: 68996 | H6: 67001 | I6: 65006 | J6: 63011 | K6: 61016 | L6: 59021 | M6: 57026 | N6: 55031 | O6: 53036 | P6: 51041
B7: A.I. | C7: Dlhodobý nehmotný majetok súčet (r. 04 až r. 10) | D7: 3 | E7: =SUM(E8:E14) -> 53067 | F7: =SUM(F8:F14) -> 51676 | G7: 50284 | H7: 48893 | I7: 47501 | J7: 46110 | K7: 44719 | L7: 43327 | M7: 41936 | N7: 40545 | O7: 39153 | P7: 37762
B8: A.I.1. | C8: Aktivované náklady na vývoj (012) - /072, 091A/ | D8: 4
B9: 2. | C9: Softvér (013) - /073, 091A/ | D9: 5
B10: 3. | C10: Oceniteľné práva (014) - /074, 091A/ | D10: 6 | E10: 53067 | F10: 51676 | G10: 50284 | H10: 48893 | I10: 47501 | J10: 46110 | K10: 44719 | L10: 43327 | M10: 41936 | N10: 40545 | O10: 39153 | P10: 37762
B11: 4. | C11: Goodwill (015) - /075, 091A/ | D11: 7
B12: 5. | C12: Ostatný dlhodobý nehmotný majetok (019, 01X) - /079, 07X, 091A/ | D12: 8
B13: 6. | C13: Obstarávaný dlhodobý nehmotný majetok (041) - /093/ | D13: 9
B14: 7. | C14: Poskytnuté preddavky na dlhodobý nehmotný majetok (051) - /095A/ | D14: 10
B15: A.II. | C15: Dlhodobý hmotný majetok súčet (r. 12 až r. 20) | D15: 11 | E15: =SUM(E16:E24) -> 19919 | F15: =SUM(F16:F24) -> 19315 | G15: 18712 | H15: 18108 | I15: 17505 | J15: 16901 | K15: 16297 | L15: 15694 | M15: 15090 | N15: 14486 | O15: 13883 | P15: 13279
B16: A.II.1. | C16: Pozemky (031) - /092A/ | D16: 12
B17: 2. | C17: Stavby (021) - /081, 092A/ | D17: 13
B18: 3. | C18: Samostatné hnuteľné veci a súbory hnuteľných vecí (022) - /082, 092A/ | D18: 14 | E18: 19919 | F18: 19315 | G18: 18712 | H18: 18108 | I18: 17505 | J18: 16901 | K18: 16297 | L18: 15694 | M18: 15090 | N18: 14486 | O18: 13883 | P18: 13279
B19: 4. | C19: Pestovateľské celky trvalých porastov (025) - /085, 092A/ | D19: 15
B20: 5. | C20: Základné stádo a ťažné zvieratá (026) - /086, 092A/ | D20: 16
B21: 6. | C21: Ostatný dlhodobý hmotný majetok (029, 02X, 032) - /089, 08X, 092A/ | D21: 17
B22: 7. | C22: Obstarávaný dlhodobý hmotný majetok (042) - /094/ | D22: 18
B23: 8. | C23: Poskytnuté preddavky na dlhodobý hmotný majetok (052) - /095A/ | D23: 19
B24: 9. | C24: Opravná položka k nadobudnutému majetku (+/- 097) +/- 098 | D24: 20
B25: A.III. | C25: Dlhodobý finančný majetok súčet (r. 22 až r. 32) | D25: 21 | E25: =SUM(E26:E36) -> 0 | F25: =SUM(F26:F36) -> 0 | G25: 0 | H25: 0 | I25: 0 | J25: 0 | K25: 0 | L25: 0 | M25: 0 | N25: 0 | O25: 0 | P25: 0
B26: A.III.1. | C26: Podielové cenné papiere a podiely v prepojených účtovných jednotkách (061A, 062A, 063A) - /096A/ | D26: 22
B27: 2. | C27: Podielové cenné papiere a podiely s podielovou účasťou okrem v prepojených účtovných jednotkách (062A) - /096A/ | D27: 23
B28: 3. | C28: Ostatné realizovateľné cenné papiere a podiely (063A) - /096A/ | D28: 24
B29: 4. | C29: Pôžičky prepojeným účtovným jednotkám (066A) - /096A/ | D29: 25
B30: 5. | C30: Pôžičky v rámci podielovej účasti okrem prepojeným účtovným jednotkám (066A) - /096A/ | D30: 26
B31: 6. | C31: Ostatné pôžičky (067A) - /096A/ | D31: 27
B32: 7. | C32: Dlhové cenné papiere a ostatný dlhodobý finančný majetok (065A, 069A, 06XA) - /096A/ | D32: 28
B33: 8. | C33: Pôžičky a ostatný dlhodobý finančný majetok so zostatkovou dobou splatnosti najviac jeden rok (066A, 067A, 069A, 06XA) - /096A/ | D33: 29
B34: 9. | C34: Účty v bankách s dobou viazanosti dlhšou ako jeden rok (22XA) | D34: 30
B35: 10. | C35: Obstarávaný dlhodobý finančný majetok (043) - /096A/ | D35: 31
B36: 11. | C36: Poskytnuté preddavky na dlhodobý finančný majetok (053) - /095A/ | D36: 32
B37: B. | C37: Obežný majetok r. 34 + r. 41 + r. 53 + r. 66 + r. 71 | D37: 33 | E37: =E38+E45+E57+E70+E75 -> 89184 | F37: =F38+F45+F57+F70+F75 -> 96472 | G37: 105022 | H37: 122923 | I37: 139964 | J37: 169133 | K37: 182264 | L37: 182443 | M37: 169206 | N37: 161957 | O37: 176367 | P37: 159736
B38: B.I. | C38: Zásoby súčet (r. 35 až r. 40) | D38: 34 | E38: =SUM(E39:E44) -> 0 | F38: =SUM(F39:F44) -> 0 | G38: 0 | H38: 0 | I38: 0 | J38: 0 | K38: 0 | L38: 0 | M38: 0 | N38: 0 | O38: 0 | P38: 0
B39: B.I.1. | C39: Materiál (112, 119, 11X) - /191, 19X/ | D39: 35
B40: 2. | C40: Nedokončená výroba a polotovary vlastnej výroby (121, 122, 12X) - /192, 193, 19X/ | D40: 36
B41: 3. | C41: Výrobky (123) - /194/ | D41: 37
B42: 4. | C42: Zvieratá (124) - /195/ | D42: 38
B43: 5. | C43: Tovar (132, 133, 13X, 139) - /196, 19X/ | D43: 39
B44: 6. | C44: Poskytnuté preddavky na zásoby (314A) - /391A/ | D44: 40
B45: B.II. | C45: Dlhodobé pohľadávky súčet (r. 42 + r. 46 až r. 52) | D45: 41 | E45: =SUM(E46+E50+E51+E52+E53+E54+E55+E56) -> 0 | F45: =SUM(F46+F50+F51+F52+F53+F54+F55+F56) -> 0 | G45: 0 | H45: 0 | I45: 0 | J45: 0 | K45: 0 | L45: 0 | M45: 0 | N45: 0 | O45: 0 | P45: 0
B46: B.II.1. | C46: Pohľadávky z obchodného styku súčet (r. 43 až r. 45) | D46: 42 | E46: =SUM(E47:E49) -> 0 | F46: =SUM(F47:F49) -> 0 | G46: 0 | H46: 0 | I46: 0 | J46: 0 | K46: 0 | L46: 0 | M46: 0 | N46: 0 | O46: 0 | P46: 0
B47: 1.a. | C47: Pohľadávky z obchodného styku voči prepojeným účtovným jednotkám (311A, 312A, 313A, 314A, 315A, 31XA) - /391A/ | D47: 43
B48: 1.b. | C48: Pohľadávky z obchodného styku v rámci podielovej účasti okrem pohľadávok voči prepojeným účtovným jednotkám (311A, 312A, 313A, 314A, 315A, 31XA) - /391A/ | D48: 44
B49: 1.c. | C49: Ostatné pohľadávky z obchodného styku (311A, 312A, 313A, 314A, 315A, 31XA) - /391A/ | D49: 45
B50: 2. | C50: Čistá hodnota zákazky (316A) | D50: 46
B51: 3. | C51: Ostatné pohľadávky voči prepojeným účtovným jednotkám (351A) - /391A/ | D51: 47
B52: 4. | C52: Ostatné pohľadávky v rámci podielovej účasti okrem pohľadávok voči prepojeným účtovným jednotkám (351A) - /391A/ | D52: 48
B53: 5. | C53: Pohľadávky voči spoločníkom, členom a združeniu (354A, 355A, 358A, 35XA) - /391A/ | D53: 49
B54: 6. | C54: Pohľadávky z derivátových operácií (373A, 376A) | D54: 50
B55: 7. | C55: Iné pohľadávky (335A, 336A, 33XA, 371A, 374A, 375A, 378A) - /391A/ | D55: 51
B56: 8. | C56: Odložená daňová pohľadávka (481A) | D56: 52
B57: B.III. | C57: Krátkodobé pohľadávky súčet (r. 54 + r. 58 až r. 65) | D57: 53 | E57: =SUM(E58,E62:E69) -> 82052 | F57: =SUM(F58,F62:F69) -> 93037 | G57: =SUM(G58,G62:G69) -> 95119 | H57: 106630 | I57: 114733 | J57: 149521 | K57: 180108 | L57: 168703 | M57: 156127 | N57: 152245 | O57: 119139 | P57: 141406
B58: B.III.1. | C58: Pohľadávky z obchodného styku súčet (r. 55 až r. 57) | D58: 54 | E58: =SUM(E59:E61) -> 81047 | F58: =SUM(F59:F61) -> 91530 | G58: 93181 | H58: 101524 | I58: 106780 | J58: 135381 | K58: 164423 | L58: 151526 | M58: 140321 | N58: 133968 | O58: 99216 | P58: 122604
B59: 1.a. | C59: Pohľadávky z obchodného styku voči prepojeným účtovným jednotkám (311A, 312A, 313A, 314A, 315A, 31XA) - /391A/ | D59: 55
B60: 1.b. | C60: Pohľadávky z obchodného styku v rámci podielovej účasti okrem pohľadávok voči prepojeným účtovným jednotkám (311A, 312A, 313A, 314A, 315A, 31XA) - /391A/ | D60: 56
B61: 1.c. | C61: Ostatné pohľadávky z obchodného styku (311A, 312A, 313A, 314A, 315A, 31XA) - /391A/ | D61: 57 | E61: 81047 | F61: 91530 | G61: 93181 | H61: 101524 | I61: 106780 | J61: 135381 | K61: 164423 | L61: 151526 | M61: 140321 | N61: 133968 | O61: 99216 | P61: 122604
B62: 2. | C62: Čistá hodnota zákazky (316A) | D62: 58
B63: 3. | C63: Ostatné pohľadávky voči prepojeným účtovným jednotkám (351A) - /391A/ | D63: 59
B64: 4. | C64: Ostatné pohľadávky v rámci podielovej účasti okrem pohľadávok voči prepojeným účtovným jednotkám (351A) - /391A/ | D64: 60
B65: 5. | C65: Pohľadávky voči spoločníkom, členom a združeniu (354A, 355A, 358A, 35XA, 398A) - /391A/ | D65: 61
B66: 6. | C66: Sociálne poistenie (336A) - /391A/ | D66: 62
B67: 7. | C67: Daňové pohľadávky a dotácie (341, 342, 343, 345, 346, 347) - /391A/ | D67: 63 | E67: 1005 | F67: 1507 | G67: 1938 | H67: 5106 | I67: 7953 | J67: 14140 | K67: 15685 | L67: 17177 | M67: 15806 | N67: 18277 | O67: 19923 | P67: 18802
B68: 8. | C68: Pohľadávky z derivátových operácií (373A, 376A) | D68: 64
B69: 9. | C69: Iné pohľadávky (335A, 33XA, 371A, 374A, 375A, 378A) - /391A/ | D69: 65
B70: B.IV. | C70: Krátkodobý finančný majetok súčet (r. 67 až r. 70) | D70: 66 | E70: =SUM(E71:E74) -> 0 | F70: =SUM(F71:F74) -> 0 | G70: 0 | H70: 0 | I70: 0 | J70: 0 | K70: 0 | L70: 0 | M70: 0 | N70: 0 | O70: 0 | P70: 0
B71: B.IV.1. | C71: Krátkodobý finančný majetok v prepojených účtovných jednotkách (251A, 253A, 256A, 257A, 25XA) - /291A, 29XA/ | D71: 67
B72: 2 | C72: Krátkodobý finančný majetok bez krátkodobého finančného majetku v prepojených účtovných jednotkách (251A, 253A, 256A, 257A, 25XA) - /291A, 29XA/ | D72: 68
B73: 3. | C73: Vlastné akcie a vlastné obchodné podiely (252) | D73: 69
B74: 4. | C74: Obstarávaný krátkodobý finančný majetok (259, 314A) - /291A/ | D74: 70
B75: B.V. | C75: Finančné účty r. 72 + r. 73 | D75: 71 | E75: =SUM(E76:E77) -> 7132 | F75: =SUM(F76:F77) -> 3435 | G75: 9903 | H75: 16293 | I75: 25231 | J75: 19612 | K75: 2156 | L75: 13740 | M75: 13079 | N75: 9712 | O75: 57228 | P75: 18330
B76: B.V.1. | C76: Peniaze (211, 213, 21X) | D76: 72 | E76: 2347 | F76: 2123 | G76: 1755 | H76: 1485 | I76: 1498 | J76: 1386 | K76: 891 | L76: 989 | M76: 834 | N76: 6 | O76: -4 | P76: 23
B77: 2. | C77: Účty v bankách (221A, 22X, +/- 261) | D77: 73 | E77: 4785 | F77: 1312 | G77: 8148 | H77: 14808 | I77: 23733 | J77: 18226 | K77: 1265 | L77: 12751 | M77: 12245 | N77: 9706 | O77: 57232 | P77: 18307
B78: C. | C78: Časové rozlíšenie súčet (r. 75 až r. 78) | D78: 74 | E78: =SUM(E79:E82) -> 0 | F78: =SUM(F79:F82) -> 0 | G78: 0 | H78: 0 | I78: 0 | J78: 0 | K78: 0 | L78: 0 | M78: 0 | N78: 0 | O78: 0 | P78: 0
B79: C.1. | C79: Náklady budúcich období dlhodobé (381A, 382A) | D79: 75
B80: 2. | C80: Náklady budúcich období krátkodobé (381A, 382A) | D80: 76
B81: 3. | C81: Príjmy budúcich období dlhodobé (385A) | D81: 77
B82: 4. | C82: Príjmy budúcich období krátkodobé (385A) | D82: 78
B84: Označenie | C84: PASÍVA | D84: Číslo | E84: V bežnom účtovnom období (NETTO)
B85: a | C85: b | D85: riadku | E85: Január | F85: Február | G85: Marec | H85: Apríl | I85: Máj | J85: Jún | K85: Júl | L85: August | M85: September | N85: Október | O85: November | P85: December
D86: c
C87: SPOLU VLASTNÉ IMANIE A ZÁVÄZKY r. 80 + r. 101 + r. 141 | D87: 79 | E87: =SUM(E88,E109,E149) -> 162170 | F87: =SUM(F88,F109,F149) -> 167463 | G87: 174018 | H87: 189924 | I87: 204970 | J87: 232144 | K87: 243280 | L87: 241464 | M87: 226232 | N87: =SUM(N88,N109,N149) -> 216988 | O87: =SUM(O88,O109,O149) -> 229403 | P87: 210777
B88: A. | C88: Vlastné imanie r. 81 + r. 85 + r. 86 + r. 87 + r. 90 + r. 93 + r. 97 + r. 100 | D88: 80 | E88: =E89+E93+E94+E95+E98+E101+E105+E108 -> -5488 | F88: =F89+F93+F94+F95+F98+F101+F105+F108 -> -5202 | G88: 6196 | H88: 8498 | I88: 10461 | J88: 14008 | K88: 22364 | L88: 36954 | M88: 42202 | N88: 27624 | O88: 15592 | P88: 9140
B89: A.I. | C89: Základné imanie súčet (r. 82 až r. 84) | D89: 81 | E89: =SUM(E90:E92) -> 5000 | F89: =SUM(F90:F92) -> 5000 | G89: 5000 | H89: 5000 | I89: 5000 | J89: 5000 | K89: 5000 | L89: 5000 | M89: 5000 | N89: 5000 | O89: 5000 | P89: 5000
B90: A.I.1. | C90: Základné imanie (411 alebo +/- 491) | D90: 82 | E90: 5000 | F90: 5000 | G90: 5000 | H90: 5000 | I90: 5000 | J90: 5000 | K90: 5000 | L90: 5000 | M90: 5000 | N90: 5000 | O90: 5000 | P90: 5000
B91: 2. | C91: Zmena základného imania +/- 419 | D91: 83
B92: 3. | C92: Pohľadávky za upísané vlastné imanie (/-/353) | D92: 84
B93: A.II. | C93: Emisné ážio (412) | D93: 85
B94: A.III. | C94: Ostatné kapitálové fondy (413) | D94: 86
B95: A.IV. | C95: Zákonné rezervné fondy r. 88 + r. 89 | D95: 87 | E95: =SUM(E96:E97) -> 15 | F95: =SUM(F96:F97) -> 15 | G95: 15 | H95: 15 | I95: 15 | J95: 15 | K95: 15 | L95: 15 | M95: 15 | N95: 15 | O95: 15 | P95: 15
B96: A.IV.1. | C96: Zákonný rezervný fond a nedeliteľný fond (417A, 418, 421A, 422) | D96: 88 | E96: 15 | F96: 15 | G96: 15 | H96: 15 | I96: 15 | J96: 15 | K96: 15 | L96: 15 | M96: 15 | N96: 15 | O96: 15 | P96: 15
B97: 2. | C97: Rezervný fond na vlastné akcie a vlastné podiely (417A, 421A) | D97: 89
B98: A.V. | C98: Ostatné fondy zo zisku r. 91 + r. 92 | D98: 90 | E98: =SUM(E99:E100) -> 0 | F98: =SUM(F99:F100) -> 0 | G98: 0 | H98: 0 | I98: 0 | J98: 0 | K98: 0 | L98: 0 | M98: 0 | N98: 0 | O98: 0 | P98: 0
B99: A.V.1. | C99: Štatutárne fondy (423, 42X) | D99: 91
B100: 2. | C100: Ostatné fondy (427, 42X) | D100: 92
B101: A.VI. | C101: Oceňovacie rozdiely z precenenia súčet (r. 94 až r. 96) | D101: 93 | E101: =SUM(E102:E104) -> 0 | F101: =SUM(F102:F104) -> 0 | G101: 0 | H101: 0 | I101: 0 | J101: 0 | K101: 0 | L101: 0 | M101: 0 | N101: 0 | O101: 0 | P101: 0
B102: A.VI.1. | C102: Oceňovacie rozdiely z precenenia majetku a záväzkov (+/- 414) | D102: 94
B103: 2. | C103: Oceňovacie rozdiely z kapitálových účastín (+/- 415) | D103: 95
B104: 3. | C104: Oceňovacie rozdiely z precenenia pri zlúčení, splynutí a rozdelení (+/- 416) | D104: 96
B105: A.VII. | C105: Výsledok hospodárenia minulých rokov r. 98 + r. 99 | D105: 97 | E105: =SUM(E106:E107) -> 172 | F105: =SUM(F106:F107) -> 172 | G105: 172 | H105: 172 | I105: 172 | J105: 172 | K105: 172 | L105: 172 | M105: 172 | N105: 172 | O105: 172 | P105: 172
B106: A.VII.1. | C106: Nerozdelený zisk minulých rokov (428) | D106: 98 | E106: 6475 | F106: 6475 | G106: 6475 | H106: 6475 | I106: 6475 | J106: 6475 | K106: 6475 | L106: 6475 | M106: 6475 | N106: 6475 | O106: 6475 | P106: 6475
B107: 2. | C107: Neuhradená strata minulých rokov (/-/429) | D107: 99 | E107: -6303 | F107: -6303 | G107: -6303 | H107: -6303 | I107: -6303 | J107: -6303 | K107: -6303 | L107: -6303 | M107: -6303 | N107: -6303 | O107: -6303 | P107: -6303
B108: A.VIII. | C108: Výsledok hospodárenia za účtovné obdobie po zdanení /+-/ r. 01 - (r. 81 + r. 85 + r. 86 + r. 87 + r. 90 + r. 93 + r. 97 + r. 101 + r. 141) | D108: 100 | E108: =E5-(E89+E93+E94+E95+E98+E101+E105+E109+E149) -> -10675 | F108: =F5-(F89+F93+F94+F95+F98+F101+F105+F109+F149) -> -10389 | G108: 1009 | H108: 3311 | I108: 5274 | J108: 8821 | K108: 17177 | L108: 31767 | M108: 37015 | N108: 22437 | O108: 10405 | P108: =P5-(P89+P93+P94+P95+P98+P101+P105+P109+P149) -> 3953
B109: B. | C109: Záväzky r. 102 + r. 118 + r. 121 + r. 122 + r. 136 + r. 139 + r. 140 | D109: 101 | E109: =E110+E126+E129+E130+E144+E147+E148 -> 167658 | F109: =F110+F126+F129+F130+F144+F147+F148 -> 172665 | G109: 167822 | H109: 181426 | I109: 194509 | J109: 218136 | K109: 220916 | L109: 204510 | M109: 184030 | N109: 189364 | O109: =O110+O126+O129+O130+O144+O147+O148 -> 213811 | P109: 201637
B110: B.I. | C110: Dlhodobé záväzky súčet (r. 103 + r. 107 až r. 117) | D110: 102 | E110: =SUM(E111,E115:E125) -> 8522 | F110: =SUM(F111,F115:F125) -> 8551 | G110: 8579 | H110: 8609 | I110: 8639 | J110: 8669 | K110: 8706 | L110: 8736 | M110: 8760 | N110: 8788 | O110: 8816 | P110: 954
B111: B.I.1. | C111: Dlhodobé záväzky z obchodného styku súčet (r. 104 až r. 106) | D111: 103 | E111: =SUM(E112:E114) -> 0 | F111: =SUM(F112:F114) -> 0 | G111: 0 | H111: 0 | I111: 0 | J111: 0 | K111: 0 | L111: 0 | M111: 0 | N111: 0 | O111: 0 | P111: 0
B112: 1.a. | C112: Záväzky z obchodného styku voči prepojeným účtovným jednotkám (321A, 475A, 476A) | D112: 104
B113: 1.b. | C113: Záväzky z obchodného styku v rámci podielovej účasti okrem záväzkov voči prepojeným účtovným jednotkám (321A, 475A, 476A) | D113: 105
B114: 1.c. | C114: Ostatné záväzky z obchodného styku (321A, 475A, 476A) | D114: 106
B115: 2. | C115: Čistá hodnota zákazky (316A) | D115: 107
B116: 3. | C116: Ostatné záväzky voči prepojeným účtovným jednotkám (471A, 47XA) | D116: 108
B117: 4. | C117: Ostatné záväzky v rámci podielovej účasti okrem záväzkov voči prepojeným účtovným jednotkám (471A, 47XA) | D117: 109
B118: 5. | C118: Ostatné dlhodobé záväzky (479A, 47XA) | D118: 110 | E118: 7884 | F118: 7885 | G118: 7885 | H118: 7884 | I118: 7884 | J118: 7885 | K118: 7885 | L118: 7884 | M118: 7885 | N118: 7885 | O118: 7884
B119: 6. | C119: Dlhodobé prijaté preddavky (475A) | D119: 111
B120: 7. | C120: Dlhodobé zmenky na úhradu (478A) | D120: 112
B121: 8. | C121: Vydané dlhopisy (473A/-/255A) | D121: 113
B122: 9. | C122: Záväzky zo sociálneho fondu (472) | D122: 114 | E122: 638 | F122: 666 | G122: 694 | H122: 725 | I122: 755 | J122: 784 | K122: 821 | L122: 852 | M122: 875 | N122: 903 | O122: 932 | P122: 954
B123: 10. | C123: Iné dlhodobé záväzky (336A, 372A, 474A, 47XA) | D123: 115
B124: 11. | C124: Dlhodobé záväzky z derivátových operácií (373A, 377A) | D124: 116
B125: 12. | C125: Odložený daňový záväzok (481A) | D125: 117
B126: B.II. | C126: Dlhodobé rezervy r. 119 + r. 120 | D126: 118 | E126: =SUM(E127:E128) -> 0 | F126: =SUM(F127:F128) -> 0 | G126: 0 | H126: 0 | I126: 0 | J126: 0 | K126: 0 | L126: 0 | M126: 0 | N126: 0 | O126: 0 | P126: 0
B127: B.II.1. | C127: Zákonné rezervy (451A) | D127: 119
B128: 2. | C128: Ostatné rezervy (459A, 45XA) | D128: 120
B129: B.III. | C129: Dlhodobé bankové úvery (461A, 46XA) | D129: 121
B130: B.IV. | C130: Krátkodobé záväzky súčet (r. 123 + r. 127 až r. 135) | D130: 122 | E130: =SUM(E131,E135:E143) -> 159136 | F130: =SUM(F131,F135:F143) -> 164114 | G130: 159243 | H130: 172817 | I130: 185870 | J130: 209467 | K130: 212210 | L130: 195774 | M130: 175270 | N130: 180576 | O130: 204995 | P130: 197253
B131: B.IV.1. | C131: Záväzky z obchodného styku súčet (r. 124 až r. 126) | D131: 123 | E131: =SUM(E132:E134) -> 131638 | F131: =SUM(F132:F134) -> 136540 | G131: 133302 | H131: 145831 | I131: 159994 | J131: 185282 | K131: 186526 | L131: 175888 | M131: 162310 | N131: 169047 | O131: 196739 | P131: 181566
B132: 1.a. | C132: Záväzky z obchodného styku voči prepojeným účtovným jednotkám (321A, 322A, 324A, 325A, 326A, 32XA, 475A, 476A, 478A, 47XA) | D132: 124
B133: 1.b. | C133: Záväzky z obchodného styku v rámci podielovej účasti okrem záväzkov voči prepojeným účtovným jednotkám (321A, 322A, 324A, 325A, 326A, 32XA, 475A, 476A, 478A, 47XA) | D133: 125
B134: 1.c. | C134: Ostatné záväzky z obchodného styku (321A, 322A, 324A, 325A, 326A, 32XA, 475A, 476A, 478A, 47XA) | D134: 126 | E134: 131638 | F134: 136540 | G134: 133302 | H134: 145831 | I134: 159994 | J134: 185282 | K134: 186526 | L134: 175888 | M134: 162310 | N134: 169047 | O134: 196739 | P134: 181566
B135: 2. | C135: Čistá hodnota zákazky (316A) | D135: 127
B136: 3. | C136: Ostatné záväzky voči prepojeným účtovným jednotkám (361A, 36XA, 471A, 47XA) | D136: 128
B137: 4. | C137: Ostatné záväzky v rámci podielovej účasti okrem záväzkov voči prepojeným účtovným jednotkám (361A, 36XA, 471A, 47XA) | D137: 129
B138: 5. | C138: Záväzky voči spoločníkom a združeniu (364, 365, 366, 367, 368, 398A, 478A, 479A) | D138: 130 | E138: 11000 | F138: 11000 | G138: 11000 | H138: 11000 | I138: 11000 | J138: 11000 | K138: 11000 | L138: 5500
B139: 6. | C139: Záväzky voči zamestnancom (331, 333, 33X, 479A) | D139: 131 | E139: 4123 | F139: 4697 | G139: 3346 | H139: 4260 | I139: 4254 | J139: 3763 | K139: 4652 | L139: 4977 | M139: 4343 | N139: 3678 | O139: 3846 | P139: 3901
B140: 7. | C140: Záväzky zo sociálneho poistenia (336A) | D140: 132 | E140: 2574 | F140: 2637 | G140: 2244 | H140: 2810 | I140: 2794 | J140: 2409 | K140: 3074 | L140: 3105 | M140: 2774 | N140: 2399 | O140: 2475 | P140: 2515
B141: 8. | C141: Daňové záväzky a dotácie (341, 342, 343, 345, 346, 347, 34X) | D141: 133 | E141: 909 | F141: 490 | G141: 745 | H141: 532 | I141: 527 | J141: 453 | K141: 551 | L141: 562 | M141: 459 | N141: 417 | O141: 443 | P141: 568
B142: 9. | C142: Záväzky z derivátových operácií (373A, 377A) | D142: 134
B143: 10. | C143: Iné záväzky (372A, 379A, 474A, 475A, 479A, 47XA) | D143: 135 | E143: 8892 | F143: 8750 | G143: 8606 | H143: 8384 | I143: 7301 | J143: 6560 | K143: 6407 | L143: 5742 | M143: 5384 | N143: 5035 | O143: 1492 | P143: 8703
B144: B.V. | C144: Krátkodobé rezervy r. 137 + r. 138 | D144: 136 | E144: =SUM(E145:E146) -> 0 | F144: =SUM(F145:F146) -> 0 | G144: 0 | H144: 0 | I144: 0 | J144: 0 | K144: 0 | L144: 0 | M144: 0 | N144: 0 | O144: =SUM(O145:O146) -> 0 | P144: 3430
B145: B.V.1. | C145: Zákonné rezervy (323A, 451A) | D145: 137 | P145: 3430
B146: 2. | C146: Ostatné rezervy (323A, 32X, 459A, 45XA) | D146: 138
B147: B.VI. | C147: Bežné bankové úvery (221A, 231, 232, 23X, 461A, 46XA) | D147: 139
B148: B.VII. | C148: Krátkodobé finančné výpomoci (241, 249, 24X, 473A, /-/255A) | D148: 140
B149: C. | C149: Časové rozlíšenie súčet (r. 142 až r. 145) | D149: 141 | E149: =SUM(E150:E153) -> 0 | F149: =SUM(F150:F153) -> 0 | G149: 0 | H149: 0 | I149: 0 | J149: 0 | K149: 0 | L149: 0 | M149: 0 | N149: 0 | O149: 0 | P149: 0
B150: C.1. | C150: Výdavky budúcich období dlhodobé (383A) | D150: 142
B151: 2. | C151: Výdavky budúcich období krátkodobé (383A) | D151: 143
B152: 3. | C152: Výnosy budúcich období dlhodobé (384A) | D152: 144
B153: 4. | C153: Výnosy budúcich období krátkodobé (384A) | D153: 145
B157: Označenie | C157: Text | D157: Číslo | E157: Skutočnosť v účtovnom období (sledovanom)
D158: riadku | E158: Január | F158: Február | G158: Marec | H158: Apríl | I158: Máj | J158: Jún | K158: Júl | L158: August | M158: September | N158: Október | O158: November | P158: December | Q158: Celkom
B159: a | C159: b | D159: c
B160: * | C160: Čistý obrat (časť účt. tr. 6 podľa zákona) | D160: 1 | E160: =E161 -> 13525 | F160: =F161 -> 17383 | G160: 26145 | H160: 35105 | I160: 39600 | J160: 55397 | K160: 55907 | L160: 60706 | M160: 49251 | N160: 46746 | O160: 39042 | P160: 35672 | Q160: =SUM(E160:P160) -> 474479
B161: ** | C161: Výnosy z hospodárskej činnosti spolu súčet (r. 03 až r. 09) | D161: 2 | E161: =SUM(E162:E168) -> 13525 | F161: =SUM(F162:F168) -> 17383 | G161: 26145 | H161: 35105 | I161: 39600 | J161: 55397 | K161: 55907 | L161: 60706 | M161: 49251 | N161: 46746 | O161: 39042 | P161: 35672 | Q161: =SUM(E161:P161) -> 474479
B162: I. | C162: Tržby z predaja tovaru (604, 607) | D162: 3 | Q162: 0
B163: II. | C163: Tržby z predaja vlastných výrobkov (601) | D163: 4 | Q163: 0
B164: III. | C164: Tržby z predaja služieb (602, 606) | D164: 5 | E164: 13525 | F164: 17383 | G164: 26145 | H164: 35105 | I164: 39600 | J164: 55397 | K164: 55907 | L164: 60706 | M164: 49251 | N164: 46746 | O164: 39042 | P164: 35672 | Q164: 474479
B165: IV. | C165: Zmeny stavu vnútroorganizačných zásob (+/-) (účtová skupina 61) | D165: 6 | Q165: 0
B166: V. | C166: Aktivácia (účtová skupina 62) | D166: 7 | Q166: 0
B167: VI. | C167: Tržby z predaja dlhodobého nehmotného majetku, dlhodobého hmotného majetku a materiálu (641, 642) | D167: 8 | Q167: 0
B168: VII. | C168: Ostatné výnosy z hospodárskej činnosti (644, 645, 646, 648, 655, 657) | D168: 9 | Q168: 0
B169: ** | C169: Náklady na hospodársku činnosť spolu r. 11 + r. 12 + r. 13 + r. 14 + r. 15 + r. 20 + r. 21 + r. 24 + r. 25 + r. 26 | D169: 10 | E169: =E170+E171+E172+E173+E174+E179+E180+E183+E184+E185 -> 24137 | F169: =F170+F171+F172+F173+F174+F179+F180+F183+F184+F185 -> 17036 | G169: 14688 | H169: 32745 | I169: 37581 | J169: 51796 | K169: 47500 | L169: 46067 | M169: 43953 | N169: 61276 | O169: =O170+O171+O172+O173+O174+O179+O180+O183+O184+O185 -> 51018 | P169: 42085 | Q169: 469882
B170: A. | C170: Náklady vynaložené na obstaranie predaného tovaru (504, 507) | D170: 11 | Q170: 0
B171: B. | C171: Spotreba materiálu, energie a ostatných neskladovateľných dodávok (501, 502, 503) | D171: 12 | E171: 1746 | F171: 213 | G171: 159 | H171: 1747 | I171: 220 | J171: 199 | K171: 2058 | L171: 65 | M171: 694 | N171: 2481 | O171: 3334 | P171: -1121 | Q171: 11795
B172: C. | C172: Opravné položky k zásobám (+/-) (505) | D172: 13 | Q172: 0
B173: D. | C173: Služby (účtová skupina 51) | D173: 14 | E173: 13216 | F173: 6803 | G173: 5823 | H173: 20734 | I173: 27160 | J173: 42339 | K173: 34366 | L173: 34902 | M173: 33138 | N173: 49715 | O173: 38415 | P173: 27643 | Q173: 334254
B174: E. | C174: Osobné náklady (r. 16 až r. 19) | D174: 15 | E174: =SUM(E175:E178) -> 6950 | F174: =SUM(F175:F178) -> 7850 | G174: 6555 | H174: 8114 | I174: 8049 | J174: 7094 | K174: 8922 | L174: 8913 | M174: 7964 | N174: 6922 | O174: 7119 | P174: 10631 | Q174: 95083
B175: E.1. | C175: Mzdové náklady (521, 522) | D175: 16 | E175: 5045 | F175: 5700 | G175: 4617 | H175: 5783 | I175: 5750 | J175: 4957 | K175: 6325 | L175: 6389 | M175: 5709 | N175: 4937 | O175: 5093 | P175: 7713 | Q175: 68018
B176: 2 | C176: Odmeny členom orgánov spoločnosti a družstva (523) | D176: 17 | Q176: 0
B177: 3 | C177: Náklady na sociálne poistenie (524, 525, 526) | D177: 18 | E177: 1680 | F177: 1911 | G177: 1625 | H177: 2036 | I177: 2024 | J177: 1745 | K177: 2226 | L177: 2249 | M177: 2009 | N177: 1737 | O177: 1793 | P177: 2715 | Q177: 23750
B178: 4 | C178: Sociálne náklady (527, 528) | D178: 19 | E178: 225 | F178: 239 | G178: 313 | H178: 295 | I178: 275 | J178: 392 | K178: 371 | L178: 275 | M178: 246 | N178: 248 | O178: 233 | P178: 203 | Q178: 3315
B179: F. | C179: Dane a poplatky (účtová skupina 53) | D179: 20 | E179: 56 | N179: 3 | P179: 111 | Q179: 170
B180: G. | C180: Odpisy a opravné položky k dlhodobému nehmotnému majetku a dlhodobému hmotnému majetku (r. 22 + r. 23) | D180: 21 | E180: =SUM(E181:E182) -> 1995 | F180: =SUM(F181:F182) -> 1995 | G180: 1995 | H180: 1995 | I180: 1995 | J180: 1995 | K180: 1995 | L180: 1995 | M180: 1995 | N180: 1996 | O180: 1995 | P180: 1995 | Q180: 23941
B181: G.1. | C181: Odpisy dlhodobého nehmotného majetku a dlhodobého hmotného majetku (551) | D181: 22 | E181: 1995 | F181: 1995 | G181: 1995 | H181: 1995 | I181: 1995 | J181: 1995 | K181: 1995 | L181: 1995 | M181: 1995 | N181: 1996 | O181: 1995 | P181: 1995 | Q181: 23941
B182: 2 | C182: Opravné položky k dlhodobému nehmotnému majetku a dlhodobému hmotnému majetku (+/-) (553) | D182: 23 | Q182: 0
B183: H. | C183: Zostatková cena predaného dlhodobého majetku a predaného materiálu (541, 542) | D183: 24 | Q183: 0
B184: I. | C184: Opravné položky k pohľadávkam (+/-) (547) | D184: 25 | P184: 2671 | Q184: 2671
B185: J. | C185: Ostatné náklady na hospodársku činnosť (543, 544, 545, 546, 548, 549, 555, 557) | D185: 26 | E185: 174 | F185: 175 | G185: 156 | H185: 155 | I185: 157 | J185: 169 | K185: 159 | L185: 192 | M185: 162 | N185: 159 | O185: 155 | P185: 155 | Q185: 1968
B186: *** | C186: Výsledok hospodárenia z hospodárskej činnosti (+/-) (r. 02 - r. 10) | D186: 27 | E186: =E161-E169 -> -10612 | F186: =F161-F169 -> 347 | G186: 11457 | H186: 2360 | I186: 2019 | J186: 3601 | K186: 8407 | L186: 14639 | M186: 5298 | N186: -14530 | O186: =O161-O169 -> -11976 | P186: -6413 | Q186: 4597
B187: * | C187: Pridaná hodnota (r. 03 + r. 04 + r. 05 + r. 06 + r. 07) - (r. 11 + r. 12 + r. 13 + r. 14) | D187: 28 | E187: =(E162+E163+E164+E165+E166)-(E170+E171+E172+E173) -> -1437 | F187: 10367 | G187: 20163 | H187: 12624 | I187: 12220 | J187: 12859 | K187: 19483 | L187: 25739 | M187: 15419 | N187: -5450 | O187: -2707 | P187: 9150 | Q187: 128430
B188: ** | C188: Výnosy z finančnej činnosti spolu r. 30 + r. 31 + r. 35 + r. 39 + r. 42 + r. 43 + r. 44 | D188: 29 | E188: =E189+E190+E194+E198+E201+E202+E203 -> 0 | F188: =F189+F190+F194+F198+F201+F202+F203 -> 0 | G188: 0 | H188: 0 | I188: 0 | J188: 0 | K188: 0 | L188: 0 | M188: 0 | N188: 0 | O188: 0 | P188: 0 | Q188: 0
B189: VIII. | C189: Tržby z predaja cenných papierov a podielov (661) | D189: 30 | Q189: 0
B190: IX. | C190: Výnosy z dlhodobého finančného majetku súčet (r. 32 až r. 34) | D190: 31 | E190: =SUM(E191:E193) -> 0 | F190: =SUM(F191:F193) -> 0 | G190: 0 | H190: 0 | I190: 0 | J190: 0 | K190: 0 | L190: 0 | M190: 0 | N190: 0 | O190: 0 | P190: 0 | Q190: 0
B191: IX.1. | C191: Výnosy z cenných papierov a podielov od prepojených účtovných jednotiek (665A) | D191: 32 | Q191: 0
B192: 2 | C192: Výnosy z cenných papierov a podielov v podielovej účasti okrem výnosov prepojených účtovných jednotiek (665A) | D192: 33 | Q192: 0
B193: 3 | C193: Ostatné výnosy z cenných papierov a podielov (665A) | D193: 34 | Q193: 0
B194: X. | C194: Výnosy z krátkodobého finančného majetku súčet (r. 36 až r. 38) | D194: 35 | E194: =SUM(E195:E197) -> 0 | F194: =SUM(F195:F197) -> 0 | G194: 0 | H194: 0 | I194: 0 | J194: 0 | K194: 0 | L194: 0 | M194: 0 | N194: 0 | O194: 0 | P194: 0 | Q194: 0
B195: X.1. | C195: Výnosy z krátkodobého finančného majetku od prepojených účtovných jednotiek (666A) | D195: 36 | Q195: 0
B196: 2 | C196: Výnosy z krátkodobého finančného majetku v podielovej účasti okrem výnosov prepojených účtovných jednotiek (666A) | D196: 37 | Q196: 0
B197: 3 | C197: Ostatné výnosy z krátkodobého finančného majetku (666A) | D197: 38 | Q197: 0
B198: XI. | C198: Výnosové úroky (r. 40 + r. 41) | D198: 39 | E198: =SUM(E199:E200) -> 0 | F198: =SUM(F199:F200) -> 0 | G198: 0 | H198: 0 | I198: 0 | J198: 0 | K198: 0 | L198: 0 | M198: 0 | N198: 0 | O198: 0 | P198: 0 | Q198: 0
B199: XI.1. | C199: Výnosové úroky od prepojených účtovných jednotiek (662A) | D199: 40 | Q199: 0
B200: 2 | C200: Ostatné výnosové úroky (662A) | D200: 41 | Q200: 0
B201: XII. | C201: Kurzové zisky (663) | D201: 42 | Q201: 0
B202: XIII. | C202: Výnosy z precenenia cenných papierov a výnosy z derivátových operácií (664, 667) | D202: 43 | Q202: 0
B203: XIV. | C203: Ostatné výnosy z finančnej činnosti (668) | D203: 44 | Q203: 0
B204: ** | C204: Náklady na finančnú činnosť spolu r. 46 + r. 47 + r. 48 + r. 49 + r. 52 + r. 53 + r. 54 | D204: 45 | E204: =SUM(E205:E208,E211:E213) -> 63 | F204: =SUM(F205:F208,F211:F213) -> 61 | G204: 59 | H204: 58 | I204: 56 | J204: 54 | K204: 51 | L204: 49 | M204: 50 | N204: 48 | O204: 56 | P204: 39 | Q204: 644
B205: K. | C205: Predané cenné papiere a podiely (561) | D205: 46 | Q205: 0
... 15 more rows
